Workbook

Sheet Billings PT
B3: Column Labels
B4: DIRECT | E4: DA | H4: FXP | K4: Total Billed Amount | L4: Total Calculated Dist | M4: Total Variance
A5: Row Labels | B5: Billed Amount | C5: Calculated Dist | D5: Variance | E5: Billed Amount | F5: Calculated Dist | G5: Variance | H5: Billed Amount | I5: Calculated Dist | J5: Variance
A6: 4001GD | B6: 19369.55 | C6: 19369.55 | D6: 0 | K6: 19369.55 | L6: 19369.55 | M6: 0
A7: 4001ND | B7: 80478.44 | C7: 80478.44 | D7: 0 | K7: 80478.44 | L7: 80478.44 | M7: 0
A8: 4030AS | H8: 109807.65 | I8: 109807.3541 | J8: 0.295894 | K8: 109807.65 | L8: 109807.3541 | M8: 0.295894
A9: 4030MU | H9: 3620.4 | I9: 3620.4624 | J9: -0.0624 | K9: 3620.4 | L9: 3620.4624 | M9: -0.0624
A10: 4030SS | H10: 387.05 | I10: 387 | J10: 0.05 | K10: 387.05 | L10: 387 | M10: 0.05
A11: 403S01 | H11: 199234.97 | I11: 199234.9437 | J11: 0.02628799999 | K11: 199234.97 | L11: 199234.9437 | M11: 0.02628799999
A12: 404003 | H12: 1332 | I12: 1332 | J12: 0 | K12: 1332 | L12: 1332 | M12: 0
A13: 40401T | H13: 16967.84 | I13: 16967.92842 | J13: -0.08842 | K13: 16967.84 | L13: 16967.92842 | M13: -0.08842
A14: 4040CC | E14: 79822.94 | F14: 79823.02001 | G14: -0.08000799999 | K14: 79822.94 | L14: 79823.02001 | M14: -0.08000799999
A15: 4040HG | E15: 3491.44 | F15: 3491.5049 | G15: -0.0649 | K15: 3491.44 | L15: 3491.5049 | M15: -0.0649
A16: 4040MP | E16: 59160.2 | F16: 59160.1062 | G16: 0.0938 | K16: 59160.2 | L16: 59160.1062 | M16: 0.0938
A17: 4040PH | H17: 180.84 | I17: 180.866952 | J17: -0.026952 | K17: 180.84 | L17: 180.866952 | M17: -0.026952
A18: 4040PM | H18: 780.52 | I18: 780.404148 | J18: 0.115852 | K18: 780.52 | L18: 780.404148 | M18: 0.115852
A19: 4040PT | H19: 1356.6 | I19: 1356.456852 | J19: 0.143148 | K19: 1356.6 | L19: 1356.456852 | M19: 0.143148
A20: 4040PV | H20: 180.84 | I20: 180.866952 | J20: -0.026952 | K20: 180.84 | L20: 180.866952 | M20: -0.026952
A21: 4040RC | H21: 2893.74 | I21: 2893.795308 | J21: -0.055308 | K21: 2893.74 | L21: 2893.795308 | M21: -0.055308
A22: 4040RE | H22: 186.24 | I22: 186.2136 | J22: 0.0264 | K22: 186.24 | L22: 186.2136 | M22: 0.0264
A23: 4040RW | H23: 4601.9 | I23: 4601.934792 | J23: -0.034792 | K23: 4601.9 | L23: 4601.934792 | M23: -0.034792
A24: 404101 | H24: 16100.28 | I24: 16100.01713 | J24: 0.26287 | K24: 16100.28 | L24: 16100.01713 | M24: 0.26287
A25: 4042OP | H25: 37846.52 | I25: 37846.50361 | J25: 0.016388 | K25: 37846.52 | L25: 37846.50361 | M25: 0.016388
A26: 4042RM | H26: 25521.73 | I26: 25521.68477 | J26: 0.045232 | K26: 25521.73 | L26: 25521.68477 | M26: 0.045232
A27: 4042TC | H27: 23887.56 | I27: 23887.54188 | J27: 0.01812 | K27: 23887.56 | L27: 23887.54188 | M27: 0.01812
A28: 4042TD | H28: 963.88 | I28: 963.912456 | J28: -0.032456 | K28: 963.88 | L28: 963.912456 | M28: -0.032456
A29: 4042TI | H29: 3365.56 | I29: 3365.708256 | J29: -0.148256 | K29: 3365.56 | L29: 3365.708256 | M29: -0.148256
A30: 4042TL | H30: 4214.7 | I30: 4214.75769 | J30: -0.05769 | K30: 4214.7 | L30: 4214.75769 | M30: -0.05769
A31: 4042TM | H31: 3864.01 | I31: 3864.00879 | J31: 0.00121 | K31: 3864.01 | L31: 3864.00879 | M31: 0.00121
A32: 4042TV | H32: 1877.96 | I32: 1877.928192 | J32: 0.031808 | K32: 1877.96 | L32: 1877.928192 | M32: 0.031808
A33: 404301 | H33: 35036.5 | I33: 35036.34235 | J33: 0.157652 | K33: 35036.5 | L33: 35036.34235 | M33: 0.157652
A34: 404302 | B34: 2206.4 | C34: 2206.4 | D34: 0 | K34: 2206.4 | L34: 2206.4 | M34: 0
A35: 404401 | H35: 39980.32 | I35: 39980.31303 | J35: 0.006965000008 | K35: 39980.32 | L35: 39980.31303 | M35: 0.006965000008
A36: 404402 | B36: 3074 | C36: 3074 | D36: 0 | E36: 277.1 | F36: 277.0535 | G36: 0.0465 | K36: 3351.1 | L36: 3351.0535 | M36: 0.0465
A37: 4044XP | H37: 27616.77 | I37: 27616.63311 | J37: 0.13689 | K37: 27616.77 | L37: 27616.63311 | M37: 0.13689
A38: 404501 | H38: 15586.06 | I38: 15586.12609 | J38: -0.06609 | K38: 15586.06 | L38: 15586.12609 | M38: -0.06609
A39: 40MRGE | H39: 263.04 | I39: 263.0826 | J39: -0.0426 | K39: 263.04 | L39: 263.0826 | M39: -0.0426
A40: 4100IV | B40: 142876.59 | C40: 142876.59 | D40: 0 | K40: 142876.59 | L40: 142876.59 | M40: 0
A41: 4100IW | B41: 19375.12 | C41: 19375.12 | D41: 0 | K41: 19375.12 | L41: 19375.12 | M41: 0
A42: 410201 | B42: 5666244.83 | C42: 5666244.83 | D42: 0 | K42: 5666244.83 | L42: 5666244.83 | M42: 0
A43: 4102CM | B43: 37529 | C43: 37529 | D43: 0 | K43: 37529 | L43: 37529 | M43: 0
A44: 4102PA | E44: 104989.85 | F44: 104989.345 | G44: 0.505 | K44: 104989.85 | L44: 104989.345 | M44: 0.505
A45: 4102PS | B45: 163108.54 | C45: 163108.54 | D45: 0 | K45: 163108.54 | L45: 163108.54 | M45: 0
A46: 4106CM | B46: 10000 | C46: 10000 | D46: 0 | K46: 10000 | L46: 10000 | M46: 0
A47: 4106DE | B47: 19090.55 | C47: 19090.55 | D47: 0 | K47: 19090.55 | L47: 19090.55 | M47: 0
A48: 4106PA | B48: 46322.1 | C48: 46322.1 | D48: 0 | K48: 46322.1 | L48: 46322.1 | M48: 0
A49: 4106SU | B49: 660 | C49: 660 | D49: 0 | K49: 660 | L49: 660 | M49: 0
A50: 4109CM | B50: 273427.26 | C50: 273427.26 | D50: 0 | K50: 273427.26 | L50: 273427.26 | M50: 0
A51: 4160CE | B51: 6963212.83 | C51: 6963212.83 | D51: 0 | K51: 6963212.83 | L51: 6963212.83 | M51: 0
A52: 4160CM | B52: 3717818.02 | C52: 3717818.02 | D52: 0 | K52: 3717818.02 | L52: 3717818.02 | M52: 0
A53: 4161AK | B53: 6096 | C53: 6096 | D53: 0 | K53: 6096 | L53: 6096 | M53: 0
A54: 425122 | B54: 7816.08 | C54: 7816.08 | D54: 0 | H54: 8133.4 | I54: 8133.289704 | J54: 0.110296 | K54: 15949.48 | L54: 15949.3697 | M54: 0.110296
A55: 426801 | H55: 122536.23 | I55: 122536.1994 | J55: 0.03061500001 | K55: 122536.23 | L55: 122536.1994 | M55: 0.03061500001
A56: 4268QD | H56: 45.12 | I56: 45.1251 | J56: -0.0051 | K56: 45.12 | L56: 45.1251 | M56: -0.0051
A57: 426901 | H57: 105228.79 | I57: 105228.7777 | J57: 0.01229200003 | K57: 105228.79 | L57: 105228.7777 | M57: 0.01229200003
A58: 4269BL | H58: 69049.48 | I58: 69049.52341 | J58: -0.043412 | K58: 69049.48 | L58: 69049.52341 | M58: -0.043412
A59: 4269CL | H59: 270720.03 | I59: 270720 | J59: 0.03000000003 | K59: 270720.03 | L59: 270720 | M59: 0.03000000003
A60: 4269CO | H60: 15307.4 | I60: 15307.31588 | J60: 0.084116 | K60: 15307.4 | L60: 15307.31588 | M60: 0.084116
A61: 4269KC | H61: 3478.94 | I61: 3478.84929 | J61: 0.09071 | K61: 3478.94 | L61: 3478.84929 | M61: 0.09071
A62: 4269KL | H62: 20542.23 | I62: 20542.22091 | J62: 0.00909 | K62: 20542.23 | L62: 20542.22091 | M62: 0.00909
A63: 4269LL | H63: 418770.04 | I63: 418770 | J63: 0.03999999998 | K63: 418770.04 | L63: 418770 | M63: 0.03999999998
A64: 4269ML | H64: 84600.02 | I64: 84600 | J64: 0.02 | K64: 84600.02 | L64: 84600 | M64: 0.02
A65: 4269MP | H65: 6757.22 | I65: 6757.199118 | J65: 0.020882 | K65: 6757.22 | L65: 6757.199118 | M65: 0.020882
A66: 4269PL | H66: 42300.01 | I66: 42300 | J66: 0.01 | K66: 42300.01 | L66: 42300 | M66: 0.01
A67: 4269PR | H67: 16227 | I67: 16227.07524 | J67: -0.07524 | K67: 16227 | L67: 16227.07524 | M67: -0.07524
A68: 4269WL | H68: 8459.98 | I68: 8460 | J68: -0.02 | K68: 8459.98 | L68: 8460 | M68: -0.02
A69: 427001 | H69: 56986.69 | I69: 56986.67431 | J69: 0.015691 | K69: 56986.69 | L69: 56986.67431 | M69: 0.015691
A70: 427101 | H70: 17114.77 | I70: 17114.7381 | J70: 0.031897 | K70: 17114.77 | L70: 17114.7381 | M70: 0.031897
A71: 427201 | H71: 52610.04 | I71: 52610.13593 | J71: -0.095931 | K71: 52610.04 | L71: 52610.13593 | M71: -0.095931
A72: 427301 | H72: 71610.47 | I72: 71610.50689 | J72: -0.036892 | K72: 71610.47 | L72: 71610.50689 | M72: -0.036892
A73: 4299LD | H73: 3870.02 | I73: 3870 | J73: 0.02 | K73: 3870.02 | L73: 3870 | M73: 0.02
A74: 430901 | B74: 660348.16 | C74: 660348.16 | D74: 0 | K74: 660348.16 | L74: 660348.16 | M74: 0
A75: 4309FE | B75: 2688 | C75: 2688 | D75: 0 | K75: 2688 | L75: 2688 | M75: 0
A76: 4323CP | H76: 87442.56 | I76: 87442.35928 | J76: 0.20072 | K76: 87442.56 | L76: 87442.35928 | M76: 0.20072
A77: 435010 | B77: 57671.35 | C77: 57671.35 | D77: 0 | K77: 57671.35 | L77: 57671.35 | M77: 0
A78: 435101 | B78: 53305.01 | C78: 53305.01 | D78: 0 | H78: 149494.61 | I78: 149494.6766 | J78: -0.06656199999 | K78: 202799.62 | L78: 202799.6866 | M78: -0.06656199999
A79: 435105 | H79: 35697.07 | I79: 35697.1729 | J79: -0.102896 | K79: 35697.07 | L79: 35697.1729 | M79: -0.102896
A80: 435106 | B80: 1056 | C80: 1056 | D80: 0 | H80: 47468.67 | I80: 47468.38704 | J80: 0.282957 | K80: 48524.67 | L80: 48524.38704 | M80: 0.282957
A81: 435111 | B81: 19908.76 | C81: 19908.76 | D81: 0 | H81: 19037.29 | I81: 19037.24985 | J81: 0.040153 | K81: 38946.05 | L81: 38946.00985 | M81: 0.040153
A82: 435112 | B82: 370467.77 | C82: 370467.77 | D82: 0 | H82: 32848.44 | I82: 32848.26445 | J82: 0.175551 | K82: 403316.21 | L82: 403316.0344 | M82: 0.175551
A83: 435114 | B83: 310549.05 | C83: 310549.05 | D83: 0 | H83: 21975.87 | I83: 21975.80616 | J83: 0.06384 | K83: 332524.92 | L83: 332524.8562 | M83: 0.06384
A84: 435115 | B84: 1160.48 | C84: 1160.48 | D84: 0 | H84: 3595.33 | I84: 3595.317957 | J84: 0.012043 | K84: 4755.81 | L84: 4755.797957 | M84: 0.012043
A85: 435116 | B85: 141444.03 | C85: 141444.03 | D85: 0 | H85: 24222 | I85: 24221.97162 | J85: 0.02838 | K85: 165666.03 | L85: 165666.0016 | M85: 0.02838
A86: 435117 | B86: 20670 | C86: 20670 | D86: 0 | H86: 24062.27 | I86: 24062.30996 | J86: -0.039964 | K86: 44732.27 | L86: 44732.30996 | M86: -0.039964
A87: 435118 | B87: 66455.88 | C87: 66455.88 | D87: 0 | H87: 12478.57 | I87: 12478.56063 | J87: 0.009367000001 | K87: 78934.45 | L87: 78934.44063 | M87: 0.009367000001
A88: 435120 | B88: 2000 | C88: 2000 | D88: 0 | H88: 14174.37 | I88: 14174.3448 | J88: 0.0252 | K88: 16174.37 | L88: 16174.3448 | M88: 0.0252
A89: 435121 | B89: 48505.75 | C89: 48505.75 | D89: 0 | K89: 48505.75 | L89: 48505.75 | M89: 0
A90: 4351AM | B90: 41805.8 | C90: 41805.8 | D90: 0 | H90: 18969.1 | I90: 18969.12102 | J90: -0.021017 | K90: 60774.9 | L90: 60774.92102 | M90: -0.021017
A91: 4351B1 | B91: 45108.16 | C91: 45108.16 | D91: 0 | H91: 14500.76 | I91: 14500.8074 | J91: -0.047398 | K91: 59608.92 | L91: 59608.9674 | M91: -0.047398
A92: 4351GN | H92: 109412.65 | I92: 109412.5746 | J92: 0.07542099999 | K92: 109412.65 | L92: 109412.5746 | M92: 0.07542099999
A93: 4351RM | B93: 19435.53 | C93: 19435.53 | D93: 0 | H93: 6656.1 | I93: 6656.183226 | J93: -0.083226 | K93: 26091.63 | L93: 26091.71323 | M93: -0.083226
A94: 4351T2 | H94: 450.44 | I94: 450.436833 | J94: 0.003167 | K94: 450.44 | L94: 450.436833 | M94: 0.003167
A95: 435201 | B95: 198078.11 | C95: 198078.11 | D95: 0 | H95: 214020.41 | I95: 214020.4265 | J95: -0.01650800003 | K95: 412098.52 | L95: 412098.5365 | M95: -0.01650800003
A96: 4352GH | B96: 47702.9 | C96: 47702.9 | D96: 0 | H96: 65927.64 | I96: 65927.66393 | J96: -0.023928 | K96: 113630.54 | L96: 113630.5639 | M96: -0.023928
A97: 4352GN | H97: 49364.68 | I97: 49364.61939 | J97: 0.06061200001 | K97: 49364.68 | L97: 49364.61939 | M97: 0.06061200001
A98: 435601 | H98: 20881.56 | I98: 20881.53423 | J98: 0.02577 | K98: 20881.56 | L98: 20881.53423 | M98: 0.02577
A99: 435801 | H99: 72158.22 | I99: 72158.36873 | J99: -0.148734 | K99: 72158.22 | L99: 72158.36873 | M99: -0.148734
A100: 436201 | H100: 57657.62 | I100: 57657.47875 | J100: 0.141251 | K100: 57657.62 | L100: 57657.47875 | M100: 0.141251
A101: 43622A | H101: 486.99 | I101: 486.975489 | J101: 0.014511 | K101: 486.99 | L101: 486.975489 | M101: 0.014511
A102: 4362LM | H102: 3547.09 | I102: 3547.05 | J102: 0.04 | K102: 3547.09 | L102: 3547.05 | M102: 0.04
A103: 436501 | H103: 221033.58 | I103: 221033.5754 | J103: 0.004555999971 | K103: 221033.58 | L103: 221033.5754 | M103: 0.004555999971
A104: 4365CS | H104: 1725.32 | I104: 1725.13198 | J104: 0.18802 | K104: 1725.32 | L104: 1725.13198 | M104: 0.18802
A105: 4365DP | H105: 10450 | I105: 10450 | J105: 0 | K105: 10450 | L105: 10450 | M105: 0
A106: 4365FA | H106: 5646.51 | I106: 5646.491972 | J106: 0.018028 | K106: 5646.51 | L106: 5646.491972 | M106: 0.018028
A107: 436701 | B107: 15628.91 | C107: 15628.91 | D107: 0 | K107: 15628.91 | L107: 15628.91 | M107: 0
A108: 437401 | B108: 448682.73 | C108: 448682.73 | D108: 0 | K108: 448682.73 | L108: 448682.73 | M108: 0
A109: 437501 | B109: 282457.2 | C109: 282457.2 | D109: 0 | H109: 362486.36 | I109: 362486.3638 | J109: -0.003810999973 | K109: 644943.56 | L109: 644943.5638 | M109: -0.003810999973
A110: 4376CR | B110: 83938.68 | C110: 83938.68 | D110: 0 | K110: 83938.68 | L110: 83938.68 | M110: 0
A111: 4376SH | B111: 62405.28 | C111: 62405.28 | D111: 0 | K111: 62405.28 | L111: 62405.28 | M111: 0
A112: 4376SM | B112: 68515.18 | C112: 68515.18 | D112: 0 | K112: 68515.18 | L112: 68515.18 | M112: 0
A113: 438701 | H113: 181966.08 | I113: 181965.9379 | J113: 0.14214 | K113: 181966.08 | L113: 181965.9379 | M113: 0.14214
A114: 4387C8 | H114: 1042.98 | I114: 1042.938747 | J114: 0.041253 | K114: 1042.98 | L114: 1042.938747 | M114: 0.041253
A115: 4387CH | H115: 197.12 | I115: 197.12889 | J115: -0.00889 | K115: 197.12 | L115: 197.12889 | M115: -0.00889
A116: 4387RH | H116: 1042.98 | I116: 1042.938747 | J116: 0.041253 | K116: 1042.98 | L116: 1042.938747 | M116: 0.041253
A117: 438901 | H117: 7993.06 | I117: 7993.02834 | J117: 0.03166 | K117: 7993.06 | L117: 7993.02834 | M117: 0.03166
A118: 4389GF | H118: 8668.75 | I118: 8668.8 | J118: -0.05 | K118: 8668.75 | L118: 8668.8 | M118: -0.05
A119: 4389TF | H119: 202774.32 | I119: 202774.3751 | J119: -0.05510199998 | K119: 202774.32 | L119: 202774.3751 | M119: -0.05510199998
A120: 439901 | H120: 166101.85 | I120: 166101.8683 | J120: -0.01827799997 | K120: 166101.85 | L120: 166101.8683 | M120: -0.01827799997
A121: 4399PP | H121: 2354.81 | I121: 2354.80986 | J121: 0.0001400000001 | K121: 2354.81 | L121: 2354.80986 | M121: 0.0001400000001
A122: 4399SC | H122: 28255.21 | I122: 28255.19895 | J122: 0.01105 | K122: 28255.21 | L122: 28255.19895 | M122: 0.01105
A123: 440001 | H123: 59582.36 | I123: 59582.49291 | J123: -0.13291 | K123: 59582.36 | L123: 59582.49291 | M123: -0.13291
A124: 442901 | H124: 106460.42 | I124: 106460.2946 | J124: 0.1254 | K124: 106460.42 | L124: 106460.2946 | M124: 0.1254
A125: 442904 | H125: 34725.13 | I125: 34725.11759 | J125: 0.012408 | K125: 34725.13 | L125: 34725.11759 | M125: 0.012408
A126: 442908 | H126: 4489.34 | I126: 4489.243088 | J126: 0.096912 | K126: 4489.34 | L126: 4489.243088 | M126: 0.096912
A127: 4429AA | H127: 12110.2 | I127: 12110.05523 | J127: 0.144768 | K127: 12110.2 | L127: 12110.05523 | M127: 0.144768
A128: 44520P | H128: 3298.98 | I128: 3299.04504 | J128: -0.06504 | K128: 3298.98 | L128: 3299.04504 | M128: -0.06504
A129: 44520T | H129: 3324.9 | I129: 3324.82998 | J129: 0.07002 | K129: 3324.9 | L129: 3324.82998 | M129: 0.07002
A130: 44521Q | H130: 2199.24 | I130: 2199.216876 | J130: 0.023124 | K130: 2199.24 | L130: 2199.216876 | M130: 0.023124
A131: 44525T | H131: 3879.2 | I131: 3879.054072 | J131: 0.145928 | K131: 3879.2 | L131: 3879.054072 | M131: 0.145928
A132: 4452C5 | H132: 4460.78 | I132: 4460.834684 | J132: -0.054684 | K132: 4460.78 | L132: 4460.834684 | M132: -0.054684
A133: 4452C8 | H133: 19324.6 | I133: 19324.56616 | J133: 0.033836 | K133: 19324.6 | L133: 19324.56616 | M133: 0.033836
A134: 4452CP | H134: 1768.4 | I134: 1768.441236 | J134: -0.041236 | K134: 1768.4 | L134: 1768.441236 | M134: -0.041236
A135: 4452DS | H135: 8868.88 | I135: 8869.007744 | J135: -0.127744 | K135: 8868.88 | L135: 8869.007744 | M135: -0.127744
A136: 4452ES | H136: 16453.28 | I136: 16453.18429 | J136: 0.095708 | K136: 16453.28 | L136: 16453.18429 | M136: 0.095708
A137: 4452FF | H137: 12825.81 | I137: 12826.03199 | J137: -0.221994 | K137: 12825.81 | L137: 12826.03199 | M137: -0.221994
A138: 4452HB | H138: 9684.66 | I138: 9684.533626 | J138: 0.126374 | K138: 9684.66 | L138: 9684.533626 | M138: 0.126374
A139: 4452HE | H139: 13559.49 | I139: 13559.59444 | J139: -0.104444 | K139: 13559.49 | L139: 13559.59444 | M139: -0.104444
A140: 4452JQ | H140: 912.61 | I140: 912.6454 | J140: -0.0354 | K140: 912.61 | L140: 912.6454 | M140: -0.0354
A141: 4452LD | H141: 1698.56 | I141: 1698.491996 | J141: 0.068004 | K141: 1698.56 | L141: 1698.491996 | M141: 0.068004
A142: 4452LE | H142: 1953.38 | I142: 1953.438008 | J142: -0.058008 | K142: 1953.38 | L142: 1953.438008 | M142: -0.058008
A143: 4452LK | H143: 404.64 | I143: 404.578792 | J143: 0.061208 | K143: 404.64 | L143: 404.578792 | M143: 0.061208
A144: 4452LL | H144: 1352.79 | I144: 1352.687092 | J144: 0.102908 | K144: 1352.79 | L144: 1352.687092 | M144: 0.102908
A145: 4452LM | H145: 1357.44 | I145: 1357.467228 | J145: -0.027228 | K145: 1357.44 | L145: 1357.467228 | M145: -0.027228
A146: 4452NS | H146: 64335.26 | I146: 64335.431 | J146: -0.171004 | K146: 64335.26 | L146: 64335.431 | M146: -0.171004
A147: 4452SP | H147: 23149.94 | I147: 23150.10788 | J147: -0.167878 | K147: 23149.94 | L147: 23150.10788 | M147: -0.167878
A148: 4452WC | H148: 4592.68 | I148: 4592.66152 | J148: 0.01848 | K148: 4592.68 | L148: 4592.66152 | M148: 0.01848
A149: 445301 | H149: 54473.88 | I149: 54473.63857 | J149: 0.241428 | K149: 54473.88 | L149: 54473.63857 | M149: 0.241428
A150: 445501 | H150: 7526.94 | I150: 7526.982816 | J150: -0.042816 | K150: 7526.94 | L150: 7526.982816 | M150: -0.042816
A151: 4455CL | H151: 1648.66 | I151: 1648.494744 | J151: 0.165256 | K151: 1648.66 | L151: 1648.494744 | M151: 0.165256
A152: 4455CS | H152: 177600 | I152: 177600 | J152: 0 | K152: 177600 | L152: 177600 | M152: 0
A153: 4455UN | H153: 66066.23 | I153: 66066.2232 | J153: 0.006799999988 | K153: 66066.23 | L153: 66066.2232 | M153: 0.006799999988
A154: 445601 | H154: 91557.23 | I154: 91557.20246 | J154: 0.02753599999 | K154: 91557.23 | L154: 91557.20246 | M154: 0.02753599999
A155: 445701 | H155: 755.68 | I155: 755.692041 | J155: -0.012041 | K155: 755.68 | L155: 755.692041 | M155: -0.012041
A156: 44612D | H156: 4899.14 | I156: 4899.07944 | J156: 0.06056 | K156: 4899.14 | L156: 4899.07944 | M156: 0.06056
A157: 44612F | H157: 3134.5 | I157: 3134.416716 | J157: 0.083284 | K157: 3134.5 | L157: 3134.416716 | M157: 0.083284
A158: 44612M | H158: 1341.46 | I158: 1341.550206 | J158: -0.090206 | K158: 1341.46 | L158: 1341.550206 | M158: -0.090206
A159: 44612N | H159: 2115.34 | I159: 2115.507636 | J159: -0.167636 | K159: 2115.34 | L159: 2115.507636 | M159: -0.167636
A160: 44612P | H160: 4182.88 | I160: 4182.9282 | J160: -0.0482 | K160: 4182.88 | L160: 4182.9282 | M160: -0.0482
A161: 44615C | H161: 1964.88 | I161: 1964.8764 | J161: 0.0036 | K161: 1964.88 | L161: 1964.8764 | M161: 0.0036
A162: 4461BB | H162: 7117.56 | I162: 7117.592544 | J162: -0.032544 | K162: 7117.56 | L162: 7117.592544 | M162: -0.032544
A163: 4461C3 | H163: 111.36 | I163: 111.456 | J163: -0.096 | K163: 111.36 | L163: 111.456 | M163: -0.096
A164: 4461CJ | H164: 3775.36 | I164: 3775.366116 | J164: -0.006116 | K164: 3775.36 | L164: 3775.366116 | M164: -0.006116
A165: 4461CK | H165: 1308.81 | I165: 1308.673008 | J165: 0.136992 | K165: 1308.81 | L165: 1308.673008 | M165: 0.136992
A166: 4461DC | H166: 132024.15 | I166: 132024.2435 | J166: -0.09349200004 | K166: 132024.15 | L166: 132024.2435 | M166: -0.09349200004
A167: 4461EN | H167: 4805.16 | I167: 4805.108874 | J167: 0.051126 | K167: 4805.16 | L167: 4805.108874 | M167: 0.051126
A168: 4461JA | H168: 6400.61 | I168: 6400.505538 | J168: 0.104462 | K168: 6400.61 | L168: 6400.505538 | M168: 0.104462
A169: 4461JC | H169: 930.56 | I169: 930.691656 | J169: -0.131656 | K169: 930.56 | L169: 930.691656 | M169: -0.131656
A170: 4461JE | H170: 5325.14 | I170: 5325.12 | J170: 0.02 | K170: 5325.14 | L170: 5325.12 | M170: 0.02
A171: 4461KR | H171: 3150.2 | I171: 3150.096408 | J171: 0.103592 | K171: 3150.2 | L171: 3150.096408 | M171: 0.103592
A172: 4461MA | H172: 14620.07 | I172: 14620.12315 | J172: -0.053152 | K172: 14620.07 | L172: 14620.12315 | M172: -0.053152
A173: 4461OP | H173: 24387.6 | I173: 24387.54727 | J173: 0.052734 | K173: 24387.6 | L173: 24387.54727 | M173: 0.052734
A174: 4461PH | H174: 1471.28 | I174: 1471.339944 | J174: -0.059944 | K174: 1471.28 | L174: 1471.339944 | M174: -0.059944
A175: 4461PK | H175: 2267.26 | I175: 2267.381916 | J175: -0.121916 | K175: 2267.26 | L175: 2267.381916 | M175: -0.121916
A176: 4461PM | H176: 4649.13 | I176: 4649.233014 | J176: -0.103014 | K176: 4649.13 | L176: 4649.233014 | M176: -0.103014
A177: 4461PN | H177: 2627.36 | I177: 2627.386344 | J177: -0.026344 | K177: 2627.36 | L177: 2627.386344 | M177: -0.026344
A178: 4461PT | H178: 21019.08 | I178: 21019.09694 | J178: -0.016944 | K178: 21019.08 | L178: 21019.09694 | M178: -0.016944
A179: 4461RC | H179: 36009.8 | I179: 36009.83916 | J179: -0.03916 | K179: 36009.8 | L179: 36009.83916 | M179: -0.03916
A180: 4461RK | H180: 5031 | I180: 5031 | J180: 0 | K180: 5031 | L180: 5031 | M180: 0
A181: 4461SC | H181: 4021.17 | I181: 4021.103376 | J181: 0.066624 | K181: 4021.17 | L181: 4021.103376 | M181: 0.066624
A182: 4461TR | H182: 3461.14 | I182: 3461.113602 | J182: 0.026398 | K182: 3461.14 | L182: 3461.113602 | M182: 0.026398
A183: 4461WP | H183: 2846.24 | I183: 2846.333916 | J183: -0.093916 | K183: 2846.24 | L183: 2846.333916 | M183: -0.093916
A184: 4462AA | B184: 5268 | C184: 5268 | D184: 0 | K184: 5268 | L184: 5268 | M184: 0
A185: 446701 | E185: 23284.72 | F185: 23284.744 | G185: -0.023995 | K185: 23284.72 | L185: 23284.744 | M185: -0.023995
A186: 4486ME | H186: 8225.1 | I186: 8225.006652 | J186: 0.093348 | K186: 8225.1 | L186: 8225.006652 | M186: 0.093348
A187: 4502SP | B187: 498928.33 | C187: 498928.33 | D187: 0 | K187: 498928.33 | L187: 498928.33 | M187: 0
A188: 452301 | B188: 30000 | C188: 30000 | D188: 0 | H188: 337154.25 | I188: 337154.3065 | J188: -0.05645400001 | K188: 367154.25 | L188: 367154.3065 | M188: -0.05645400001
A189: 456801 | B189: 81716.85 | C189: 81716.85 | D189: 0 | K189: 81716.85 | L189: 81716.85 | M189: 0
A190: 4568PM | H190: 5116.75 | I190: 5116.885263 | J190: -0.135263 | K190: 5116.75 | L190: 5116.885263 | M190: -0.135263
A191: 458301 | E191: 39807.66 | F191: 39807.44225 | G191: 0.21775 | K191: 39807.66 | L191: 39807.44225 | M191: 0.21775
A192: 458601 | B192: 6528 | C192: 6528 | D192: 0 | K192: 6528 | L192: 6528 | M192: 0
A193: 458701 | B193: 26808.14 | C193: 26808.14 | D193: 0 | K193: 26808.14 | L193: 26808.14 | M193: 0
A194: 4608AS | H194: 10619.75 | I194: 10619.76691 | J194: -0.016912 | K194: 10619.75 | L194: 10619.76691 | M194: -0.016912
A195: 4608DB | H195: 3342.43 | I195: 3342.407972 | J195: 0.022028 | K195: 3342.43 | L195: 3342.407972 | M195: 0.022028
A196: 4608IP | H196: 17990.53 | I196: 17990.48549 | J196: 0.044512 | K196: 17990.53 | L196: 17990.48549 | M196: 0.044512
A197: 4608LE | H197: 24001.73 | I197: 24001.74098 | J197: -0.010984 | K197: 24001.73 | L197: 24001.74098 | M197: -0.010984
A198: 4608RS | H198: 14604.66 | I198: 14604.59591 | J198: 0.064088 | K198: 14604.66 | L198: 14604.59591 | M198: 0.064088
A199: 4608SC | H199: 52080.05 | I199: 52080.07951 | J199: -0.029512 | K199: 52080.05 | L199: 52080.07951 | M199: -0.029512
A200: 4608SO | H200: 150.85 | I200: 150.849628 | J200: 0.000372 | K200: 150.85 | L200: 150.849628 | M200: 0.000372
A201: 4608TC | H201: 1513.33 | I201: 1513.317646 | J201: 0.012354 | K201: 1513.33 | L201: 1513.317646 | M201: 0.012354
A202: 4651A1 | H202: 460.61 | I202: 460.50832 | J202: 0.10168 | K202: 460.61 | L202: 460.50832 | M202: 0.10168
... 867 more rows

Sheet AWO Dist PT
C3: RPTCAT | D3: Values
C4: DA | E4: FXP | G4: Total Percent to Gulf | H4: Total Amt to Gulf
A5: AWO | B5: EWO | C5: Percent to Gulf | D5: Amt to Gulf | E5: Percent to Gulf | F5: Amt to Gulf
A6: 8030AS | B6: 4030AS | E6: 0.0626 | F6: 40700.24011 | G6: 0.0626 | H6: 40700.24011
A7: 803S01 | B7: 403S01 | E7: 0.0774 | F7: 199234.9437 | G7: 0.0774 | H7: 199234.9437
A8: 804003 | B8: 404003 | E8: 0.0666 | F8: 1332 | G8: 0.0666 | H8: 1332
A9: 80401T | B9: 40401T | E9: 0.0666 | F9: 16967.92842 | G9: 0.0666 | H9: 16967.92842
A10: 8040PH | B10: 4040PH | E10: 0.0666 | F10: 180.866952 | G10: 0.0666 | H10: 180.866952
A11: 8040PM | B11: 4040PM | E11: 0.0666 | F11: 780.404148 | G11: 0.0666 | H11: 780.404148
A12: 8040PT | B12: 4040PT | E12: 0.0666 | F12: 1356.456852 | G12: 0.0666 | H12: 1356.456852
A13: 8040PV | B13: 4040PV | E13: 0.0666 | F13: 180.866952 | G13: 0.0666 | H13: 180.866952
A14: 8040RC | B14: 4040RC | E14: 0.0666 | F14: 2893.795308 | G14: 0.0666 | H14: 2893.795308
A15: 8040RE | B15: 4040RE | E15: 0.0666 | F15: 186.2136 | G15: 0.0666 | H15: 186.2136
A16: 8040RW | B16: 4040RW | E16: 0.0666 | F16: 4601.934792 | G16: 0.0666 | H16: 4601.934792
A17: 804101 | B17: 404101 | E17: 0.0755 | F17: 16100.01713 | G17: 0.0755 | H17: 16100.01713
A18: 8042OP | B18: 4042OP | E18: 0.0666 | F18: 37846.50361 | G18: 0.0666 | H18: 37846.50361
A19: 8042RM | B19: 4042RM | E19: 0.0666 | F19: 25521.68477 | G19: 0.0666 | H19: 25521.68477
A20: 8042TC | B20: 4042TC | E20: 0.0666 | F20: 23887.54188 | G20: 0.0666 | H20: 23887.54188
A21: 8042TD | B21: 4042TD | E21: 0.0666 | F21: 963.912456 | G21: 0.0666 | H21: 963.912456
A22: 8042TI | B22: 4042TI | E22: 0.0666 | F22: 3365.708256 | G22: 0.0666 | H22: 3365.708256
A23: 8042TL | B23: 4042TL | E23: 0.0666 | F23: 4214.75769 | G23: 0.0666 | H23: 4214.75769
A24: 8042TM | B24: 4042TM | E24: 0.0666 | F24: 3864.00879 | G24: 0.0666 | H24: 3864.00879
A25: 8042TV | B25: 4042TV | E25: 0.0666 | F25: 1877.928192 | G25: 0.0666 | H25: 1877.928192
A26: 804301 | B26: 404301 | E26: 0.0626 | F26: 35036.34235 | G26: 0.0626 | H26: 35036.34235
A27: 804401 | B27: 404401 | E27: 0.0755 | F27: 39980.31303 | G27: 0.0755 | H27: 39980.31303
A28: 8044XP | B28: 4044XP | E28: 0.0755 | F28: 27616.63311 | G28: 0.0755 | H28: 27616.63311
A29: 804501 | B29: 404501 | E29: 0.0626 | F29: 15586.12609 | G29: 0.0626 | H29: 15586.12609
A30: 825122 | B30: 425122 | E30: 0.0729 | F30: 8133.289704 | G30: 0.0729 | H30: 8133.289704
A31: 826801 | B31: 426801 | E31: 0.0729 | F31: 122536.1994 | G31: 0.0729 | H31: 122536.1994
A32: 8268QD | B32: 4268QD | E32: 0.0729 | F32: 45.1251 | G32: 0.0729 | H32: 45.1251
A33: 826901 | B33: 426901 | E33: 0.0846 | F33: 105228.7777 | G33: 0.0846 | H33: 105228.7777
A34: 8269BL | B34: 4269BL | E34: 0.0846 | F34: 69049.52341 | G34: 0.0846 | H34: 69049.52341
A35: 8269CL | B35: 4269CL | E35: 0.0846 | F35: 270720 | G35: 0.0846 | H35: 270720
A36: 8269CO | B36: 4269CO | E36: 0.0846 | F36: 15307.31588 | G36: 0.0846 | H36: 15307.31588
A37: 8269KC | B37: 4269KC | E37: 0.0846 | F37: 3478.84929 | G37: 0.0846 | H37: 3478.84929
A38: 8269KL | B38: 4269KL | E38: 0.0846 | F38: 20542.22091 | G38: 0.0846 | H38: 20542.22091
A39: 8269LL | B39: 4269LL | E39: 0.0846 | F39: 418770 | G39: 0.0846 | H39: 418770
A40: 8269ML | B40: 4269ML | E40: 0.0846 | F40: 84600 | G40: 0.0846 | H40: 84600
A41: 8269MP | B41: 4269MP | E41: 0.0846 | F41: 6757.199118 | G41: 0.0846 | H41: 6757.199118
A42: 8269PL | B42: 4269PL | E42: 0.0846 | F42: 42300 | G42: 0.0846 | H42: 42300
A43: 8269PR | B43: 4269PR | E43: 0.0846 | F43: 16227.07524 | G43: 0.0846 | H43: 16227.07524
A44: 8269WL | B44: 4269WL | E44: 0.0846 | F44: 8460 | G44: 0.0846 | H44: 8460
A45: 827001 | B45: 427001 | E45: 0.0729 | F45: 56986.67431 | G45: 0.0729 | H45: 56986.67431
A46: 827101 | B46: 427101 | E46: 0.0729 | F46: 17114.7381 | G46: 0.0729 | H46: 17114.7381
A47: 827201 | B47: 427201 | E47: 0.0729 | F47: 52610.13593 | G47: 0.0729 | H47: 52610.13593
A48: 827301 | B48: 427301 | E48: 0.0729 | F48: 71610.50689 | G48: 0.0729 | H48: 71610.50689
A49: 8299LD | B49: 4299LD | E49: 0.0774 | F49: 3870 | G49: 0.0774 | H49: 3870
A50: 8323CP | B50: 4323CP | E50: 0.0626 | F50: 87442.35928 | G50: 0.0626 | H50: 87442.35928
A51: 835101 | B51: 435101 | E51: 0.0693 | F51: 149494.6766 | G51: 0.0693 | H51: 149494.6766
A52: 835105 | B52: 435105 | E52: 0.0693 | F52: 35697.1729 | G52: 0.0693 | H52: 35697.1729
A53: 835106 | B53: 435106 | E53: 0.0693 | F53: 47468.38704 | G53: 0.0693 | H53: 47468.38704
A54: 835111 | B54: 435111 | E54: 0.0693 | F54: 19037.24985 | G54: 0.0693 | H54: 19037.24985
A55: 835112 | B55: 435112 | E55: 0.0693 | F55: 32848.26445 | G55: 0.0693 | H55: 32848.26445
A56: 835114 | B56: 435114 | E56: 0.0693 | F56: 21975.80616 | G56: 0.0693 | H56: 21975.80616
A57: 835115 | B57: 435115 | E57: 0.0693 | F57: 3595.317957 | G57: 0.0693 | H57: 3595.317957
A58: 835116 | B58: 435116 | E58: 0.0693 | F58: 24221.97162 | G58: 0.0693 | H58: 24221.97162
A59: 835117 | B59: 435117 | E59: 0.0693 | F59: 24062.30996 | G59: 0.0693 | H59: 24062.30996
A60: 835118 | B60: 435118 | E60: 0.0693 | F60: 12478.56063 | G60: 0.0693 | H60: 12478.56063
A61: 835120 | B61: 435120 | E61: 0.0693 | F61: 14174.3448 | G61: 0.0693 | H61: 14174.3448
A62: 8351AM | B62: 4351AM | E62: 0.0693 | F62: 18969.12102 | G62: 0.0693 | H62: 18969.12102
A63: 8351B1 | B63: 4351B1 | E63: 0.0693 | F63: 14500.8074 | G63: 0.0693 | H63: 14500.8074
A64: 8351GN | B64: 4351GN | E64: 0.0693 | F64: 109412.5746 | G64: 0.0693 | H64: 109412.5746
A65: 8351RM | B65: 4351RM | E65: 0.0693 | F65: 6656.183226 | G65: 0.0693 | H65: 6656.183226
A66: 8351T2 | B66: 4351T2 | E66: 0.0693 | F66: 450.436833 | G66: 0.0693 | H66: 450.436833
A67: 835201 | B67: 435201 | E67: 0.0938 | F67: 214020.4265 | G67: 0.0938 | H67: 214020.4265
A68: 8352GH | B68: 4352GH | E68: 0.0938 | F68: 65927.66393 | G68: 0.0938 | H68: 65927.66393
A69: 8352GN | B69: 4352GN | E69: 0.0938 | F69: 49364.61939 | G69: 0.0938 | H69: 49364.61939
A70: 835601 | B70: 435601 | E70: 0.0666 | F70: 20881.53423 | G70: 0.0666 | H70: 20881.53423
A71: 835801 | B71: 435801 | E71: 0.0666 | F71: 72158.36873 | G71: 0.0666 | H71: 72158.36873
A72: 836201 | B72: 436201 | E72: 0.0663 | F72: 57657.47875 | G72: 0.0663 | H72: 57657.47875
A73: 83622A | B73: 43622A | E73: 0.0663 | F73: 486.975489 | G73: 0.0663 | H73: 486.975489
A74: 8362LM | B74: 4362LM | E74: 0.0663 | F74: 3547.05 | G74: 0.0663 | H74: 3547.05
A75: 836501 | B75: 436501 | E75: 0.0836 | F75: 221033.5754 | G75: 0.0836 | H75: 221033.5754
A76: 8365CS | B76: 4365CS | E76: 0.0836 | F76: 1725.13198 | G76: 0.0836 | H76: 1725.13198
A77: 8365DP | B77: 4365DP | E77: 0.0836 | F77: 10450 | G77: 0.0836 | H77: 10450
A78: 8365FA | B78: 4365FA | E78: 0.0836 | F78: 5646.491972 | G78: 0.0836 | H78: 5646.491972
A79: 837501 | B79: 437501 | E79: 0.0663 | F79: 362486.3638 | G79: 0.0663 | H79: 362486.3638
A80: 838701 | B80: 438701 | E80: 0.0729 | F80: 181965.9379 | G80: 0.0729 | H80: 181965.9379
A81: 8387C8 | B81: 4387C8 | E81: 0.0729 | F81: 1042.938747 | G81: 0.0729 | H81: 1042.938747
A82: 8387CH | B82: 4387CH | E82: 0.0729 | F82: 197.12889 | G82: 0.0729 | H82: 197.12889
A83: 8387RH | B83: 4387RH | E83: 0.0729 | F83: 1042.938747 | G83: 0.0729 | H83: 1042.938747
A84: 8389TF | B84: 4389TF | E84: 0.0626 | F84: 202774.3751 | G84: 0.0626 | H84: 202774.3751
A85: 839901 | B85: 439901 | E85: 0.0774 | F85: 166101.8683 | G85: 0.0774 | H85: 166101.8683
A86: 8399PP | B86: 4399PP | E86: 0.0774 | F86: 2354.80986 | G86: 0.0774 | H86: 2354.80986
A87: 8399SC | B87: 4399SC | E87: 0.0774 | F87: 28255.19895 | G87: 0.0774 | H87: 28255.19895
A88: 840001 | B88: 440001 | E88: 0.0774 | F88: 59582.49291 | G88: 0.0774 | H88: 59582.49291
A89: 842901 | B89: 442901 | E89: 0.0836 | F89: 106460.2946 | G89: 0.0836 | H89: 106460.2946
A90: 842904 | B90: 442904 | E90: 0.0836 | F90: 34725.11759 | G90: 0.0836 | H90: 34725.11759
A91: 842908 | B91: 442908 | E91: 0.0836 | F91: 4489.243088 | G91: 0.0836 | H91: 4489.243088
A92: 8429AA | B92: 4429AA | E92: 0.0836 | F92: 12110.05523 | G92: 0.0836 | H92: 12110.05523
A93: 84520P | B93: 44520P | E93: 0.0626 | F93: 3299.04504 | G93: 0.0626 | H93: 3299.04504
A94: 84520T | B94: 44520T | E94: 0.0626 | F94: 3324.82998 | G94: 0.0626 | H94: 3324.82998
A95: 84521Q | B95: 44521Q | E95: 0.0626 | F95: 2199.216876 | G95: 0.0626 | H95: 2199.216876
A96: 84525T | B96: 44525T | E96: 0.0626 | F96: 3879.054072 | G96: 0.0626 | H96: 3879.054072
A97: 8452C5 | B97: 4452C5 | E97: 0.0626 | F97: 4460.834684 | G97: 0.0626 | H97: 4460.834684
A98: 8452C8 | B98: 4452C8 | E98: 0.0626 | F98: 19324.56616 | G98: 0.0626 | H98: 19324.56616
A99: 8452CP | B99: 4452CP | E99: 0.0626 | F99: 1768.441236 | G99: 0.0626 | H99: 1768.441236
A100: 8452DS | B100: 4452DS | E100: 0.0626 | F100: 8869.007744 | G100: 0.0626 | H100: 8869.007744
A101: 8452ES | B101: 4452ES | E101: 0.0626 | F101: 16453.18429 | G101: 0.0626 | H101: 16453.18429
A102: 8452FF | B102: 4452FF | E102: 0.0626 | F102: 12826.03199 | G102: 0.0626 | H102: 12826.03199
A103: 8452HB | B103: 4452HB | E103: 0.0626 | F103: 9684.533626 | G103: 0.0626 | H103: 9684.533626
A104: 8452HE | B104: 4452HE | E104: 0.0626 | F104: 13559.59444 | G104: 0.0626 | H104: 13559.59444
A105: 8452JQ | B105: 4452JQ | E105: 0.0626 | F105: 912.6454 | G105: 0.0626 | H105: 912.6454
A106: 8452LD | B106: 4452LD | E106: 0.0626 | F106: 1698.491996 | G106: 0.0626 | H106: 1698.491996
A107: 8452LE | B107: 4452LE | E107: 0.0626 | F107: 1953.438008 | G107: 0.0626 | H107: 1953.438008
A108: 8452LK | B108: 4452LK | E108: 0.0626 | F108: 404.578792 | G108: 0.0626 | H108: 404.578792
A109: 8452LL | B109: 4452LL | E109: 0.0626 | F109: 1352.687092 | G109: 0.0626 | H109: 1352.687092
A110: 8452LM | B110: 4452LM | E110: 0.0626 | F110: 1357.467228 | G110: 0.0626 | H110: 1357.467228
A111: 8452NS | B111: 4452NS | E111: 0.0626 | F111: 64335.431 | G111: 0.0626 | H111: 64335.431
A112: 8452SP | B112: 4452SP | E112: 0.0626 | F112: 23150.10788 | G112: 0.0626 | H112: 23150.10788
A113: 8452WC | B113: 4452WC | E113: 0.0626 | F113: 4592.66152 | G113: 0.0626 | H113: 4592.66152
A114: 845301 | B114: 445301 | E114: 0.0774 | F114: 54473.63857 | G114: 0.0774 | H114: 54473.63857
A115: 845501 | B115: 445501 | E115: 0.0444 | F115: 7526.982816 | G115: 0.0444 | H115: 7526.982816
A116: 8455CL | B116: 4455CL | E116: 0.0444 | F116: 1648.494744 | G116: 0.0444 | H116: 1648.494744
A117: 8455CS | B117: 4455CS | E117: 0.0444 | F117: 177600 | G117: 0.0444 | H117: 177600
A118: 8455UN | B118: 4455UN | E118: 0.0444 | F118: 66066.2232 | G118: 0.0444 | H118: 66066.2232
A119: 845601 | B119: 445601 | E119: 0.0663 | F119: 91557.20246 | G119: 0.0663 | H119: 91557.20246
A120: 845701 | B120: 445701 | E120: 0.0663 | F120: 755.692041 | G120: 0.0663 | H120: 755.692041
A121: 84612D | B121: 44612D | E121: 0.0774 | F121: 4899.07944 | G121: 0.0774 | H121: 4899.07944
A122: 84612F | B122: 44612F | E122: 0.0774 | F122: 3134.416716 | G122: 0.0774 | H122: 3134.416716
A123: 84612M | B123: 44612M | E123: 0.0774 | F123: 1341.550206 | G123: 0.0774 | H123: 1341.550206
A124: 84612N | B124: 44612N | E124: 0.0774 | F124: 2115.507636 | G124: 0.0774 | H124: 2115.507636
A125: 84612P | B125: 44612P | E125: 0.0774 | F125: 4182.9282 | G125: 0.0774 | H125: 4182.9282
A126: 84615C | B126: 44615C | E126: 0.0774 | F126: 1964.8764 | G126: 0.0774 | H126: 1964.8764
A127: 8461BB | B127: 4461BB | E127: 0.0774 | F127: 7117.592544 | G127: 0.0774 | H127: 7117.592544
A128: 8461C3 | B128: 4461C3 | E128: 0.0774 | F128: 111.456 | G128: 0.0774 | H128: 111.456
A129: 8461CJ | B129: 4461CJ | E129: 0.0774 | F129: 3775.366116 | G129: 0.0774 | H129: 3775.366116
A130: 8461CK | B130: 4461CK | E130: 0.0774 | F130: 1308.673008 | G130: 0.0774 | H130: 1308.673008
A131: 8461DC | B131: 4461DC | E131: 0.0774 | F131: 132024.2435 | G131: 0.0774 | H131: 132024.2435
A132: 8461EN | B132: 4461EN | E132: 0.0774 | F132: 4805.108874 | G132: 0.0774 | H132: 4805.108874
A133: 8461JA | B133: 4461JA | E133: 0.0774 | F133: 6400.505538 | G133: 0.0774 | H133: 6400.505538
A134: 8461JC | B134: 4461JC | E134: 0.0774 | F134: 930.691656 | G134: 0.0774 | H134: 930.691656
A135: 8461JE | B135: 4461JE | E135: 0.0774 | F135: 5325.12 | G135: 0.0774 | H135: 5325.12
A136: 8461KR | B136: 4461KR | E136: 0.0774 | F136: 3150.096408 | G136: 0.0774 | H136: 3150.096408
A137: 8461MA | B137: 4461MA | E137: 0.0774 | F137: 14620.12315 | G137: 0.0774 | H137: 14620.12315
A138: 8461OP | B138: 4461OP | E138: 0.0774 | F138: 24387.54727 | G138: 0.0774 | H138: 24387.54727
A139: 8461PH | B139: 4461PH | E139: 0.0774 | F139: 1471.339944 | G139: 0.0774 | H139: 1471.339944
A140: 8461PK | B140: 4461PK | E140: 0.0774 | F140: 2267.381916 | G140: 0.0774 | H140: 2267.381916
A141: 8461PM | B141: 4461PM | E141: 0.0774 | F141: 4649.233014 | G141: 0.0774 | H141: 4649.233014
A142: 8461PN | B142: 4461PN | E142: 0.0774 | F142: 2627.386344 | G142: 0.0774 | H142: 2627.386344
A143: 8461PT | B143: 4461PT | E143: 0.0774 | F143: 21019.09694 | G143: 0.0774 | H143: 21019.09694
A144: 8461RC | B144: 4461RC | E144: 0.0774 | F144: 36009.83916 | G144: 0.0774 | H144: 36009.83916
A145: 8461RK | B145: 4461RK | E145: 0.0774 | F145: 5031 | G145: 0.0774 | H145: 5031
A146: 8461SC | B146: 4461SC | E146: 0.0774 | F146: 4021.103376 | G146: 0.0774 | H146: 4021.103376
A147: 8461TR | B147: 4461TR | E147: 0.0774 | F147: 3461.113602 | G147: 0.0774 | H147: 3461.113602
A148: 8461WP | B148: 4461WP | E148: 0.0774 | F148: 2846.333916 | G148: 0.0774 | H148: 2846.333916
A149: 8464 | B149: 446452 | C149: 0.0953 | D149: 0 | G149: 0.0953 | H149: 0
A150: 8467 | B150: 446701 | C150: 0.0685 | D150: 23284.744 | G150: 0.0685 | H150: 23284.744
A151: 8486ME | B151: 4486ME | E151: 0.0729 | F151: 8225.006652 | G151: 0.0729 | H151: 8225.006652
A152: 852301 | B152: 452301 | E152: 0.0846 | F152: 337154.3065 | G152: 0.0846 | H152: 337154.3065
A153: 8568PM | B153: 4568PM | E153: 0.0729 | F153: 5116.885263 | G153: 0.0729 | H153: 5116.885263
A154: 8583 | B154: 458301 | C154: 0.025 | D154: 39807.44225 | G154: 0.025 | H154: 39807.44225
A155: 8608AS | B155: 4608AS | E155: 0.0458 | F155: 10619.76691 | G155: 0.0458 | H155: 10619.76691
A156: 8608DB | B156: 4608DB | E156: 0.0458 | F156: 3342.407972 | G156: 0.0458 | H156: 3342.407972
A157: 8608IP | B157: 4608IP | E157: 0.0458 | F157: 17990.48549 | G157: 0.0458 | H157: 17990.48549
A158: 8608LE | B158: 4608LE | E158: 0.0458 | F158: 24001.74098 | G158: 0.0458 | H158: 24001.74098
A159: 8608RS | B159: 4608RS | E159: 0.0458 | F159: 14604.59591 | G159: 0.0458 | H159: 14604.59591
A160: 8608SC | B160: 4608SC | E160: 0.0458 | F160: 52080.07951 | G160: 0.0458 | H160: 52080.07951
A161: 8608SO | B161: 4608SO | E161: 0.0458 | F161: 150.849628 | G161: 0.0458 | H161: 150.849628
A162: 8608TC | B162: 4608TC | E162: 0.0458 | F162: 1513.317646 | G162: 0.0458 | H162: 1513.317646
A163: 8651A1 | B163: 4651A1 | E163: 0.076 | F163: 460.50832 | G163: 0.076 | H163: 460.50832
A164: 8651S1 | B164: 4651S1 | E164: 0.076 | F164: 384.161 | G164: 0.076 | H164: 384.161
A165: 8651W1 | B165: 4651W1 | E165: 0.076 | F165: 3402.89164 | G165: 0.076 | H165: 3402.89164
A166: 8661M1 | B166: 4661M1 | E166: 0.0973 | F166: 1749.88212 | G166: 0.0973 | H166: 1749.88212
A167: 8661MB | B167: 4661MB | E167: 0.0973 | F167: 103592.7004 | G167: 0.0973 | H167: 103592.7004
A168: 8661MS | B168: 4661MS | E168: 0.0973 | F168: 7553.203427 | G168: 0.0973 | H168: 7553.203427
A169: 8661MT | B169: 4661MT | E169: 0.0973 | F169: 43568.16209 | G169: 0.0973 | H169: 43568.16209
A170: 8661RW | B170: 4661RW | E170: 0.0973 | F170: 17946.83224 | G170: 0.0973 | H170: 17946.83224
A171: 8661UP | B171: 4661UP | E171: 0.0973 | F171: 194.6 | G171: 0.0973 | H171: 194.6
A172: 8661W1 | B172: 4661W1 | E172: 0.0973 | F172: 1967.512057 | G172: 0.0973 | H172: 1967.512057
A173: 8661W9 | B173: 4661W9 | E173: 0.0973 | F173: 217.627991 | G173: 0.0973 | H173: 217.627991
A174: 866909 | B174: 466909 | E174: 0.0729 | F174: 402862.4725 | G174: 0.0729 | H174: 402862.4725
A175: 8669NM | B175: 4669NM | E175: 0.0729 | F175: 160.1613 | G175: 0.0729 | H175: 160.1613
A176: 8669ST | B176: 4669ST | E176: 0.0729 | F176: 2904.453369 | G176: 0.0729 | H176: 2904.453369
A177: 8675EM | B177: 4675EM | E177: 0.0729 | F177: 44482.08774 | G177: 0.0729 | H177: 44482.08774
A178: 8675FA | B178: 4675FA | E178: 0.0729 | F178: 8203.989582 | G178: 0.0729 | H178: 8203.989582
A179: 8675FR | B179: 4675FR | E179: 0.0729 | F179: 160.1613 | G179: 0.0729 | H179: 160.1613
A180: 8675MA | B180: 4675MA | E180: 0.0729 | F180: 63129.95804 | G180: 0.0729 | H180: 63129.95804
A181: 8688 | B181: 47APLD | C181: 0.1543 | D181: 2484.015523 | G181: 0.1543 | H181: 2484.015523
A182: 8689 | B182: 47APLD | C182: 0.1543 | D182: 0 | G182: 0.1543 | H182: 0
A183: 86AC | B183: 46COCD | C183: 0.015 | D183: 4145.48295 | G183: 0.015 | H183: 4145.48295
A184: 86AD01 | B184: 46AD01 | E184: 0.0783 | F184: 52017.1956 | G184: 0.0783 | H184: 52017.1956
A185: 86AE | B185: 46COTA | C185: 0.06194 | D185: 102399.5809 | G185: 0.06194 | H185: 102399.5809
A186: 86AP01 | B186: 46AP01 | E186: 0.0783 | F186: 9205.459299 | G186: 0.0783 | H186: 9205.459299
A187: 86APPO | B187: 46APPO | E187: 0.0783 | F187: 1002.5532 | G187: 0.0783 | H187: 1002.5532
A188: 86APPP | B188: 46APPP | E188: 0.0783 | F188: 4543.150788 | G188: 0.0783 | H188: 4543.150788
A189: 86APSP | B189: 46APSP | E189: 0.0783 | F189: 436.985253 | G189: 0.0783 | H189: 436.985253
A190: 86AT01 | B190: 46AT01 | E190: 0.0973 | F190: 67206.51988 | G190: 0.0973 | H190: 67206.51988
A191: 86AT02 | B191: 46AT02 | E191: 0.0973 | F191: 207917.8168 | G191: 0.0973 | H191: 207917.8168
A192: 86ATOV | B192: 46ATOV | E192: 0.0973 | F192: 22385.73024 | G192: 0.0973 | H192: 22385.73024
A193: 86ATUP | B193: 46ATUP | E193: 0.0973 | F193: 2455.350905 | G193: 0.0973 | H193: 2455.350905
A194: 86AV | B194: 46XA04 | C194: 0.0721 | D194: 1547.363335 | G194: 0.0721 | H194: 1547.363335
A195: 86B1 | B195: 4651B1 | C195: 0.0714 | D195: 0 | G195: 0.0714 | H195: 0
A196: 86B9 | B196: 4651B9 | C196: 0.0714 | D196: 0 | G196: 0.0714 | H196: 0
A197: 86C1 | B197: 47APLF | C197: 0.0773 | D197: 0 | G197: 0.0773 | H197: 0
A198: 86C2 | B198: 47APLF | C198: 0.0773 | D198: 0 | G198: 0.0773 | H198: 0
A199: 86CAOP | B199: 46CAOP | E199: 0.0973 | F199: 49246.83528 | G199: 0.0973 | H199: 49246.83528
A200: 86CAOS | B200: 46CAOS | E200: 0.0973 | F200: 43084.69882 | G200: 0.0973 | H200: 43084.69882
A201: 86CC10 | B201: 46CC10 | E201: 0.0973 | F201: 14247.61078 | G201: 0.0973 | H201: 14247.61078
A202: 86CC20 | B202: 46CC20 | E202: 0.0973 | F202: 18000.5 | G202: 0.0973 | H202: 18000.5
... 746 more rows

Sheet Gulf Billings
P2: Gulf Billings from SCS compared to Alloc Work Order Allocation distributions (Bottom Up)
A3: EWO | B3: AWO | C3: Journal Name | D3: Resource Type | E3: AI | F3: Budget Version | G3: Batch ID | H3: Amount | J3: EWO | K3: AWO | L3: AI | M3: TYPE | N3: Sum of Amount | P3: EWO | Q3: AWO | R3: AI | S3: TYPE | T3: RPTCAT | U3: Sum of Amount | V3: Calculated | W3: Diff
A4: 4001GD | B4: =IF(OR(LEFT(C4,1)="F",LEFT(C4,1)="D"),RIGHT(C4,4),"") ->  | C4: A-E&CS FB | D4: BBO | E4: 00 | F4: 2011-SCS-Original Budget-C | G4: 173 | H4: 2379.52 | J4: 4001GD | L4: 00 | M4: DIRECT | N4: 19369.55 | P4: =IF(J4="",P3,J4) -> 4001GD | Q4: =IF(K4="",Q3,K4) -> AWO | R4: =IF(L4="",R3,L4) -> 00 | S4: =IF(M4="",S3,M4) -> DIRECT | T4: =(IF(LEFT(S4,2)="DA","DA",S4)) -> DIRECT | U4: =IF(N4="",U3,N4) -> 19369.55 | V4: =IF(S4="DIRECT",U4,VLOOKUP(P4&Q4,GULFDIST,8,0)) -> 19369.55 | W4: =U4-V4 -> 0
A5: 4001GD | B5: =IF(OR(LEFT(C5,1)="F",LEFT(C5,1)="D"),RIGHT(C5,4),"") ->  | C5: A-E&CS PSP | D5: BPS | E5: 00 | F5: 2011-SCS-Original Budget-C | G5: 173 | H5: 125.08 | J5: 4001ND | L5: 00 | M5: DIRECT | N5: 80478.44 | P5: =IF(J5="",P4,J5) -> 4001ND | Q5: AWO | R5: 00 | S5: DIRECT | T5: =(IF(LEFT(S5,2)="DA","DA",S5)) -> DIRECT | U5: 80478.44 | V5: 80478.44 | W5: =U5-V5 -> 0
A6: 4001GD | C6: A-E&CS ESO | D6: BSO | E6: 00 | F6: 2011-SCS-Original Budget-C | G6: 173 | H6: 187.3 | J6: 4030AS | K6: 8030 | L6: HD | M6: FXP | N6: 40700.22 | P6: 4030AS | Q6: 8030 | R6: HD | S6: FXP | T6: FXP | U6: 40700.22 | V6: 40700.24011 | W6: -0.020108
A7: 4001GD | C7: A-E&CS OH CORP | D7: CAG | E7: 00 | F7: 2011-SCS-Original Budget-C | G7: 173 | H7: 1449.05 | K7: 9030 | L7: HC | M7: FXP | N7: 69107.43 | P7: 4030AS | Q7: 9030 | R7: HC | S7: FXP | T7: FXP | U7: 69107.43 | V7: 69107.114 | W7: 0.316002
A8: 4001GD | C8: A-E&CS OH CORP LL | D8: CAG | E8: 00 | F8: 2011-SCS-Original Budget-C | G8: 173 | H8: 29.03 | J8: 4030MU | K8: 9030 | L8: HC | M8: FXP | N8: 3620.4 | P8: 4030MU | Q8: 9030 | R8: HC | S8: FXP | T8: FXP | U8: 3620.4 | V8: 3620.4624 | W8: -0.0624
A9: 4001GD | C9: A-E&CS OH CC | D9: CCC | E9: 00 | F9: 2011-SCS-Original Budget-C | G9: 173 | H9: 3127.46 | J9: 4030SS | K9: 9030 | L9: HC | M9: FXP | N9: 387.05 | P9: 4030SS | Q9: 9030 | R9: HC | S9: FXP | T9: FXP | U9: 387.05 | V9: 387 | W9: 0.05
A10: 4001GD | C10: A-E&CS OH CC LL | D10: CCC | E10: 00 | F10: 2011-SCS-Original Budget-C | G10: 173 | H10: 62.61 | J10: 403S01 | K10: 803S | L10: HC | M10: FXP | N10: 199234.97 | P10: 403S01 | Q10: 803S | R10: HC | S10: FXP | T10: FXP | U10: 199234.97 | V10: 199234.9437 | W10: 0.02628799999
A11: 4001GD | C11: A-E&CS PT | D11: CPT | E11: 00 | F11: 2011-SCS-Original Budget-C | G11: 173 | H11: 688.08 | J11: 404003 | K11: 8040 | L11: HB | M11: FXP | N11: 1332 | P11: 404003 | Q11: 8040 | R11: HB | S11: FXP | T11: FXP | U11: 1332 | V11: 1332 | W11: 0
A12: 4001GD | C12: A-E&CS MOVE-EEM | D12: EEM | E12: 00 | F12: 2011-SCS-Original Budget-C | G12: 173 | H12: -1000 | J12: 40401T | K12: 8040 | L12: HB | M12: FXP | N12: 16967.84 | P12: 40401T | Q12: 8040 | R12: HB | S12: FXP | T12: FXP | U12: 16967.84 | V12: 16967.92842 | W12: -0.08842
A13: 4001GD | C13: E&CS BUDGET FCST | D13: EEM | E13: 00 | F13: 2011-SCS-Original Budget-C | G13: 173 | H13: 1000 | J13: 4040CC | K13: 90FM | L13: DA | M13: DA | N13: 79822.94 | P13: 4040CC | Q13: 90FM | R13: DA | S13: DA | T13: DA | U13: 79822.94 | V13: 79823.02001 | W13: -0.08000799999
A14: 4001GD | C14: A-E&CS Exp-Meals | D14: EHT | E14: 00 | F14: 2011-SCS-Original Budget-C | G14: 173 | H14: 399.98 | J14: 4040HG | K14: 98JG | L14: DA | M14: DAX | N14: 3491.44 | P14: 4040HG | Q14: 98JG | R14: DA | S14: DAX | T14: DA | U14: 3491.44 | V14: 3491.5049 | W14: -0.0649
A15: 4001GD | C15: A-E&CS EXP-MEALS | D15: EMN | E15: 00 | F15: 2011-SCS-Original Budget-C | G15: 173 | H15: -399.98 | J15: 4040MP | K15: 98JG | L15: DA | M15: DAX | N15: 59160.2 | P15: 4040MP | Q15: 98JG | R15: DA | S15: DAX | T15: DA | U15: 59160.2 | V15: 59160.1062 | W15: 0.0938
A16: 4001GD | C16: A-E&CS MOVE-EEM | D16: EMN | E16: 00 | F16: 2011-SCS-Original Budget-C | G16: 173 | H16: 1000 | J16: 4040PH | K16: 8040 | L16: HB | M16: FXP | N16: 180.84 | P16: 4040PH | Q16: 8040 | R16: HB | S16: FXP | T16: FXP | U16: 180.84 | V16: 180.866952 | W16: -0.026952
A17: 4001GD | C17: A-E&CS MOVE | D17: KLO | E17: 00 | F17: 2011-SCS-Original Budget-C | G17: 173 | H17: 18369.55 | J17: 4040PM | K17: 8040 | L17: HB | M17: FXP | N17: 780.52 | P17: 4040PM | Q17: 8040 | R17: HB | S17: FXP | T17: FXP | U17: 780.52 | V17: 780.404148 | W17: 0.115852
A18: 4001GD | C18: A-E&CS-LBR ALL | D18: KLO | E18: 00 | F18: 2011-SCS-Original Budget-C | G18: 173 | H18: -18160.85 | J18: 4040PT | K18: 8040 | L18: HB | M18: FXP | N18: 1356.6 | P18: 4040PT | Q18: 8040 | R18: HB | S18: FXP | T18: FXP | U18: 1356.6 | V18: 1356.456852 | W18: 0.143148
A19: 4001GD | C19: A-E&CS PDP | D19: LPD | E19: 00 | F19: 2011-SCS-Original Budget-C | G19: 173 | H19: 165.2 | J19: 4040PV | K19: 8040 | L19: HB | M19: FXP | N19: 180.84 | P19: 4040PV | Q19: 8040 | R19: HB | S19: FXP | T19: FXP | U19: 180.84 | V19: 180.866952 | W19: -0.026952
A20: 4001GD | C20: A-E&CS PPP I | D20: LPN | E20: 00 | F20: 2011-SCS-Original Budget-C | G20: 173 | H20: 1770.38 | J20: 4040RC | K20: 8040 | L20: HB | M20: FXP | N20: 2893.74 | P20: 4040RC | Q20: 8040 | R20: HB | S20: FXP | T20: FXP | U20: 2893.74 | V20: 2893.795308 | W20: -0.055308
A21: 4001GD | C21: A-E&CS FT LBR | D21: LSN | E21: 00 | F21: 2011-SCS-Original Budget-C | G21: 173 | H21: 7079.78 | J21: 4040RE | K21: 8040 | L21: HB | M21: FXP | N21: 186.24 | P21: 4040RE | Q21: 8040 | R21: HB | S21: FXP | T21: FXP | U21: 186.24 | V21: 186.2136 | W21: 0.0264
A22: 4001GD | C22: A-E&CS MOVE | D22: LSN | E22: 00 | F22: 2011-SCS-Original Budget-C | G22: 173 | H22: -18369.55 | J22: 4040RW | K22: 8040 | L22: HB | M22: FXP | N22: 4601.9 | P22: 4040RW | Q22: 8040 | R22: HB | S22: FXP | T22: FXP | U22: 4601.9 | V22: 4601.934792 | W22: -0.034792
A23: 4001GD | C23: A-E&CS SVO | D23: LSN | E23: 00 | F23: 2011-SCS-Original Budget-C | G23: 173 | H23: 1097.36 | J23: 404101 | K23: 8041 | L23: ET | M23: FXP | N23: 16100.28 | P23: 404101 | Q23: 8041 | R23: ET | S23: FXP | T23: FXP | U23: 16100.28 | V23: 16100.01713 | W23: 0.26287
A24: 4001GD | C24: E&CS BUDGET FCST | D24: LSN | E24: 00 | F24: 2011-SCS-Original Budget-C | G24: 173 | H24: 18369.55 | J24: 4042OP | K24: 8042 | L24: HB | M24: FXP | N24: 37846.52 | P24: 4042OP | Q24: 8042 | R24: HB | S24: FXP | T24: FXP | U24: 37846.52 | V24: 37846.50361 | W24: 0.016388
A25: 4001ND | C25: A-E&CS FB | D25: BBO | E25: 00 | F25: 2011-SCS-Original Budget-C | G25: 173 | H25: 9518.18 | J25: 4042RM | K25: 8042 | L25: HB | M25: FXP | N25: 25521.73 | P25: 4042RM | Q25: 8042 | R25: HB | S25: FXP | T25: FXP | U25: 25521.73 | V25: 25521.68477 | W25: 0.045232
A26: 4001ND | C26: A-E&CS PSP | D26: BPS | E26: 00 | F26: 2011-SCS-Original Budget-C | G26: 173 | H26: 500.47 | J26: 4042TC | K26: 8042 | L26: HB | M26: FXP | N26: 23887.56 | P26: 4042TC | Q26: 8042 | R26: HB | S26: FXP | T26: FXP | U26: 23887.56 | V26: 23887.54188 | W26: 0.01812
A27: 4001ND | C27: A-E&CS ESO | D27: BSO | E27: 00 | F27: 2011-SCS-Original Budget-C | G27: 173 | H27: 749 | J27: 4042TD | K27: 8042 | L27: HB | M27: FXP | N27: 963.88 | P27: 4042TD | Q27: 8042 | R27: HB | S27: FXP | T27: FXP | U27: 963.88 | V27: 963.912456 | W27: -0.032456
A28: 4001ND | C28: A-E&CS OH CORP | D28: CAG | E28: 00 | F28: 2011-SCS-Original Budget-C | G28: 173 | H28: 5796.33 | J28: 4042TI | K28: 8042 | L28: HB | M28: FXP | N28: 3365.56 | P28: 4042TI | Q28: 8042 | R28: HB | S28: FXP | T28: FXP | U28: 3365.56 | V28: 3365.708256 | W28: -0.148256
A29: 4001ND | C29: A-E&CS OH CORP LL | D29: CAG | E29: 00 | F29: 2011-SCS-Original Budget-C | G29: 173 | H29: 116.02 | J29: 4042TL | K29: 8042 | L29: HB | M29: FXP | N29: 4214.7 | P29: 4042TL | Q29: 8042 | R29: HB | S29: FXP | T29: FXP | U29: 4214.7 | V29: 4214.75769 | W29: -0.05769
A30: 4001ND | C30: A-E&CS OH CC | D30: CCC | E30: 00 | F30: 2011-SCS-Original Budget-C | G30: 173 | H30: 12510.03 | J30: 4042TM | K30: 8042 | L30: HB | M30: FXP | N30: 3864.01 | P30: 4042TM | Q30: 8042 | R30: HB | S30: FXP | T30: FXP | U30: 3864.01 | V30: 3864.00879 | W30: 0.00121
A31: 4001ND | C31: A-E&CS OH CC LL | D31: CCC | E31: 00 | F31: 2011-SCS-Original Budget-C | G31: 173 | H31: 250.52 | J31: 4042TV | K31: 8042 | L31: HB | M31: FXP | N31: 1877.96 | P31: 4042TV | Q31: 8042 | R31: HB | S31: FXP | T31: FXP | U31: 1877.96 | V31: 1877.928192 | W31: 0.031808
A32: 4001ND | C32: A-E&CS PT | D32: CPT | E32: 00 | F32: 2011-SCS-Original Budget-C | G32: 173 | H32: 2752.18 | J32: 404301 | K32: 8043 | L32: HD | M32: FXP | N32: 35036.5 | P32: 404301 | Q32: 8043 | R32: HD | S32: FXP | T32: FXP | U32: 35036.5 | V32: 35036.34235 | W32: 0.157652
A33: 4001ND | C33: A-E&CS MOVE-EEM | D33: EEM | E33: 00 | F33: 2011-SCS-Original Budget-C | G33: 173 | H33: -5000 | J33: 404302 | L33: 00 | M33: DIRECT | N33: 2206.4 | P33: 404302 | Q33: 8043 | R33: 00 | S33: DIRECT | T33: DIRECT | U33: 2206.4 | V33: 2206.4 | W33: 0
A34: 4001ND | C34: E&CS BUDGET FCST | D34: EEM | E34: 00 | F34: 2011-SCS-Original Budget-C | G34: 173 | H34: 5000 | J34: 404401 | K34: 8044 | L34: ET | M34: FXP | N34: 39980.32 | P34: 404401 | Q34: 8044 | R34: ET | S34: FXP | T34: FXP | U34: 39980.32 | V34: 39980.31303 | W34: 0.006965000008
A35: 4001ND | C35: A-E&CS Exp-Meals | D35: EHT | E35: 00 | F35: 2011-SCS-Original Budget-C | G35: 173 | H35: 2000.02 | J35: 404402 | L35: 00 | M35: DIRECT | N35: 3074 | P35: 404402 | Q35: 8044 | R35: 00 | S35: DIRECT | T35: DIRECT | U35: 3074 | V35: 3074 | W35: 0
A36: 4001ND | C36: A-E&CS EXP-MEALS | D36: EMN | E36: 00 | F36: 2011-SCS-Original Budget-C | G36: 173 | H36: -2000.02 | K36: 86PL | L36: DA | M36: DA | N36: 277.1 | P36: 404402 | Q36: 86PL | R36: DA | S36: DA | T36: DA | U36: 277.1 | V36: 277.0535 | W36: 0.0465
A37: 4001ND | C37: A-E&CS MOVE-EEM | D37: EMN | E37: 00 | F37: 2011-SCS-Original Budget-C | G37: 173 | H37: 5000 | J37: 4044XP | K37: 8044 | L37: ET | M37: FXP | N37: 27616.77 | P37: 4044XP | Q37: 8044 | R37: ET | S37: FXP | T37: FXP | U37: 27616.77 | V37: 27616.63311 | W37: 0.13689
A38: 4001ND | C38: A-E&CS MOVE | D38: KLO | E38: 00 | F38: 2011-SCS-Original Budget-C | G38: 173 | H38: 73478.31 | J38: 404501 | K38: 8045 | L38: HD | M38: FXP | N38: 15586.06 | P38: 404501 | Q38: 8045 | R38: HD | S38: FXP | T38: FXP | U38: 15586.06 | V38: 15586.12609 | W38: -0.06609
A39: 4001ND | C39: A-E&CS-LBR ALL | D39: KLO | E39: 00 | F39: 2011-SCS-Original Budget-C | G39: 173 | H39: -72643.3 | J39: 40MRGE | K39: 90MR | L39: HC | M39: FXP | N39: 263.04 | P39: 40MRGE | Q39: 90MR | R39: HC | S39: FXP | T39: FXP | U39: 263.04 | V39: 263.0826 | W39: -0.0426
A40: 4001ND | C40: E&CS BUDGET FCST | D40: KPT | E40: 00 | F40: 2011-SCS-Original Budget-C | G40: 173 | H40: 2000 | J40: 4100IV | L40: 00 | M40: DIRECT | N40: 142876.59 | P40: 4100IV | Q40: 90MR | R40: 00 | S40: DIRECT | T40: DIRECT | U40: 142876.59 | V40: 142876.59 | W40: 0
A41: 4001ND | C41: A-E&CS PDP | D41: LPD | E41: 00 | F41: 2011-SCS-Original Budget-C | G41: 173 | H41: 660.71 | J41: 4100IW | L41: 00 | M41: DIRECT | N41: 19375.12 | P41: 4100IW | Q41: 90MR | R41: 00 | S41: DIRECT | T41: DIRECT | U41: 19375.12 | V41: 19375.12 | W41: 0
A42: 4001ND | C42: A-E&CS PPP I | D42: LPN | E42: 00 | F42: 2011-SCS-Original Budget-C | G42: 173 | H42: 7081.44 | J42: 410201 | L42: 00 | M42: DIRECT | N42: 5666244.83 | P42: 410201 | Q42: 90MR | R42: 00 | S42: DIRECT | T42: DIRECT | U42: 5666244.83 | V42: 5666244.83 | W42: 0
A43: 4001ND | C43: A-E&CS FT LBR | D43: LSN | E43: 00 | F43: 2011-SCS-Original Budget-C | G43: 173 | H43: 28319.07 | J43: 4102CM | L43: RU | M43: DIRECT | N43: 37529 | P43: 4102CM | Q43: 90MR | R43: RU | S43: DIRECT | T43: DIRECT | U43: 37529 | V43: 37529 | W43: 0
A44: 4001ND | C44: A-E&CS MOVE | D44: LSN | E44: 00 | F44: 2011-SCS-Original Budget-C | G44: 173 | H44: -73478.31 | J44: 4102PA | K44: 9916 | L44: DA | M44: DA | N44: 104989.85 | P44: 4102PA | Q44: 9916 | R44: DA | S44: DA | T44: DA | U44: 104989.85 | V44: 104989.345 | W44: 0.505
A45: 4001ND | C45: A-E&CS SVO | D45: LSN | E45: 00 | F45: 2011-SCS-Original Budget-C | G45: 173 | H45: 4389.48 | J45: 4102PS | L45: 00 | M45: DIRECT | N45: 15203 | P45: 4102PS | Q45: 9916 | R45: 00 | S45: DIRECT | T45: DIRECT | U45: 15203 | V45: 15203 | W45: 0
A46: 4001ND | C46: E&CS BUDGET FCST | D46: LSN | E46: 00 | F46: 2011-SCS-Original Budget-C | G46: 173 | H46: 73478.31 | L46: 01 | M46: DIRECT | N46: 12645.55 | P46: 4102PS | Q46: 9916 | R46: 01 | S46: DIRECT | T46: DIRECT | U46: 12645.55 | V46: 12645.55 | W46: 0
A47: 4030AS | B47: 8030 | C47: FXP.8030 | D47: BPS | E47: HD | F47: 2011-SCS-Original Budget-C | G47: 173 | H47: 436.94 | L47: OH | M47: DIRECT | N47: 5962.99 | P47: 4102PS | Q47: 9916 | R47: OH | S47: DIRECT | T47: DIRECT | U47: 5962.99 | V47: 5962.99 | W47: 0
A48: 4030AS | B48: 9030 | C48: FXP.9030 | D48: BPS | E48: HC | F48: 2011-SCS-Original Budget-C | G48: 173 | H48: 603.58 | L48: RU | M48: DIRECT | N48: 129297 | P48: 4102PS | Q48: 9916 | R48: RU | S48: DIRECT | T48: DIRECT | U48: 129297 | V48: 129297 | W48: 0
A49: 4030AS | B49: 8030 | C49: FXP.8030 | D49: BSO | E49: HD | F49: 2011-SCS-Original Budget-C | G49: 173 | H49: 291.93 | J49: 4106CM | L49: 00 | M49: DIRECT | N49: 10000 | P49: 4106CM | Q49: 9916 | R49: 00 | S49: DIRECT | T49: DIRECT | U49: 10000 | V49: 10000 | W49: 0
A50: 4030AS | B50: 9030 | C50: FXP.9030 | D50: BSO | E50: HC | F50: 2011-SCS-Original Budget-C | G50: 173 | H50: 403.27 | J50: 4106DE | L50: 00 | M50: DIRECT | N50: 19090.55 | P50: 4106DE | Q50: 9916 | R50: 00 | S50: DIRECT | T50: DIRECT | U50: 19090.55 | V50: 19090.55 | W50: 0
A51: 4030AS | B51: 8030 | C51: FXP.8030 | D51: CAG | E51: HD | F51: 2011-SCS-Original Budget-C | G51: 173 | H51: 10950.37 | J51: 4106PA | L51: 00 | M51: DIRECT | N51: 46322.1 | P51: 4106PA | Q51: 9916 | R51: 00 | S51: DIRECT | T51: DIRECT | U51: 46322.1 | V51: 46322.1 | W51: 0
A52: 4030AS | B52: 9030 | C52: FXP.9030 | D52: CAG | E52: HC | F52: 2011-SCS-Original Budget-C | G52: 173 | H52: 15115.03 | J52: 4106SU | L52: 00 | M52: DIRECT | N52: 660 | P52: 4106SU | Q52: 9916 | R52: 00 | S52: DIRECT | T52: DIRECT | U52: 660 | V52: 660 | W52: 0
A53: 4030AS | B53: 8030 | C53: FXP.8030 | D53: CCC | E53: HD | F53: 2011-SCS-Original Budget-C | G53: 173 | H53: 5064.44 | J53: 4109CM | L53: 00 | M53: DIRECT | N53: 273427.26 | P53: 4109CM | Q53: 9916 | R53: 00 | S53: DIRECT | T53: DIRECT | U53: 273427.26 | V53: 273427.26 | W53: 0
A54: 4030AS | B54: 9030 | C54: FXP.9030 | D54: CCC | E54: HC | F54: 2011-SCS-Original Budget-C | G54: 173 | H54: 6981.13 | J54: 4160CE | L54: 00 | M54: DIRECT | N54: 6907518.42 | P54: 4160CE | Q54: 9916 | R54: 00 | S54: DIRECT | T54: DIRECT | U54: 6907518.42 | V54: 6907518.42 | W54: 0
A55: 4030AS | B55: 9030 | C55: FXP.9030 | D55: EAF | E55: HC | F55: 2011-SCS-Original Budget-C | G55: 173 | H55: 387.05 | L55: 01 | M55: DIRECT | N55: 45889.27 | P55: 4160CE | Q55: 9916 | R55: 01 | S55: DIRECT | T55: DIRECT | U55: 45889.27 | V55: 45889.27 | W55: 0
A56: 4030AS | B56: 9030 | C56: FXP.9030 | D56: EAL | E56: HC | F56: 2011-SCS-Original Budget-C | G56: 173 | H56: 7353.02 | L56: OH | M56: DIRECT | N56: 9805.14 | P56: 4160CE | Q56: 9916 | R56: OH | S56: DIRECT | T56: DIRECT | U56: 9805.14 | V56: 9805.14 | W56: 0
A57: 4030AS | B57: 9030 | C57: FXP.9030 | D57: EEM | E57: HC | F57: 2011-SCS-Original Budget-C | G57: 173 | H57: 387.05 | J57: 4160CM | L57: 00 | M57: DIRECT | N57: 3717818.02 | P57: 4160CM | Q57: 9916 | R57: 00 | S57: DIRECT | T57: DIRECT | U57: 3717818.02 | V57: 3717818.02 | W57: 0
A58: 4030AS | B58: 9030 | C58: FXP.9030 | D58: EET | E58: HC | F58: 2011-SCS-Original Budget-C | G58: 173 | H58: 2322 | J58: 4161AK | L58: 00 | M58: DIRECT | N58: 6096 | P58: 4161AK | Q58: 9916 | R58: 00 | S58: DIRECT | T58: DIRECT | U58: 6096 | V58: 6096 | W58: 0
A59: 4030AS | B59: 9030 | C59: FXP.9030 | D59: EHT | E59: HC | F59: 2011-SCS-Original Budget-C | G59: 173 | H59: 387.05 | J59: 425122 | L59: 00 | M59: DIRECT | N59: 7816.08 | P59: 425122 | Q59: 9916 | R59: 00 | S59: DIRECT | T59: DIRECT | U59: 7816.08 | V59: 7816.08 | W59: 0
A60: 4030AS | B60: 9030 | C60: FXP.9030 | D60: EMN | E60: HC | F60: 2011-SCS-Original Budget-C | G60: 173 | H60: 773.95 | K60: 8251 | L60: A0 | M60: FXP | N60: 8133.4 | P60: 425122 | Q60: 8251 | R60: A0 | S60: FXP | T60: FXP | U60: 8133.4 | V60: 8133.289704 | W60: 0.110296
A61: 4030AS | B61: 9030 | C61: FXP.9030 | D61: EMW | E61: HC | F61: 2011-SCS-Original Budget-C | G61: 173 | H61: 387.05 | J61: 426801 | K61: 8268 | L61: A0 | M61: FXP | N61: 122536.23 | P61: 426801 | Q61: 8268 | R61: A0 | S61: FXP | T61: FXP | U61: 122536.23 | V61: 122536.1994 | W61: 0.03061500001
A62: 4030AS | B62: 9030 | C62: FXP.9030 | D62: ERV | E62: HC | F62: 2011-SCS-Original Budget-C | G62: 173 | H62: 619.25 | J62: 4268QD | K62: 8268 | L62: A0 | M62: FXP | N62: 45.12 | P62: 4268QD | Q62: 8268 | R62: A0 | S62: FXP | T62: FXP | U62: 45.12 | V62: 45.1251 | W62: -0.0051
A63: 4030AS | B63: 9030 | C63: FXP.9030 | D63: ETV | E63: HC | F63: 2011-SCS-Original Budget-C | G63: 173 | H63: 154.85 | J63: 426901 | K63: 8269 | L63: CN | M63: FXP | N63: 105228.79 | P63: 426901 | Q63: 8269 | R63: CN | S63: FXP | T63: FXP | U63: 105228.79 | V63: 105228.7777 | W63: 0.01229200003
A64: 4030AS | B64: 9030 | C64: FXP.9030 | D64: KLN | E64: HC | F64: 2011-SCS-Original Budget-C | G64: 173 | H64: 154.85 | J64: 4269BL | K64: 8269 | L64: CN | M64: FXP | N64: 69049.48 | P64: 4269BL | Q64: 8269 | R64: CN | S64: FXP | T64: FXP | U64: 69049.48 | V64: 69049.52341 | W64: -0.043412
A65: 4030AS | B65: 8030 | C65: FXP.8030 | D65: LLT | E65: HD | F65: 2011-SCS-Original Budget-C | G65: 173 | H65: 399.13 | J65: 4269CL | K65: 8269 | L65: CN | M65: FXP | N65: 270720.03 | P65: 4269CL | Q65: 8269 | R65: CN | S65: FXP | T65: FXP | U65: 270720.03 | V65: 270720 | W65: 0.03000000003
A66: 4030AS | B66: 9030 | C66: FXP.9030 | D66: LLT | E66: HC | F66: 2011-SCS-Original Budget-C | G66: 173 | H66: 493.51 | J66: 4269CO | K66: 8269 | L66: CN | M66: FXP | N66: 15307.4 | P66: 4269CO | Q66: 8269 | R66: CN | S66: FXP | T66: FXP | U66: 15307.4 | V66: 15307.31588 | W66: 0.084116
A67: 4030AS | B67: 8030 | C67: FXP.8030 | D67: LPD | E67: HD | F67: 2011-SCS-Original Budget-C | G67: 173 | H67: 347.24 | J67: 4269KC | K67: 8269 | L67: CN | M67: FXP | N67: 3478.94 | P67: 4269KC | Q67: 8269 | R67: CN | S67: FXP | T67: FXP | U67: 3478.94 | V67: 3478.84929 | W67: 0.09071
A68: 4030AS | B68: 9030 | C68: FXP.9030 | D68: LPD | E68: HC | F68: 2011-SCS-Original Budget-C | G68: 173 | H68: 479.71 | J68: 4269KL | K68: 8269 | L68: CN | M68: FXP | N68: 20542.23 | P68: 4269KL | Q68: =IF(K68="",Q67,K68) -> 8269 | R68: =IF(L68="",R67,L68) -> CN | S68: =IF(M68="",S67,M68) -> FXP | T68: FXP | U68: =IF(N68="",U67,N68) -> 20542.23 | V68: =IF(S68="DIRECT",U68,VLOOKUP(P68&Q68,GULFDIST,8,0)) -> 20542.22091 | W68: 0.00909
A69: 4030AS | B69: =IF(OR(LEFT(C69,1)="F",LEFT(C69,1)="D"),RIGHT(C69,4),"") -> 8030 | C69: FXP.8030 | D69: LPR | E69: HD | F69: 2011-SCS-Original Budget-C | G69: 173 | H69: 4130.68 | J69: 4269LL | K69: 8269 | L69: CN | M69: FXP | N69: 418770.04 | P69: =IF(J69="",P68,J69) -> 4269LL | Q69: 8269 | R69: CN | S69: FXP | T69: =(IF(LEFT(S69,2)="DA","DA",S69)) -> FXP | U69: 418770.04 | V69: 418770 | W69: =U69-V69 -> 0.03999999998
A70: 4030AS | B70: 9030 | C70: FXP.9030 | D70: LPR | E70: HC | F70: 2011-SCS-Original Budget-C | G70: 173 | H70: 5706.28 | J70: 4269ML | K70: 8269 | L70: CN | M70: FXP | N70: 84600.02 | P70: 4269ML | Q70: 8269 | R70: CN | S70: FXP | T70: FXP | U70: 84600.02 | V70: 84600 | W70: 0.02
A71: 4030AS | B71: 8030 | C71: FXP.8030 | D71: LSN | E71: HD | F71: 2011-SCS-Original Budget-C | G71: 173 | H71: 19079.49 | J71: 4269MP | K71: 8269 | L71: CN | M71: FXP | N71: 6757.22 | P71: 4269MP | Q71: 8269 | R71: CN | S71: FXP | T71: FXP | U71: 6757.22 | V71: 6757.199118 | W71: 0.020882
A72: 4030AS | B72: 9030 | C72: FXP.9030 | D72: LSN | E72: HC | F72: 2011-SCS-Original Budget-C | G72: 173 | H72: 26357.04 | J72: 4269PL | K72: 8269 | L72: CN | M72: FXP | N72: 42300.01 | P72: 4269PL | Q72: 8269 | R72: CN | S72: FXP | T72: FXP | U72: 42300.01 | V72: 42300 | W72: 0.01
A73: 4030AS | B73: 9030 | C73: FXP.9030 | D73: VDE | E73: HC | F73: 2011-SCS-Original Budget-C | G73: 173 | H73: 41.76 | J73: 4269PR | K73: 8269 | L73: CN | M73: FXP | N73: 16227 | P73: 4269PR | Q73: 8269 | R73: CN | S73: FXP | T73: FXP | U73: 16227 | V73: 16227.07524 | W73: -0.07524
A74: 4030MU | B74: 9030 | C74: FXP.9030 | D74: IIBS | E74: HC | F74: 2011-SCS-Original Budget-C | G74: 173 | H74: 1077.13 | J74: 4269WL | K74: 8269 | L74: CN | M74: FXP | N74: 8459.98 | P74: 4269WL | Q74: 8269 | R74: CN | S74: FXP | T74: FXP | U74: 8459.98 | V74: 8460 | W74: -0.02
A75: 4030MU | B75: 9030 | C75: FXP.9030 | D75: IICL | E75: HC | F75: 2011-SCS-Original Budget-C | G75: 173 | H75: 2543.27 | J75: 427001 | K75: 8270 | L75: A0 | M75: FXP | N75: 56986.69 | P75: 427001 | Q75: 8270 | R75: A0 | S75: FXP | T75: FXP | U75: 56986.69 | V75: 56986.67431 | W75: 0.015691
A76: 4030SS | B76: 9030 | C76: FXP.9030 | D76: SSN | E76: HC | F76: 2011-SCS-Original Budget-C | G76: 173 | H76: 387.05 | J76: 427101 | K76: 8271 | L76: A0 | M76: FXP | N76: 17114.77 | P76: 427101 | Q76: 8271 | R76: A0 | S76: FXP | T76: FXP | U76: 17114.77 | V76: 17114.7381 | W76: 0.031897
A77: 403S01 | B77: 803S | C77: FXP.803S | D77: BPS | E77: HC | F77: 2011-SCS-Original Budget-C | G77: 173 | H77: 1712.81 | J77: 427201 | K77: 8272 | L77: A0 | M77: FXP | N77: 52610.04 | P77: 427201 | Q77: 8272 | R77: A0 | S77: FXP | T77: FXP | U77: 52610.04 | V77: 52610.13593 | W77: -0.095931
A78: 403S01 | B78: 803S | C78: FXP.803S | D78: BSO | E78: HC | F78: 2011-SCS-Original Budget-C | G78: 173 | H78: 1144.33 | J78: 427301 | K78: 8273 | L78: A0 | M78: FXP | N78: 71610.47 | P78: 427301 | Q78: 8273 | R78: A0 | S78: FXP | T78: FXP | U78: 71610.47 | V78: 71610.50689 | W78: -0.036892
A79: 403S01 | B79: 803S | C79: FXP.803S | D79: CAG | E79: HC | F79: 2011-SCS-Original Budget-C | G79: 173 | H79: 42596.67 | J79: 4299LD | K79: 8299 | L79: HC | M79: FXP | N79: 3870.02 | P79: 4299LD | Q79: 8299 | R79: HC | S79: FXP | T79: FXP | U79: 3870.02 | V79: 3870 | W79: 0.02
A80: 403S01 | B80: 803S | C80: FXP.803S | D80: CCC | E80: HC | F80: 2011-SCS-Original Budget-C | G80: 173 | H80: 35535.59 | J80: 430901 | L80: 00 | M80: DIRECT | N80: 660348.16 | P80: 430901 | Q80: 8299 | R80: 00 | S80: DIRECT | T80: DIRECT | U80: 660348.16 | V80: 660348.16 | W80: 0
A81: 403S01 | B81: 803S | C81: FXP.803S | D81: EEM | E81: HC | F81: 2011-SCS-Original Budget-C | G81: 173 | H81: 2569.12 | J81: 4309FE | L81: 00 | M81: DIRECT | N81: 2688 | P81: 4309FE | Q81: 8299 | R81: 00 | S81: DIRECT | T81: DIRECT | U81: 2688 | V81: 2688 | W81: 0
A82: 403S01 | B82: 803S | C82: FXP.803S | D82: EET | E82: HC | F82: 2011-SCS-Original Budget-C | G82: 173 | H82: 3923.43 | J82: 4323CP | K82: 8323 | L82: HD | M82: FXP | N82: 87442.56 | P82: 4323CP | Q82: 8323 | R82: HD | S82: FXP | T82: FXP | U82: 87442.56 | V82: 87442.35928 | W82: 0.20072
A83: 403S01 | B83: 803S | C83: FXP.803S | D83: EEX | E83: HC | F83: 2011-SCS-Original Budget-C | G83: 173 | H83: 478.45 | J83: 435010 | L83: 00 | M83: DIRECT | N83: 28516 | P83: 435010 | Q83: 8323 | R83: 00 | S83: DIRECT | T83: DIRECT | U83: 28516 | V83: 28516 | W83: 0
A84: 403S01 | B84: 803S | C84: FXP.803S | D84: EUT | E84: HC | F84: 2011-SCS-Original Budget-C | G84: 173 | H84: 1012.71 | L84: 01 | M84: DIRECT | N84: 24022.47 | P84: 435010 | Q84: 8323 | R84: 01 | S84: DIRECT | T84: DIRECT | U84: 24022.47 | V84: 24022.47 | W84: 0
A85: 403S01 | B85: 803S | C85: FXP.803S | D85: ISA | E85: HC | F85: 2011-SCS-Original Budget-C | G85: 173 | H85: 6579.03 | L85: OH | M85: DIRECT | N85: 5132.88 | P85: 435010 | Q85: 8323 | R85: OH | S85: DIRECT | T85: DIRECT | U85: 5132.88 | V85: 5132.88 | W85: 0
A86: 403S01 | B86: 803S | C86: FXP.803S | D86: KLS | E86: HC | F86: 2011-SCS-Original Budget-C | G86: 173 | H86: 1195.56 | J86: 435101 | L86: 00 | M86: DIRECT | N86: 26357 | P86: 435101 | Q86: 8323 | R86: 00 | S86: DIRECT | T86: DIRECT | U86: 26357 | V86: 26357 | W86: 0
A87: 403S01 | B87: 803S | C87: FXP.803S | D87: KPM | E87: HC | F87: 2011-SCS-Original Budget-C | G87: 173 | H87: 1393.2 | L87: 01 | M87: DIRECT | N87: 22203.75 | P87: 435101 | Q87: 8323 | R87: 01 | S87: DIRECT | T87: DIRECT | U87: 22203.75 | V87: 22203.75 | W87: 0
A88: 403S01 | B88: 803S | C88: FXP.803S | D88: KPT | E88: HC | F88: 2011-SCS-Original Budget-C | G88: 173 | H88: 8746.2 | L88: OH | M88: DIRECT | N88: 4744.26 | P88: 435101 | Q88: 8323 | R88: OH | S88: DIRECT | T88: DIRECT | U88: 4744.26 | V88: 4744.26 | W88: 0
A89: 403S01 | B89: 803S | C89: FXP.803S | D89: LPD | E89: HC | F89: 2011-SCS-Original Budget-C | G89: 173 | H89: 1361.27 | K89: 8351 | L89: CP | M89: FXP | N89: 149494.61 | P89: 435101 | Q89: 8351 | R89: CP | S89: FXP | T89: FXP | U89: 149494.61 | V89: 149494.6766 | W89: -0.06656199999
A90: 403S01 | B90: 803S | C90: FXP.803S | D90: LPM | E90: HC | F90: 2011-SCS-Original Budget-C | G90: 173 | H90: 16192.84 | J90: 435105 | K90: 8351 | L90: CP | M90: FXP | N90: 35697.07 | P90: 435105 | Q90: 8351 | R90: CP | S90: FXP | T90: FXP | U90: 35697.07 | V90: 35697.1729 | W90: -0.102896
A91: 403S01 | B91: 803S | C91: FXP.803S | D91: LSN | E91: HC | F91: 2011-SCS-Original Budget-C | G91: 173 | H91: 74793.76 | J91: 435106 | L91: 00 | M91: DIRECT | N91: 1056 | P91: 435106 | Q91: 8351 | R91: 00 | S91: DIRECT | T91: DIRECT | U91: 1056 | V91: 1056 | W91: 0
A92: 404003 | B92: 8040 | C92: FXP.8040 | D92: EEM | E92: HB | F92: 2011-SCS-Original Budget-C | G92: 173 | H92: 0 | K92: 8351 | L92: CP | M92: FXP | N92: 47468.67 | P92: 435106 | Q92: 8351 | R92: CP | S92: FXP | T92: FXP | U92: 47468.67 | V92: 47468.38704 | W92: 0.282957
A93: 404003 | B93: 8040 | C93: FXP.8040 | D93: EHT | E93: HB | F93: 2011-SCS-Original Budget-C | G93: 173 | H93: 532.8 | J93: 435111 | L93: 00 | M93: DIRECT | N93: 9844 | P93: 435111 | Q93: 8351 | R93: 00 | S93: DIRECT | T93: DIRECT | U93: 9844 | V93: 9844 | W93: 0
A94: 404003 | B94: 8040 | C94: FXP.8040 | D94: EMN | E94: HB | F94: 2011-SCS-Original Budget-C | G94: 173 | H94: 799.2 | L94: 01 | M94: DIRECT | N94: 8292.84 | P94: 435111 | Q94: 8351 | R94: 01 | S94: DIRECT | T94: DIRECT | U94: 8292.84 | V94: 8292.84 | W94: 0
A95: 40401T | B95: 8040 | C95: FXP.8040 | D95: BBO | E95: HB | F95: 2011-SCS-Original Budget-C | G95: 173 | H95: 1731.44 | L95: OH | M95: DIRECT | N95: 1771.92 | P95: 435111 | Q95: 8351 | R95: OH | S95: DIRECT | T95: DIRECT | U95: 1771.92 | V95: 1771.92 | W95: 0
A96: 40401T | B96: 8040 | C96: FXP.8040 | D96: BPS | E96: HB | F96: 2011-SCS-Original Budget-C | G96: 173 | H96: 91.02 | K96: 8351 | L96: CP | M96: FXP | N96: 19037.29 | P96: 435111 | Q96: 8351 | R96: CP | S96: FXP | T96: FXP | U96: 19037.29 | V96: 19037.24985 | W96: 0.040153
A97: 40401T | B97: 8040 | C97: FXP.8040 | D97: BSO | E97: HB | F97: 2011-SCS-Original Budget-C | G97: 173 | H97: 136.24 | J97: 435112 | L97: 00 | M97: DIRECT | N97: 187806 | P97: 435112 | Q97: 8351 | R97: 00 | S97: DIRECT | T97: DIRECT | U97: 187806 | V97: 187806 | W97: 0
A98: 40401T | B98: 8040 | C98: FXP.8040 | D98: CAG | E98: HB | F98: 2011-SCS-Original Budget-C | G98: 173 | H98: 1345.22 | L98: 01 | M98: DIRECT | N98: 150503.69 | P98: 435112 | Q98: 8351 | R98: 01 | S98: DIRECT | T98: DIRECT | U98: 150503.69 | V98: 150503.69 | W98: 0
A99: 40401T | B99: 8040 | C99: FXP.8040 | D99: CCC | E99: HB | F99: 2011-SCS-Original Budget-C | G99: 173 | H99: 3387.3 | L99: OH | M99: DIRECT | N99: 32158.08 | P99: 435112 | Q99: 8351 | R99: OH | S99: DIRECT | T99: DIRECT | U99: 32158.08 | V99: 32158.08 | W99: 0
A100: 40401T | B100: 8040 | C100: FXP.8040 | D100: CPT | E100: HB | F100: 2011-SCS-Original Budget-C | G100: 173 | H100: 500.64 | K100: 8351 | L100: CP | M100: FXP | N100: 32848.44 | P100: 435112 | Q100: 8351 | R100: CP | S100: FXP | T100: FXP | U100: 32848.44 | V100: 32848.26445 | W100: 0.175551
A101: 40401T | B101: 8040 | C101: FXP.8040 | D101: EEM | E101: HB | F101: 2011-SCS-Original Budget-C | G101: 173 | H101: 0 | J101: 435114 | L101: 00 | M101: DIRECT | N101: 162394 | P101: 435114 | Q101: 8351 | R101: 00 | S101: DIRECT | T101: DIRECT | U101: 162394 | V101: 162394 | W101: 0
A102: 40401T | B102: 8040 | C102: FXP.8040 | D102: EHT | E102: HB | F102: 2011-SCS-Original Budget-C | G102: 173 | H102: 130.06 | L102: 01 | M102: DIRECT | N102: 122071.97 | P102: 435114 | Q102: 8351 | R102: 01 | S102: DIRECT | T102: DIRECT | U102: 122071.97 | V102: 122071.97 | W102: 0
A103: 40401T | B103: 8040 | C103: FXP.8040 | D103: EMN | E103: HB | F103: 2011-SCS-Original Budget-C | G103: 173 | H103: 195.12 | L103: OH | M103: DIRECT | N103: 26083.08 | P103: 435114 | Q103: 8351 | R103: OH | S103: DIRECT | T103: DIRECT | U103: 26083.08 | V103: 26083.08 | W103: 0
A104: 40401T | B104: 8040 | C104: FXP.8040 | D104: KLO | E104: HB | F104: 2011-SCS-Original Budget-C | G104: 173 | H104: 2092.52 | K104: 8351 | L104: CP | M104: FXP | N104: 21975.87 | P104: 435114 | Q104: 8351 | R104: CP | S104: FXP | T104: FXP | U104: 21975.87 | V104: 21975.80616 | W104: 0.06384
A105: 40401T | B105: 8040 | C105: FXP.8040 | D105: LPD | E105: HB | F105: 2011-SCS-Original Budget-C | G105: 173 | H105: 120.2 | J105: 435115 | L105: 00 | M105: DIRECT | N105: 1000 | P105: 435115 | Q105: 8351 | R105: 00 | S105: DIRECT | T105: DIRECT | U105: 1000 | V105: 1000 | W105: 0
A106: 40401T | B106: 8040 | C106: FXP.8040 | D106: LPN | E106: HB | F106: 2011-SCS-Original Budget-C | G106: 173 | H106: 1288.14 | L106: 01 | M106: DIRECT | N106: 70.48 | P106: 435115 | Q106: 8351 | R106: 01 | S106: DIRECT | T106: DIRECT | U106: 70.48 | V106: 70.48 | W106: 0
A107: 40401T | B107: 8040 | C107: FXP.8040 | D107: LSN | E107: HB | F107: 2011-SCS-Original Budget-C | G107: 173 | H107: 5949.94 | L107: OH | M107: DIRECT | N107: 90 | P107: 435115 | Q107: 8351 | R107: OH | S107: DIRECT | T107: DIRECT | U107: 90 | V107: 90 | W107: 0
A108: 4040CC | B108: 90FM | C108: DA.90FM | D108: BBO | E108: DA | F108: 2011-SCS-Original Budget-C | G108: 173 | H108: 9685.12 | K108: 8351 | L108: CP | M108: FXP | N108: 3595.33 | P108: 435115 | Q108: 8351 | R108: CP | S108: FXP | T108: FXP | U108: 3595.33 | V108: 3595.317957 | W108: 0.012043
A109: 4040CC | B109: 90FM | C109: DA.90FM | D109: BPS | E109: DA | F109: 2011-SCS-Original Budget-C | G109: 173 | H109: 509.24 | J109: 435116 | L109: 00 | M109: DIRECT | N109: 75688 | P109: 435116 | Q109: 8351 | R109: 00 | S109: DIRECT | T109: DIRECT | U109: 75688 | V109: 75688 | W109: 0
A110: 4040CC | B110: 90FM | C110: DA.90FM | D110: BSO | E110: DA | F110: 2011-SCS-Original Budget-C | G110: 173 | H110: 762.18 | L110: 01 | M110: DIRECT | N110: 54179.51 | P110: 435116 | Q110: 8351 | R110: 01 | S110: DIRECT | T110: DIRECT | U110: 54179.51 | V110: 54179.51 | W110: 0
A111: 4040CC | B111: 90FM | C111: DA.90FM | D111: CAG | E111: DA | F111: 2011-SCS-Original Budget-C | G111: 173 | H111: 5897.96 | L111: OH | M111: DIRECT | N111: 11576.52 | P111: 435116 | Q111: 8351 | R111: OH | S111: DIRECT | T111: DIRECT | U111: 11576.52 | V111: 11576.52 | W111: 0
A112: 4040CC | B112: 90FM | C112: DA.90FM | D112: CCC | E112: DA | F112: 2011-SCS-Original Budget-C | G112: 173 | H112: 14851.1 | K112: 8351 | L112: CP | M112: FXP | N112: 24222 | P112: 435116 | Q112: 8351 | R112: CP | S112: FXP | T112: FXP | U112: 24222 | V112: 24221.97162 | W112: 0.02838
A113: 4040CC | B113: 90FM | C113: DA.90FM | D113: CPT | E113: DA | F113: 2011-SCS-Original Budget-C | G113: 173 | H113: 2800.46 | J113: 435117 | L113: 00 | M113: DIRECT | N113: 11231 | P113: 435117 | Q113: 8351 | R113: 00 | S113: DIRECT | T113: DIRECT | U113: 11231 | V113: 11231 | W113: 0
A114: 4040CC | B114: 90FM | C114: DA.90FM | D114: EEM | E114: DA | F114: 2011-SCS-Original Budget-C | G114: 173 | H114: 0 | L114: 01 | M114: DIRECT | N114: 7777.24 | P114: 435117 | Q114: 8351 | R114: 01 | S114: DIRECT | T114: DIRECT | U114: 7777.24 | V114: 7777.24 | W114: 0
A115: 4040CC | B115: 90FM | C115: DA.90FM | D115: EHT | E115: DA | F115: 2011-SCS-Original Budget-C | G115: 173 | H115: 1662.72 | L115: OH | M115: DIRECT | N115: 1661.76 | P115: 435117 | Q115: 8351 | R115: OH | S115: DIRECT | T115: DIRECT | U115: 1661.76 | V115: 1661.76 | W115: 0
A116: 4040CC | B116: 90FM | C116: DA.90FM | D116: EMN | E116: DA | F116: 2011-SCS-Original Budget-C | G116: 173 | H116: 2494.08 | K116: 8351 | L116: CP | M116: FXP | N116: 24062.27 | P116: 435117 | Q116: 8351 | R116: CP | S116: FXP | T116: FXP | U116: 24062.27 | V116: 24062.30996 | W116: -0.039964
A117: 4040CC | B117: 90FM | C117: DA.90FM | D117: KLO | E117: DA | F117: 2011-SCS-Original Budget-C | G117: 173 | H117: 0 | J117: 435118 | L117: 00 | M117: DIRECT | N117: 37915 | P117: 435118 | Q117: 8351 | R117: 00 | S117: DIRECT | T117: DIRECT | U117: 37915 | V117: 37915 | W117: 0
A118: 4040CC | B118: 90FM | C118: DA.90FM | D118: LPD | E118: DA | F118: 2011-SCS-Original Budget-C | G118: 173 | H118: 672.32 | L118: 01 | M118: DIRECT | N118: 23516.18 | P118: 435118 | Q118: 8351 | R118: 01 | S118: DIRECT | T118: DIRECT | U118: 23516.18 | V118: 23516.18 | W118: 0
A119: 4040CC | B119: 90FM | C119: DA.90FM | D119: LPN | E119: DA | F119: 2011-SCS-Original Budget-C | G119: 173 | H119: 7205.58 | L119: OH | M119: DIRECT | N119: 5024.7 | P119: 435118 | Q119: 8351 | R119: OH | S119: DIRECT | T119: DIRECT | U119: 5024.7 | V119: 5024.7 | W119: 0
A120: 4040CC | B120: 90FM | C120: DA.90FM | D120: LSN | E120: DA | F120: 2011-SCS-Original Budget-C | G120: 173 | H120: 33282.18 | K120: 8351 | L120: CP | M120: FXP | N120: 12478.57 | P120: 435118 | Q120: 8351 | R120: CP | S120: FXP | T120: FXP | U120: 12478.57 | V120: 12478.56063 | W120: 0.009367000001
A121: 4040HG | B121: 98JG | C121: DA.98JG | D121: BBO | E121: DA | F121: 2011-SCS-Original Budget-C | G121: 173 | H121: 418.1 | J121: 435120 | L121: 00 | M121: DIRECT | N121: 2000 | P121: 435120 | Q121: 8351 | R121: 00 | S121: DIRECT | T121: DIRECT | U121: 2000 | V121: 2000 | W121: 0
A122: 4040HG | B122: 98JG | C122: DA.98JG | D122: BPS | E122: DA | F122: 2011-SCS-Original Budget-C | G122: 173 | H122: 21.94 | K122: 8351 | L122: CP | M122: FXP | N122: 14174.37 | P122: 435120 | Q122: 8351 | R122: CP | S122: FXP | T122: FXP | U122: 14174.37 | V122: 14174.3448 | W122: 0.0252
A123: 4040HG | B123: 98JG | C123: DA.98JG | D123: BSO | E123: DA | F123: 2011-SCS-Original Budget-C | G123: 173 | H123: 32.92 | J123: 435121 | L123: 00 | M123: DIRECT | N123: 23984 | P123: 435121 | Q123: 8351 | R123: 00 | S123: DIRECT | T123: DIRECT | U123: 23984 | V123: 23984 | W123: 0
A124: 4040HG | B124: 98JG | C124: DA.98JG | D124: CAG | E124: DA | F124: 2011-SCS-Original Budget-C | G124: 173 | H124: 254.58 | L124: 01 | M124: DIRECT | N124: 20204.63 | P124: 435121 | Q124: 8351 | R124: 01 | S124: DIRECT | T124: DIRECT | U124: 20204.63 | V124: 20204.63 | W124: 0
A125: 4040HG | B125: 98JG | C125: DA.98JG | D125: CCC | E125: DA | F125: 2011-SCS-Original Budget-C | G125: 173 | H125: 641.12 | L125: OH | M125: DIRECT | N125: 4317.12 | P125: 435121 | Q125: 8351 | R125: OH | S125: DIRECT | T125: DIRECT | U125: 4317.12 | V125: 4317.12 | W125: 0
A126: 4040HG | B126: 98JG | C126: DA.98JG | D126: CPT | E126: DA | F126: 2011-SCS-Original Budget-C | G126: 173 | H126: 120.9 | J126: 4351AM | L126: 00 | M126: DIRECT | N126: 22390 | P126: 4351AM | Q126: 8351 | R126: 00 | S126: DIRECT | T126: DIRECT | U126: 22390 | V126: 22390 | W126: 0
A127: 4040HG | B127: 98JG | C127: DA.98JG | D127: EEM | E127: DA | F127: 2011-SCS-Original Budget-C | G127: 173 | H127: 0 | L127: 01 | M127: DIRECT | N127: 15997.6 | P127: 4351AM | Q127: 8351 | R127: 01 | S127: DIRECT | T127: DIRECT | U127: 15997.6 | V127: 15997.6 | W127: 0
A128: 4040HG | B128: 98JG | C128: DA.98JG | D128: EHT | E128: DA | F128: 2011-SCS-Original Budget-C | G128: 173 | H128: 90.02 | L128: OH | M128: DIRECT | N128: 3418.2 | P128: 4351AM | Q128: 8351 | R128: OH | S128: DIRECT | T128: DIRECT | U128: 3418.2 | V128: 3418.2 | W128: 0
A129: 4040HG | B129: 98JG | C129: DA.98JG | D129: EMN | E129: DA | F129: 2011-SCS-Original Budget-C | G129: 173 | H129: 135.02 | K129: 8351 | L129: CP | M129: FXP | N129: 18969.1 | P129: 4351AM | Q129: 8351 | R129: CP | S129: FXP | T129: FXP | U129: 18969.1 | V129: 18969.12102 | W129: -0.021017
A130: 4040HG | B130: 98JG | C130: DA.98JG | D130: KLO | E130: DA | F130: 2011-SCS-Original Budget-C | G130: 173 | H130: 0 | J130: 4351B1 | L130: 00 | M130: DIRECT | N130: 22304 | P130: 4351B1 | Q130: 8351 | R130: 00 | S130: DIRECT | T130: DIRECT | U130: 22304 | V130: 22304 | W130: 0
A131: 4040HG | B131: 98JG | C131: DA.98JG | D131: LPD | E131: DA | F131: 2011-SCS-Original Budget-C | G131: 173 | H131: 29 | L131: 01 | M131: DIRECT | N131: 18789.44 | P131: 4351B1 | Q131: 8351 | R131: 01 | S131: DIRECT | T131: DIRECT | U131: 18789.44 | V131: 18789.44 | W131: 0
A132: 4040HG | B132: 98JG | C132: DA.98JG | D132: LPN | E132: DA | F132: 2011-SCS-Original Budget-C | G132: 173 | H132: 311.04 | L132: OH | M132: DIRECT | N132: 4014.72 | P132: 4351B1 | Q132: =IF(K132="",Q131,K132) -> 8351 | R132: =IF(L132="",R131,L132) -> OH | S132: =IF(M132="",S131,M132) -> DIRECT | T132: DIRECT | U132: =IF(N132="",U131,N132) -> 4014.72 | V132: =IF(S132="DIRECT",U132,VLOOKUP(P132&Q132,GULFDIST,8,0)) -> 4014.72 | W132: 0
A133: 4040HG | B133: =IF(OR(LEFT(C133,1)="F",LEFT(C133,1)="D"),RIGHT(C133,4),"") -> 98JG | C133: DA.98JG | D133: LSN | E133: DA | F133: 2011-SCS-Original Budget-C | G133: 173 | H133: 1436.8 | K133: 8351 | L133: CP | M133: FXP | N133: 14500.76 | P133: =IF(J133="",P132,J133) -> 4351B1 | Q133: 8351 | R133: CP | S133: FXP | T133: =(IF(LEFT(S133,2)="DA","DA",S133)) -> FXP | U133: 14500.76 | V133: 14500.8074 | W133: =U133-V133 -> -0.047398
A134: 4040MP | B134: 98JG | C134: DA.98JG | D134: BBO | E134: DA | F134: 2011-SCS-Original Budget-C | G134: 173 | H134: 7497.48 | J134: 4351GN | K134: 8351 | L134: CP | M134: FXP | N134: 109412.65 | P134: 4351GN | Q134: 8351 | R134: CP | S134: FXP | T134: FXP | U134: 109412.65 | V134: 109412.5746 | W134: 0.07542099999
A135: 4040MP | B135: 98JG | C135: DA.98JG | D135: BPS | E135: DA | F135: 2011-SCS-Original Budget-C | G135: 173 | H135: 394.18 | J135: 4351RM | L135: 00 | M135: DIRECT | N135: 9610 | P135: 4351RM | Q135: 8351 | R135: 00 | S135: DIRECT | T135: DIRECT | U135: 9610 | V135: 9610 | W135: 0
A136: 4040MP | B136: 98JG | C136: DA.98JG | D136: BSO | E136: DA | F136: 2011-SCS-Original Budget-C | G136: 173 | H136: 590.02 | L136: 01 | M136: DIRECT | N136: 8095.73 | P136: 4351RM | Q136: 8351 | R136: 01 | S136: DIRECT | T136: DIRECT | U136: 8095.73 | V136: 8095.73 | W136: 0
A137: 4040MP | B137: 98JG | C137: DA.98JG | D137: CAG | E137: DA | F137: 2011-SCS-Original Budget-C | G137: 173 | H137: 4565.82 | L137: OH | M137: DIRECT | N137: 1729.8 | P137: 4351RM | Q137: 8351 | R137: OH | S137: DIRECT | T137: DIRECT | U137: 1729.8 | V137: 1729.8 | W137: 0
A138: 4040MP | B138: 98JG | C138: DA.98JG | D138: CCC | E138: DA | F138: 2011-SCS-Original Budget-C | G138: 173 | H138: 11496.6 | K138: 8351 | L138: CP | M138: FXP | N138: 6656.1 | P138: 4351RM | Q138: 8351 | R138: CP | S138: FXP | T138: FXP | U138: 6656.1 | V138: 6656.183226 | W138: -0.083226
A139: 4040MP | B139: 98JG | C139: DA.98JG | D139: CPT | E139: DA | F139: 2011-SCS-Original Budget-C | G139: 173 | H139: 2167.92 | J139: 4351T2 | K139: 8351 | L139: CP | M139: FXP | N139: 450.44 | P139: 4351T2 | Q139: 8351 | R139: CP | S139: FXP | T139: FXP | U139: 450.44 | V139: 450.436833 | W139: 0.003167
A140: 4040MP | B140: 98JG | C140: DA.98JG | D140: EEM | E140: DA | F140: 2011-SCS-Original Budget-C | G140: 173 | H140: 0 | J140: 435201 | L140: 00 | M140: DIRECT | N140: 98851 | P140: 435201 | Q140: 8351 | R140: 00 | S140: DIRECT | T140: DIRECT | U140: 98851 | V140: 98851 | W140: 0
A141: 4040MP | B141: 98JG | C141: DA.98JG | D141: EHT | E141: DA | F141: 2011-SCS-Original Budget-C | G141: 173 | H141: 234 | L141: 01 | M141: DIRECT | N141: 81757.93 | P141: 435201 | Q141: 8351 | R141: 01 | S141: DIRECT | T141: DIRECT | U141: 81757.93 | V141: 81757.93 | W141: 0
A142: 4040MP | B142: 98JG | C142: DA.98JG | D142: EMN | E142: DA | F142: 2011-SCS-Original Budget-C | G142: 173 | H142: 351 | L142: OH | M142: DIRECT | N142: 17469.18 | P142: 435201 | Q142: 8351 | R142: OH | S142: DIRECT | T142: DIRECT | U142: 17469.18 | V142: 17469.18 | W142: 0
A143: 4040MP | B143: 98JG | C143: DA.98JG | D143: KLO | E143: DA | F143: 2011-SCS-Original Budget-C | G143: 173 | H143: 0 | K143: 8352 | L143: AB | M143: FXP | N143: 214020.41 | P143: 435201 | Q143: 8352 | R143: AB | S143: FXP | T143: FXP | U143: 214020.41 | V143: 214020.4265 | W143: -0.01650800003
A144: 4040MP | B144: 98JG | C144: DA.98JG | D144: LPD | E144: DA | F144: 2011-SCS-Original Budget-C | G144: 173 | H144: 520.46 | J144: 4352GH | L144: 00 | M144: DIRECT | N144: 23587 | P144: 4352GH | Q144: 8352 | R144: 00 | S144: DIRECT | T144: DIRECT | U144: 23587 | V144: 23587 | W144: 0
A145: 4040MP | B145: 98JG | C145: DA.98JG | D145: LPN | E145: DA | F145: 2011-SCS-Original Budget-C | G145: 173 | H145: 5578.08 | L145: 01 | M145: DIRECT | N145: 19870.24 | P145: 4352GH | Q145: 8352 | R145: 01 | S145: DIRECT | T145: DIRECT | U145: 19870.24 | V145: 19870.24 | W145: 0
A146: 4040MP | B146: 98JG | C146: DA.98JG | D146: LSN | E146: DA | F146: 2011-SCS-Original Budget-C | G146: 173 | H146: 25764.64 | L146: OH | M146: DIRECT | N146: 4245.66 | P146: 4352GH | Q146: 8352 | R146: OH | S146: DIRECT | T146: DIRECT | U146: 4245.66 | V146: 4245.66 | W146: 0
A147: 4040PH | B147: 8040 | C147: FXP.8040 | D147: BBO | E147: HB | F147: 2011-SCS-Original Budget-C | G147: 173 | H147: 17.22 | K147: 8352 | L147: AB | M147: FXP | N147: 65927.64 | P147: 4352GH | Q147: 8352 | R147: AB | S147: FXP | T147: FXP | U147: 65927.64 | V147: 65927.66393 | W147: -0.023928
A148: 4040PH | B148: 8040 | C148: FXP.8040 | D148: BPS | E148: HB | F148: 2011-SCS-Original Budget-C | G148: 173 | H148: 0.94 | J148: 4352GN | K148: 8352 | L148: AB | M148: FXP | N148: 49364.68 | P148: 4352GN | Q148: 8352 | R148: AB | S148: FXP | T148: FXP | U148: 49364.68 | V148: 49364.61939 | W148: 0.06061200001
A149: 4040PH | B149: 8040 | C149: FXP.8040 | D149: BSO | E149: HB | F149: 2011-SCS-Original Budget-C | G149: 173 | H149: 1.32 | J149: 435601 | K149: 8356 | L149: HB | M149: FXP | N149: 20881.56 | P149: 435601 | Q149: 8356 | R149: HB | S149: FXP | T149: FXP | U149: 20881.56 | V149: 20881.53423 | W149: 0.02577
A150: 4040PH | B150: 8040 | C150: FXP.8040 | D150: CAG | E150: HB | F150: 2011-SCS-Original Budget-C | G150: 173 | H150: 12.32 | J150: 435801 | K150: 8358 | L150: HB | M150: FXP | N150: 72158.22 | P150: 435801 | Q150: 8358 | R150: HB | S150: FXP | T150: FXP | U150: 72158.22 | V150: 72158.36873 | W150: -0.148734
A151: 4040PH | B151: 8040 | C151: FXP.8040 | D151: CCC | E151: HB | F151: 2011-SCS-Original Budget-C | G151: 173 | H151: 57.6 | J151: 436201 | K151: 8362 | L151: A1 | M151: FXP | N151: 57657.62 | P151: 436201 | Q151: 8362 | R151: A1 | S151: FXP | T151: FXP | U151: 57657.62 | V151: 57657.47875 | W151: 0.141251
A152: 4040PH | B152: 8040 | C152: FXP.8040 | D152: CPT | E152: HB | F152: 2011-SCS-Original Budget-C | G152: 173 | H152: 5.02 | J152: 43622A | K152: 8362 | L152: A1 | M152: FXP | N152: 486.99 | P152: 43622A | Q152: 8362 | R152: A1 | S152: FXP | T152: FXP | U152: 486.99 | V152: 486.975489 | W152: 0.014511
A153: 4040PH | B153: 8040 | C153: FXP.8040 | D153: KLO | E153: HB | F153: 2011-SCS-Original Budget-C | G153: 173 | H153: 13.04 | J153: 4362LM | K153: 8362 | L153: A1 | M153: FXP | N153: 3547.09 | P153: 4362LM | Q153: 8362 | R153: A1 | S153: FXP | T153: FXP | U153: 3547.09 | V153: 3547.05 | W153: 0.04
A154: 4040PH | B154: 8040 | C154: FXP.8040 | D154: LPD | E154: HB | F154: 2011-SCS-Original Budget-C | G154: 173 | H154: 1.2 | J154: 436501 | K154: 8365 | L154: HA | M154: FXP | N154: 221033.58 | P154: 436501 | Q154: 8365 | R154: HA | S154: FXP | T154: FXP | U154: 221033.58 | V154: 221033.5754 | W154: 0.004555999971
A155: 4040PH | B155: 8040 | C155: FXP.8040 | D155: LPN | E155: HB | F155: 2011-SCS-Original Budget-C | G155: 173 | H155: 12.8 | J155: 4365CS | K155: 8365 | L155: HA | M155: FXP | N155: 1725.32 | P155: 4365CS | Q155: 8365 | R155: HA | S155: FXP | T155: FXP | U155: 1725.32 | V155: 1725.13198 | W155: 0.18802
A156: 4040PH | B156: 8040 | C156: FXP.8040 | D156: LSN | E156: HB | F156: 2011-SCS-Original Budget-C | G156: 173 | H156: 59.38 | J156: 4365DP | K156: 8365 | L156: HA | M156: FXP | N156: 10450 | P156: 4365DP | Q156: 8365 | R156: HA | S156: FXP | T156: FXP | U156: 10450 | V156: 10450 | W156: 0
A157: 4040PM | B157: 8040 | C157: FXP.8040 | D157: BBO | E157: HB | F157: 2011-SCS-Original Budget-C | G157: 173 | H157: 92.12 | J157: 4365FA | K157: 8365 | L157: HA | M157: FXP | N157: 5646.51 | P157: 4365FA | Q157: 8365 | R157: HA | S157: FXP | T157: FXP | U157: 5646.51 | V157: 5646.491972 | W157: 0.018028
A158: 4040PM | B158: 8040 | C158: FXP.8040 | D158: BPS | E158: HB | F158: 2011-SCS-Original Budget-C | G158: 173 | H158: 4.88 | J158: 436701 | L158: 00 | M158: DIRECT | N158: 6196 | P158: 436701 | Q158: 8365 | R158: 00 | S158: DIRECT | T158: DIRECT | U158: 6196 | V158: 6196 | W158: 0
A159: 4040PM | B159: 8040 | C159: FXP.8040 | D159: BSO | E159: HB | F159: 2011-SCS-Original Budget-C | G159: 173 | H159: 7.28 | L159: 01 | M159: DIRECT | N159: 5219.63 | P159: 436701 | Q159: 8365 | R159: 01 | S159: DIRECT | T159: DIRECT | U159: 5219.63 | V159: 5219.63 | W159: 0
A160: 4040PM | B160: 8040 | C160: FXP.8040 | D160: CAG | E160: HB | F160: 2011-SCS-Original Budget-C | G160: 173 | H160: 56.14 | L160: OH | M160: DIRECT | N160: 4213.28 | P160: 436701 | Q160: 8365 | R160: OH | S160: DIRECT | T160: DIRECT | U160: 4213.28 | V160: 4213.28 | W160: 0
A161: 4040PM | B161: 8040 | C161: FXP.8040 | D161: CCC | E161: HB | F161: 2011-SCS-Original Budget-C | G161: 173 | H161: 201.82 | J161: 437401 | L161: 00 | M161: DIRECT | N161: 232369 | P161: 437401 | Q161: 8365 | R161: 00 | S161: DIRECT | T161: DIRECT | U161: 232369 | V161: 232369 | W161: 0
A162: 4040PM | B162: 8040 | C162: FXP.8040 | D162: CPT | E162: HB | F162: 2011-SCS-Original Budget-C | G162: 173 | H162: 26.64 | L162: 01 | M162: DIRECT | N162: 178231.13 | P162: 437401 | Q162: 8365 | R162: 01 | S162: DIRECT | T162: DIRECT | U162: 178231.13 | V162: 178231.13 | W162: 0
A163: 4040PM | B163: 8040 | C163: FXP.8040 | D163: KLO | E163: HB | F163: 2011-SCS-Original Budget-C | G163: 173 | H163: 0 | L163: OH | M163: DIRECT | N163: 38082.6 | P163: 437401 | Q163: 8365 | R163: OH | S163: DIRECT | T163: DIRECT | U163: 38082.6 | V163: 38082.6 | W163: 0
A164: 4040PM | B164: 8040 | C164: FXP.8040 | D164: LPD | E164: HB | F164: 2011-SCS-Original Budget-C | G164: 173 | H164: 6.44 | J164: 437501 | L164: 00 | M164: DIRECT | N164: 262478 | P164: 437501 | Q164: 8365 | R164: 00 | S164: DIRECT | T164: DIRECT | U164: 262478 | V164: 262478 | W164: 0
A165: 4040PM | B165: 8040 | C165: FXP.8040 | D165: LPN | E165: HB | F165: 2011-SCS-Original Budget-C | G165: 173 | H165: 68.58 | L165: 01 | M165: DIRECT | N165: 18936 | P165: 437501 | Q165: 8365 | R165: 01 | S165: DIRECT | T165: DIRECT | U165: 18936 | V165: 18936 | W165: 0
A166: 4040PM | B166: 8040 | C166: FXP.8040 | D166: LSN | E166: HB | F166: 2011-SCS-Original Budget-C | G166: 173 | H166: 316.62 | L166: OH | M166: DIRECT | N166: 1043.2 | P166: 437501 | Q166: 8365 | R166: OH | S166: DIRECT | T166: DIRECT | U166: 1043.2 | V166: 1043.2 | W166: 0
A167: 4040PT | B167: 8040 | C167: FXP.8040 | D167: BBO | E167: HB | F167: 2011-SCS-Original Budget-C | G167: 173 | H167: 129.52 | K167: 8375 | L167: A1 | M167: FXP | N167: 362486.36 | P167: 437501 | Q167: 8375 | R167: A1 | S167: FXP | T167: FXP | U167: 362486.36 | V167: 362486.3638 | W167: -0.003810999973
A168: 4040PT | B168: 8040 | C168: FXP.8040 | D168: BPS | E168: HB | F168: 2011-SCS-Original Budget-C | G168: 173 | H168: 6.8 | J168: 4376CR | L168: 00 | M168: DIRECT | N168: 83938.68 | P168: 4376CR | Q168: 8375 | R168: 00 | S168: DIRECT | T168: DIRECT | U168: 83938.68 | V168: 83938.68 | W168: 0
A169: 4040PT | B169: 8040 | C169: FXP.8040 | D169: BSO | E169: HB | F169: 2011-SCS-Original Budget-C | G169: 173 | H169: 10.16 | J169: 4376SH | L169: 00 | M169: DIRECT | N169: 62405.28 | P169: 4376SH | Q169: 8375 | R169: 00 | S169: DIRECT | T169: DIRECT | U169: 62405.28 | V169: 62405.28 | W169: 0
A170: 4040PT | B170: 8040 | C170: FXP.8040 | D170: CAG | E170: HB | F170: 2011-SCS-Original Budget-C | G170: 173 | H170: 92.48 | J170: 4376SM | L170: 00 | M170: DIRECT | N170: 68515.18 | P170: 4376SM | Q170: 8375 | R170: 00 | S170: DIRECT | T170: DIRECT | U170: 68515.18 | V170: 68515.18 | W170: 0
A171: 4040PT | B171: 8040 | C171: FXP.8040 | D171: CCC | E171: HB | F171: 2011-SCS-Original Budget-C | G171: 173 | H171: 432.28 | J171: 438701 | K171: 8387 | L171: A0 | M171: FXP | N171: 181966.08 | P171: 438701 | Q171: 8387 | R171: A0 | S171: FXP | T171: FXP | U171: 181966.08 | V171: 181965.9379 | W171: 0.14214
A172: 4040PT | B172: 8040 | C172: FXP.8040 | D172: CPT | E172: HB | F172: 2011-SCS-Original Budget-C | G172: 173 | H172: 37.4 | J172: 4387C8 | K172: 8387 | L172: A0 | M172: FXP | N172: 1042.98 | P172: 4387C8 | Q172: 8387 | R172: A0 | S172: FXP | T172: FXP | U172: 1042.98 | V172: 1042.938747 | W172: 0.041253
A173: 4040PT | B173: 8040 | C173: FXP.8040 | D173: KLO | E173: HB | F173: 2011-SCS-Original Budget-C | G173: 173 | H173: 97.74 | J173: 4387CH | K173: 8387 | L173: A0 | M173: FXP | N173: 197.12 | P173: 4387CH | Q173: 8387 | R173: A0 | S173: FXP | T173: FXP | U173: 197.12 | V173: 197.12889 | W173: -0.00889
A174: 4040PT | B174: 8040 | C174: FXP.8040 | D174: LPD | E174: HB | F174: 2011-SCS-Original Budget-C | G174: 173 | H174: 8.96 | J174: 4387RH | K174: 8387 | L174: A0 | M174: FXP | N174: 1042.98 | P174: 4387RH | Q174: 8387 | R174: A0 | S174: FXP | T174: FXP | U174: 1042.98 | V174: 1042.938747 | W174: 0.041253
A175: 4040PT | B175: 8040 | C175: FXP.8040 | D175: LPN | E175: HB | F175: 2011-SCS-Original Budget-C | G175: 173 | H175: 96.3 | J175: 438901 | K175: 9389 | L175: HC | M175: FXP | N175: 7993.06 | P175: 438901 | Q175: 9389 | R175: HC | S175: FXP | T175: FXP | U175: 7993.06 | V175: 7993.02834 | W175: 0.03166
A176: 4040PT | B176: 8040 | C176: FXP.8040 | D176: LSN | E176: HB | F176: 2011-SCS-Original Budget-C | G176: 173 | H176: 444.96 | J176: 4389GF | K176: 9389 | L176: HC | M176: FXP | N176: 8668.75 | P176: 4389GF | Q176: 9389 | R176: HC | S176: FXP | T176: FXP | U176: 8668.75 | V176: 8668.8 | W176: -0.05
A177: 4040PV | B177: 8040 | C177: FXP.8040 | D177: BBO | E177: HB | F177: 2011-SCS-Original Budget-C | G177: 173 | H177: 17.22 | J177: 4389TF | K177: 8389 | L177: HD | M177: FXP | N177: 202774.32 | P177: 4389TF | Q177: 8389 | R177: HD | S177: FXP | T177: FXP | U177: 202774.32 | V177: 202774.3751 | W177: -0.05510199998
A178: 4040PV | B178: 8040 | C178: FXP.8040 | D178: BPS | E178: HB | F178: 2011-SCS-Original Budget-C | G178: 173 | H178: 0.94 | J178: 439901 | K178: 8399 | L178: HC | M178: FXP | N178: 166101.85 | P178: 439901 | Q178: 8399 | R178: HC | S178: FXP | T178: FXP | U178: 166101.85 | V178: 166101.8683 | W178: -0.01827799997
A179: 4040PV | B179: 8040 | C179: FXP.8040 | D179: BSO | E179: HB | F179: 2011-SCS-Original Budget-C | G179: 173 | H179: 1.32 | J179: 4399PP | K179: 8399 | L179: HC | M179: FXP | N179: 2354.81 | P179: 4399PP | Q179: 8399 | R179: HC | S179: FXP | T179: FXP | U179: 2354.81 | V179: 2354.80986 | W179: 0.0001400000001
A180: 4040PV | B180: 8040 | C180: FXP.8040 | D180: CAG | E180: HB | F180: 2011-SCS-Original Budget-C | G180: 173 | H180: 12.32 | J180: 4399SC | K180: 8399 | L180: HC | M180: FXP | N180: 28255.21 | P180: 4399SC | Q180: 8399 | R180: HC | S180: FXP | T180: FXP | U180: 28255.21 | V180: 28255.19895 | W180: 0.01105
A181: 4040PV | B181: 8040 | C181: FXP.8040 | D181: CCC | E181: HB | F181: 2011-SCS-Original Budget-C | G181: 173 | H181: 57.6 | J181: 440001 | K181: 8400 | L181: HC | M181: FXP | N181: 59582.36 | P181: 440001 | Q181: 8400 | R181: HC | S181: FXP | T181: FXP | U181: 59582.36 | V181: 59582.49291 | W181: -0.13291
A182: 4040PV | B182: 8040 | C182: FXP.8040 | D182: CPT | E182: HB | F182: 2011-SCS-Original Budget-C | G182: 173 | H182: 5.02 | J182: 442901 | K182: 8429 | L182: HA | M182: FXP | N182: 106460.42 | P182: 442901 | Q182: 8429 | R182: HA | S182: FXP | T182: FXP | U182: 106460.42 | V182: 106460.2946 | W182: 0.1254
A183: 4040PV | B183: 8040 | C183: FXP.8040 | D183: KLO | E183: HB | F183: 2011-SCS-Original Budget-C | G183: 173 | H183: 13.04 | J183: 442904 | K183: 8429 | L183: HA | M183: FXP | N183: 34725.13 | P183: 442904 | Q183: 8429 | R183: HA | S183: FXP | T183: FXP | U183: 34725.13 | V183: 34725.11759 | W183: 0.012408
A184: 4040PV | B184: 8040 | C184: FXP.8040 | D184: LPD | E184: HB | F184: 2011-SCS-Original Budget-C | G184: 173 | H184: 1.2 | J184: 442908 | K184: 8429 | L184: HA | M184: FXP | N184: 4489.34 | P184: 442908 | Q184: 8429 | R184: HA | S184: FXP | T184: FXP | U184: 4489.34 | V184: 4489.243088 | W184: 0.096912
A185: 4040PV | B185: 8040 | C185: FXP.8040 | D185: LPN | E185: HB | F185: 2011-SCS-Original Budget-C | G185: 173 | H185: 12.8 | J185: 4429AA | K185: 8429 | L185: HA | M185: FXP | N185: 12110.2 | P185: 4429AA | Q185: 8429 | R185: HA | S185: FXP | T185: FXP | U185: 12110.2 | V185: 12110.05523 | W185: 0.144768
A186: 4040PV | B186: 8040 | C186: FXP.8040 | D186: LSN | E186: HB | F186: 2011-SCS-Original Budget-C | G186: 173 | H186: 59.38 | J186: 44520P | K186: 8452 | L186: HD | M186: FXP | N186: 3298.98 | P186: 44520P | Q186: 8452 | R186: HD | S186: FXP | T186: FXP | U186: 3298.98 | V186: 3299.04504 | W186: -0.06504
A187: 4040RC | B187: 8040 | C187: FXP.8040 | D187: BBO | E187: HB | F187: 2011-SCS-Original Budget-C | G187: 173 | H187: 276.14 | J187: 44520T | K187: 8452 | L187: HD | M187: FXP | N187: 3324.9 | P187: 44520T | Q187: 8452 | R187: HD | S187: FXP | T187: FXP | U187: 3324.9 | V187: 3324.82998 | W187: 0.07002
A188: 4040RC | B188: 8040 | C188: FXP.8040 | D188: BPS | E188: HB | F188: 2011-SCS-Original Budget-C | G188: 173 | H188: 14.56 | J188: 44521Q | K188: 8452 | L188: HD | M188: FXP | N188: 2199.24 | P188: 44521Q | Q188: 8452 | R188: HD | S188: FXP | T188: FXP | U188: 2199.24 | V188: 2199.216876 | W188: 0.023124
A189: 4040RC | B189: 8040 | C189: FXP.8040 | D189: BSO | E189: HB | F189: 2011-SCS-Original Budget-C | G189: 173 | H189: 21.74 | J189: 44525T | K189: 8452 | L189: HD | M189: FXP | N189: 3879.2 | P189: 44525T | Q189: 8452 | R189: HD | S189: FXP | T189: FXP | U189: 3879.2 | V189: 3879.054072 | W189: 0.145928
A190: 4040RC | B190: 8040 | C190: FXP.8040 | D190: CAG | E190: HB | F190: 2011-SCS-Original Budget-C | G190: 173 | H190: 197.24 | J190: 4452C5 | K190: 8452 | L190: HD | M190: FXP | N190: 4460.78 | P190: 4452C5 | Q190: 8452 | R190: HD | S190: FXP | T190: FXP | U190: 4460.78 | V190: 4460.834684 | W190: -0.054684
A191: 4040RC | B191: 8040 | C191: FXP.8040 | D191: CCC | E191: HB | F191: 2011-SCS-Original Budget-C | G191: 173 | H191: 922.06 | J191: 4452C8 | K191: 8452 | L191: HD | M191: FXP | N191: 19324.6 | P191: 4452C8 | Q191: 8452 | R191: HD | S191: FXP | T191: FXP | U191: 19324.6 | V191: 19324.56616 | W191: 0.033836
A192: 4040RC | B192: 8040 | C192: FXP.8040 | D192: CPT | E192: HB | F192: 2011-SCS-Original Budget-C | G192: 173 | H192: 79.82 | J192: 4452CP | K192: 8452 | L192: HD | M192: FXP | N192: 1768.4 | P192: 4452CP | Q192: 8452 | R192: HD | S192: FXP | T192: FXP | U192: 1768.4 | V192: 1768.441236 | W192: -0.041236
A193: 4040RC | B193: 8040 | C193: FXP.8040 | D193: KLO | E193: HB | F193: 2011-SCS-Original Budget-C | G193: 173 | H193: 208.5 | J193: 4452DS | K193: 8452 | L193: HD | M193: FXP | N193: 8868.88 | P193: 4452DS | Q193: 8452 | R193: HD | S193: FXP | T193: FXP | U193: 8868.88 | V193: 8869.007744 | W193: -0.127744
A194: 4040RC | B194: 8040 | C194: FXP.8040 | D194: LPD | E194: HB | F194: 2011-SCS-Original Budget-C | G194: 173 | H194: 19.12 | J194: 4452ES | K194: 8452 | L194: HD | M194: FXP | N194: 16453.28 | P194: 4452ES | Q194: 8452 | R194: HD | S194: FXP | T194: FXP | U194: 16453.28 | V194: 16453.18429 | W194: 0.095708
A195: 4040RC | B195: 8040 | C195: FXP.8040 | D195: LPN | E195: HB | F195: 2011-SCS-Original Budget-C | G195: 173 | H195: 205.5 | J195: 4452FF | K195: 8452 | L195: HD | M195: FXP | N195: 12825.81 | P195: 4452FF | Q195: 8452 | R195: HD | S195: FXP | T195: FXP | U195: 12825.81 | V195: 12826.03199 | W195: -0.221994
A196: 4040RC | B196: 8040 | C196: FXP.8040 | D196: LSN | E196: HB | F196: 2011-SCS-Original Budget-C | G196: 173 | H196: 949.06 | J196: 4452HB | K196: 8452 | L196: HD | M196: FXP | N196: 9684.66 | P196: 4452HB | Q196: =IF(K196="",Q195,K196) -> 8452 | R196: =IF(L196="",R195,L196) -> HD | S196: =IF(M196="",S195,M196) -> FXP | T196: FXP | U196: =IF(N196="",U195,N196) -> 9684.66 | V196: =IF(S196="DIRECT",U196,VLOOKUP(P196&Q196,GULFDIST,8,0)) -> 9684.533626 | W196: 0.126374
A197: 4040RE | B197: =IF(OR(LEFT(C197,1)="F",LEFT(C197,1)="D"),RIGHT(C197,4),"") -> 8040 | C197: FXP.8040 | D197: KPR | E197: HB | F197: 2011-SCS-Original Budget-C | G197: 173 | H197: 186.24 | J197: 4452HE | K197: 8452 | L197: HD | M197: FXP | N197: 13559.49 | P197: =IF(J197="",P196,J197) -> 4452HE | Q197: 8452 | R197: HD | S197: FXP | T197: =(IF(LEFT(S197,2)="DA","DA",S197)) -> FXP | U197: 13559.49 | V197: 13559.59444 | W197: =U197-V197 -> -0.104444
A198: 4040RW | B198: 8040 | C198: FXP.8040 | D198: BPS | E198: HB | F198: 2011-SCS-Original Budget-C | G198: 173 | H198: 13.51 | J198: 4452JQ | K198: 8452 | L198: HD | M198: FXP | N198: 912.61 | P198: 4452JQ | Q198: 8452 | R198: HD | S198: FXP | T198: FXP | U198: 912.61 | V198: 912.6454 | W198: -0.0354
A199: 4040RW | B199: 8040 | C199: FXP.8040 | D199: BSO | E199: HB | F199: 2011-SCS-Original Budget-C | G199: 173 | H199: 9.03 | J199: 4452LD | K199: 8452 | L199: HD | M199: FXP | N199: 1698.56 | P199: 4452LD | Q199: 8452 | R199: HD | S199: FXP | T199: FXP | U199: 1698.56 | V199: 1698.491996 | W199: 0.068004
A200: 4040RW | B200: 8040 | C200: FXP.8040 | D200: CAG | E200: HB | F200: 2011-SCS-Original Budget-C | G200: 173 | H200: 667.48 | J200: 4452LE | K200: 8452 | L200: HD | M200: FXP | N200: 1953.38 | P200: 4452LE | Q200: 8452 | R200: HD | S200: FXP | T200: FXP | U200: 1953.38 | V200: 1953.438008 | W200: -0.058008
A201: 4040RW | B201: 8040 | C201: FXP.8040 | D201: CCC | E201: HB | F201: 2011-SCS-Original Budget-C | G201: 173 | H201: 837.12 | J201: 4452LK | K201: 8452 | L201: HD | M201: FXP | N201: 404.64 | P201: 4452LK | Q201: 8452 | R201: HD | S201: FXP | T201: FXP | U201: 404.64 | V201: 404.578792 | W201: 0.061208
... 4299 more rows

Sheet AWO Distributions
L2: AWOKEY | P2: PARENTAMT | R2: Distributions from Allocated work orders to Gulf EWO's (Top Down)
A3: EWO | B3: WO | C3: TYPE | D3: Resource Type | E3: Amount | G3: TYPE | H3: WO | I3: EWO | J3: Sum of Amount | L3: KEY | M3: TYPE | N3: WO | O3: WOS | P3: AMT | R3: KEY | S3: AWO | T3: TYPE | U3: EWO | V3: AI | W3: PCT | X3: AWO$ | Y3: GULF$
A4: 8030AS | B4: =LEFT(A4,4) -> 8030 | C4: =VLOOKUP(B4,ALLOCTYPE,2,0) -> FXP | D4: BSO | E4: 4663.18 | G4: DA | H4: 8467 | I4: 846701 | J4: 339923.27 | L4: =N4 -> 8467 | M4: =IF(G4="",M3,G4) -> DA | N4: =IF(H4="",N3,H4) -> 8467 | O4: =IF(I4="",O3,I4) -> 846701 | P4: =IF(J4="",P3,J4) -> 339923.27 | R4: =U4&LEFT(S4,4) -> 4464528464 | S4: 8464 | T4: =VLOOKUP(LEFT(S4,4),ALLOCTYPE,2,0) -> DA | U4: 446452 | V4: DA | W4: =IF(T4="FXP",VLOOKUP(LEFT(S4,4),FLFXPPCT,4,0),IF(T4="DA",VLOOKUP(U4&LEFT(S4,4),DAPCT,4,0),VLOOKUP(LEFT(U4,4)&"**"&LEFT(S4,4),DAPCT,4,0))) -> 0.0953 | X4: =SUMIF(AWOKEY,S4,PARENTAMT) -> 0 | Y4: =X4*W4 -> 0
A5: 8030AS | B5: 8030 | C5: FXP | D5: LPD | E5: 5547.06 | H5: 8583 | I5: 8583MP | J5: 170182.64 | L5: =N5 -> 8583 | M5: =IF(G5="",M4,G5) -> DA | N5: =IF(H5="",N4,H5) -> 8583 | O5: =IF(I5="",O4,I5) -> 8583MP | P5: =IF(J5="",P4,J5) -> 170182.64 | R5: 4467018467 | S5: 8467 | T5: DA | U5: 446701 | V5: DA | W5: 0.0685 | X5: 339923.27 | Y5: =X5*W5 -> 23284.744
A6: 8030AS | B6: 8030 | C6: FXP | D6: LLT | E6: 6376 | I6: 8583OP | J6: 1421496.05 | L6: 8583 | M6: DA | N6: 8583 | O6: 8583OP | P6: 1421496.05 | R6: 4583018583 | S6: 8583 | T6: DA | U6: 458301 | V6: DA | W6: 0.025 | X6: 1592297.69 | Y6: =X6*W6 -> 39807.44225
A7: 8030AS | B7: 8030 | C7: FXP | D7: BPS | E7: 6979.56 | I7: 8583SU | J7: 619 | L7: 8583 | M7: DA | N7: 8583 | O7: 8583SU | P7: 619 | R7: 47APLD8688 | S7: 8688 | T7: DA | U7: 47APLD | V7: DA | W7: 0.1543 | X7: 16098.61 | Y7: 2484.015523
A8: 8030AS | B8: 8030 | C8: FXP | D8: LPR | E8: 65985.73 | H8: 8688 | I8: 8688AI | J8: 16098.61 | L8: 8688 | M8: DA | N8: 8688 | O8: 8688AI | P8: 16098.61 | R8: 47APLD8689 | S8: 8689 | T8: DA | U8: 47APLD | V8: DA | W8: 0.1543 | X8: 0 | Y8: 0
A9: 8030AS | B9: 8030 | C9: FXP | D9: CCC | E9: 80901.6 | H9: 86AC | I9: 86AC01 | J9: 276365.53 | L9: 86AC | M9: DA | N9: 86AC | O9: 86AC01 | P9: 276365.53 | R9: 46COCD86AC | S9: 86AC | T9: DA | U9: 46COCD | V9: DA | W9: 0.015 | X9: 276365.53 | Y9: 4145.48295
A10: 8030AS | B10: 8030 | C10: FXP | D10: CAG | E10: 174926.45 | H10: 86AE | I10: 86AECA | J10: 17811.69 | L10: 86AE | M10: DA | N10: 86AE | O10: 86AECA | P10: 17811.69 | R10: 46COTA86AE | S10: 86AE | T10: DA | U10: 46COTA | V10: DA | W10: 0.06194 | X10: 1653206.02 | Y10: 102399.5809
A11: 8030AS | B11: 8030 | C11: FXP | D11: LSN | E11: 304784 | I11: 86AELR | J11: 940999.17 | L11: 86AE | M11: DA | N11: 86AE | O11: 86AELR | P11: 940999.17 | R11: 46XA0486AV | S11: 86AV | T11: DA | U11: 46XA04 | V11: DA | W11: 0.0721 | X11: 21461.35 | Y11: 1547.363335
A12: 803S01 | B12: 803S | C12: FXP | D12: EEX | E12: 6181 | I12: 86AEMW | J12: 82404.3 | L12: 86AE | M12: DA | N12: 86AE | O12: 86AEMW | P12: 82404.3 | R12: 4651B186B1 | S12: 86B1 | T12: DA | U12: 4651B1 | V12: DA | W12: 0.0714 | X12: 0 | Y12: 0
A13: 803S01 | B13: 803S | C13: FXP | D13: EUT | E13: 13085 | I13: 86AEOE | J13: 154618.14 | L13: 86AE | M13: DA | N13: 86AE | O13: 86AEOE | P13: 154618.14 | R13: 4651B986B9 | S13: 86B9 | T13: DA | U13: 4651B9 | V13: DA | W13: 0.0714 | X13: 0 | Y13: 0
A14: 803S01 | B14: 803S | C14: FXP | D14: BSO | E14: 14784.84 | I14: 86AEPL | J14: 265947.8 | L14: 86AE | M14: DA | N14: 86AE | O14: 86AEPL | P14: 265947.8 | R14: 47APLF86C1 | S14: 86C1 | T14: DA | U14: 47APLF | V14: DA | W14: 0.0773 | X14: 0 | Y14: 0
A15: 803S01 | B15: 803S | C15: FXP | D15: KLS | E15: 15446 | I15: 86AEPR | J15: 17811.69 | L15: 86AE | M15: DA | N15: 86AE | O15: 86AEPR | P15: 17811.69 | R15: 47APLF86C2 | S15: 86C2 | T15: DA | U15: 47APLF | V15: DA | W15: 0.0773 | X15: 0 | Y15: 0
A16: 803S01 | B16: 803S | C16: FXP | D16: LPD | E16: 17587.16 | I16: 86AESM | J16: 53191.1 | L16: 86AE | M16: DA | N16: 86AE | O16: 86AESM | P16: 53191.1 | R16: 46COCI86CI | S16: 86CI | T16: DA | U16: 46COCI | V16: DA | W16: 0.0728 | X16: 7231284.98 | Y16: 526437.5465
A17: 803S01 | B17: 803S | C17: FXP | D17: KPM | E17: 18000 | I17: 86AETA | J17: 120422.13 | L17: 86AE | M17: DA | N17: 86AE | O17: 86AETA | P17: 120422.13 | R17: 47APLE86CK | S17: 86CK | T17: DA | U17: 47APLE | V17: DA | W17: 0.01725 | X17: 0 | Y17: 0
A18: 803S01 | B18: 803S | C18: FXP | D18: BPS | E18: 22128.96 | H18: 86AV | I18: 86AV01 | J18: 21461.35 | L18: 86AV | M18: DA | N18: 86AV | O18: 86AV01 | P18: 21461.35 | R18: 47APLE86CM | S18: 86CM | T18: DA | U18: 47APLE | V18: DA | W18: 0.01725 | X18: 0 | Y18: 0
A19: 803S01 | B19: 803S | C19: FXP | D19: EEM | E19: 33193 | H19: 86CI | I19: 86CICI | J19: 7231284.98 | L19: 86CI | M19: DA | N19: 86CI | O19: 86CICI | P19: 7231284.98 | R19: 4669CO86CO | S19: 86CO | T19: DA | U19: 4669CO | V19: DA | W19: 0.0972 | X19: 180964.09 | Y19: 17589.70955
A20: 803S01 | B20: 803S | C20: FXP | D20: EET | E20: 50690 | H20: 86CO | I20: 86COCO | J20: 180964.09 | L20: 86CO | M20: DA | N20: 86CO | O20: 86COCO | P20: 180964.09 | R20: 46HRRK86CR | S20: 86CR | T20: DA | U20: 46HRRK | V20: DA | W20: 0.051218 | X20: 188121 | Y20: 9635.181378
A21: 803S01 | B21: 803S | C21: FXP | D21: ISA | E21: 85000 | H21: 86CR | I21: 86CR3E | J21: 188121 | L21: 86CR | M21: DA | N21: 86CR | O21: 86CR3E | P21: 188121 | R21: 46CC9086CU | S21: 86CU | T21: DA | U21: 46CC90 | V21: DA | W21: 0.05 | X21: 145360 | Y21: 7268
A22: 803S01 | B22: 803S | C22: FXP | D22: KPT | E22: 113000 | H22: 86CU | I22: 86CU01 | J22: 145360 | L22: 86CU | M22: DA | N22: 86CU | O22: 86CU01 | P22: 145360 | R22: 4690AE86DT | S22: 86DT | T22: DA | U22: 4690AE | V22: DA | W22: 0.39 | X22: 66263.09 | Y22: 25842.6051
A23: 803S01 | B23: 803S | C23: FXP | D23: LPM | E23: 209210.08 | H23: 86DT | I23: 86DTMF | J23: 66263.09 | L23: 86DT | M23: DA | N23: 86DT | O23: 86DTMF | P23: 66263.09 | R23: 47APLF86E1 | S23: 86E1 | T23: DA | U23: 47APLF | V23: DA | W23: 0.0745 | X23: 0 | Y23: 0
A24: 803S01 | B24: 803S | C24: FXP | D24: CCC | E24: 459116.02 | H24: 86EL | I24: 86EL01 | J24: 251672.89 | L24: 86EL | M24: DA | N24: 86EL | O24: 86EL01 | P24: 251672.89 | R24: 47APLF86E2 | S24: 86E2 | T24: DA | U24: 47APLF | V24: DA | W24: 0.0745 | X24: 0 | Y24: 0
A25: 803S01 | B25: 803S | C25: FXP | D25: CAG | E25: 550344.82 | I25: 86EL09 | J25: 89281.07 | L25: 86EL | M25: DA | N25: 86EL | O25: 86EL09 | P25: 89281.07 | R25: 46EL0186EL | S25: 86EL | T25: DA | U25: 46EL01 | V25: DA | W25: 0.02 | X25: 348739.96 | Y25: 6974.7992
A26: 803S01 | B26: 803S | C26: FXP | D26: LSN | E26: 966328 | I26: 86ELWC | J26: 7786 | L26: 86EL | M26: DA | N26: 86EL | O26: 86ELWC | P26: 7786 | R26: 46DR2486F8 | S26: 86F8 | T26: DA | U26: 46DR24 | V26: DA | W26: 0.6 | X26: 4867 | Y26: 2920.2
A27: 804003 | B27: 8040 | C27: FXP | D27: EHT | E27: 8000 | H27: 86F8 | I27: 86F801 | J27: 4867 | L27: 86F8 | M27: DA | N27: 86F8 | O27: 86F801 | P27: 4867 | R27: 46TN0186F8 | S27: 86F8 | T27: DA | U27: 46TN01 | V27: DA | W27: 0.4 | X27: 4867 | Y27: 1946.8
A28: 804003 | B28: 8040 | C28: FXP | D28: EMN | E28: 12000 | H28: 86GW | I28: 86GW01 | J28: 40463.93 | L28: 86GW | M28: DA | N28: 86GW | O28: 86GW01 | P28: 40463.93 | R28: 46TXTC86FM | S28: 86FM | T28: DA | U28: 46TXTC | V28: DA | W28: 0.0369004 | X28: 0 | Y28: 0
A29: 80401T | B29: 8040 | C29: FXP | D29: BPS | E29: 1366.88 | H29: 86HA | I29: 86HA01 | J29: 6591 | L29: 86HA | M29: DA | N29: 86HA | O29: 86HA01 | P29: 6591 | R29: 4651GW86GW | S29: 86GW | T29: DA | U29: 4651GW | V29: DA | W29: 0.0796 | X29: 40463.93 | Y29: 3220.928828
A30: 80401T | B30: 8040 | C30: FXP | D30: LPD | E30: 1804.66 | H30: 86IV | I30: 86IVDM | J30: 32000 | L30: 86IV | M30: DA | N30: 86IV | O30: 86IVDM | P30: 32000 | R30: 46AF0186HA | S30: 86HA | T30: DA | U30: 46AF01 | V30: DA | W30: 0.011614 | X30: 6591 | Y30: 76.547874
A31: 80401T | B31: 8040 | C31: FXP | D31: EHT | E31: 1953.18 | H31: 86J1 | I31: 86J101 | J31: 37283.41 | L31: 86J1 | M31: DA | N31: 86J1 | O31: 86J101 | P31: 37283.41 | R31: 46SEDM86IV | S31: 86IV | T31: DA | U31: 46SEDM | V31: DA | W31: 0.0943 | X31: 32000 | Y31: 3017.6
A32: 80401T | B32: 8040 | C32: FXP | D32: BSO | E32: 2045.88 | H32: 86MC | I32: 86MCDA | J32: 28142.24 | L32: 86MC | M32: DA | N32: 86MC | O32: 86MCDA | P32: 28142.24 | R32: 4651J186J1 | S32: 86J1 | T32: DA | U32: 4651J1 | V32: DA | W32: 0.0796 | X32: 37283.41 | Y32: 2967.759436
A33: 80401T | B33: 8040 | C33: FXP | D33: EMN | E33: 2929.82 | H33: 86MG | I33: 86MGJE | J33: 150626.15 | L33: 86MG | M33: DA | N33: 86MG | O33: 86MGJE | P33: 150626.15 | R33: 4651J986J9 | S33: 86J9 | T33: DA | U33: 4651J9 | V33: DA | W33: 0.0796 | X33: 0 | Y33: 0
A34: 80401T | B34: 8040 | C34: FXP | D34: CPT | E34: 7517.2 | I34: 86MGSP | J34: 16660.78 | L34: 86MG | M34: DA | N34: 86MG | O34: 86MGSP | P34: 16660.78 | R34: 4661MB86MB | S34: 86MB | T34: DA | U34: 4661MB | V34: DA | W34: 0.0723 | X34: 0 | Y34: 0
A35: 80401T | B35: 8040 | C35: FXP | D35: LPN | E35: 19341.76 | H35: 86MK | I35: 86MKEI | J35: 14308.43 | L35: 86MK | M35: DA | N35: 86MK | O35: 86MKEI | P35: 14308.43 | R35: 46RDDA86MC | S35: 86MC | T35: DA | U35: 46RDDA | V35: DA | W35: 0.0972 | X35: 28142.24 | Y35: 2735.425728
A36: 80401T | B36: 8040 | C36: FXP | D36: CAG | E36: 20198.98 | H36: 86NI | I36: 86NI01 | J36: 205066.78 | L36: 86NI | M36: DA | N36: 86NI | O36: 86NI01 | P36: 205066.78 | R36: 48BS0186MG | S36: 86MG | T36: DA | U36: 48BS01 | V36: DA | W36: 0.0276 | X36: 167286.93 | Y36: 4617.119268
A37: 80401T | B37: 8040 | C37: FXP | D37: BBO | E37: 25997.46 | H37: 86OA | I37: 86OAMT | J37: 1930000 | L37: 86OA | M37: DA | N37: 86OA | O37: 86OAMT | P37: 1930000 | R37: 46MKES86MK | S37: 86MK | T37: DA | U37: 46MKES | V37: DA | W37: 0.25 | X37: 14308.43 | Y37: 3577.1075
A38: 80401T | B38: 8040 | C38: FXP | D38: KLO | E38: 31418.92 | H38: 86OO | I38: 86OOMT | J38: 1409422 | L38: 86OO | M38: DA | N38: 86OO | O38: 86OOMT | P38: 1409422 | R38: 4661MT86MV | S38: 86MV | T38: DA | U38: 4661MT | V38: DA | W38: 0.0723 | X38: 0 | Y38: 0
A39: 80401T | B39: 8040 | C39: FXP | D39: CCC | E39: 50860.66 | H39: 86PL | I39: 86PL01 | J39: 27705.35 | L39: 86PL | M39: DA | N39: 86PL | O39: 86PL01 | P39: 27705.35 | R39: 46CC2086NI | S39: 86NI | T39: DA | U39: 46CC20 | V39: DA | W39: 0.0594001 | X39: 205066.78 | Y39: 12180.98724
A40: 80401T | B40: 8040 | C40: FXP | D40: LSN | E40: 89338.3 | H40: 86R6 | I40: 86R6SP | J40: 10312 | L40: 86R6 | M40: DA | N40: 86R6 | O40: 86R6SP | P40: 10312 | R40: 46TXTC86NI | S40: 86NI | T40: DA | U40: 46TXTC | V40: DA | W40: 0.003765 | X40: 205066.78 | Y40: 772.0764267
A41: 8040PH | B41: 8040 | C41: FXP | D41: BPS | E41: 13.62 | H41: 86RA | I41: 86RA01 | J41: 137713.51 | L41: 86RA | M41: DA | N41: 86RA | O41: 86RA01 | P41: 137713.51 | R41: 47APIE86OA | S41: 86OA | T41: DA | U41: 47APIE | V41: DA | W41: 0.0017 | X41: 1930000 | Y41: 3281
A42: 8040PH | B42: 8040 | C42: FXP | D42: LPD | E42: 18.04 | H42: 86RS | I42: 86RS01 | J42: 15726.04 | L42: 86RS | M42: DA | N42: 86RS | O42: 86RS01 | P42: 15726.04 | R42: 46TC0286OO | S42: 86OO | T42: DA | U42: 46TC02 | V42: DA | W42: 0.014299 | X42: 1409422 | Y42: 20153.32518
A43: 8040PH | B43: 8040 | C43: FXP | D43: BSO | E43: 20.42 | H43: 86RW | I43: 86RW01 | J43: 96862.49 | L43: 86RW | M43: DA | N43: 86RW | O43: 86RW01 | P43: 96862.49 | R43: 4711CP86OO | S43: 86OO | T43: DA | U43: 4711CP | V43: DA | W43: 2.511e-05 | X43: 1409422 | Y43: 35.39058642
A44: 8040PH | B44: 8040 | C44: FXP | D44: CPT | E44: 74.92 | H44: 86SQ | I44: 86SQMT | J44: 558240 | L44: 86SQ | M44: DA | N44: 86SQ | O44: 86SQMT | P44: 558240 | R44: 48DH0186OO | S44: 86OO | T44: DA | U44: 48DH01 | V44: DA | W44: 5.746e-05 | X44: 1409422 | Y44: 80.98538812
A45: 8040PH | B45: 8040 | C45: FXP | D45: CAG | E45: 185.08 | H45: 86SS | I45: 86SS01 | J45: 169576.77 | L45: 86SS | M45: DA | N45: 86SS | O45: 86SS01 | P45: 169576.77 | R45: 48ED0186OO | S45: 86OO | T45: DA | U45: 48ED01 | V45: DA | W45: 0.00029614 | X45: 1409422 | Y45: 417.3862311
A46: 8040PH | B46: 8040 | C46: FXP | D46: LPN | E46: 192.84 | H46: 86T9 | I46: 86T909 | J46: 270550.1 | L46: 86T9 | M46: DA | N46: 86T9 | O46: 86T909 | P46: 270550.1 | R46: 40440286PL | S46: 86PL | T46: DA | U46: 404402 | V46: DA | W46: 0.01 | X46: 27705.35 | Y46: 277.0535
A47: 8040PH | B47: 8040 | C47: FXP | D47: KLO | E47: 195.7 | H47: 86TR | I47: 86TR01 | J47: 176177.44 | L47: 86TR | M47: DA | N47: 86TR | O47: 86TR01 | P47: 176177.44 | R47: 4711CP86R6 | S47: 86R6 | T47: DA | U47: 4711CP | V47: DA | W47: 0.000459 | X47: 10312 | Y47: 4.733208
A48: 8040PH | B48: 8040 | C48: FXP | D48: BBO | E48: 259.16 | H48: 86TS | I48: 86TS01 | J48: 120659.04 | L48: 86TS | M48: DA | N48: 86TS | O48: 86TS01 | P48: 120659.04 | R48: 48DH0186R6 | S48: 86R6 | T48: DA | U48: 48DH01 | V48: DA | W48: 0.0010506 | X48: 10312 | Y48: 10.8337872
A49: 8040PH | B49: 8040 | C49: FXP | D49: CCC | E49: 865.3 | H49: 86W2 | I49: 86W201 | J49: 311873 | L49: 86W2 | M49: DA | N49: 86W2 | O49: 86W201 | P49: 311873 | R49: 4711CP86R8 | S49: 86R8 | T49: DA | U49: 4711CP | V49: DA | W49: 0.0005559 | X49: 0 | Y49: 0
A50: 8040PH | B50: 8040 | C50: FXP | D50: LSN | E50: 890.64 | H50: 86W3 | I50: 86W301 | J50: 597197.09 | L50: 86W3 | M50: DA | N50: 86W3 | O50: 86W301 | P50: 597197.09 | R50: 48DH0186R8 | S50: 86R8 | T50: DA | U50: 48DH01 | V50: DA | W50: 0.0012778 | X50: 0 | Y50: 0
A51: 8040PM | B51: 8040 | C51: FXP | D51: BPS | E51: 72.76 | H51: 86WH | I51: 86WH01 | J51: 573107.92 | L51: 86WH | M51: DA | N51: 86WH | O51: 86WH01 | P51: 573107.92 | R51: 46CORM86RA | S51: 86RA | T51: DA | U51: 46CORM | V51: DA | W51: 0.0525 | X51: 137713.51 | Y51: 7229.959275
A52: 8040PM | B52: 8040 | C52: FXP | D52: LPD | E52: 96.06 | H52: 871A | I52: 871A01 | J52: 636589.85 | L52: 871A | M52: DA | N52: 871A | O52: 871A01 | P52: 636589.85 | R52: 4669SW86RN | S52: 86RN | T52: DA | U52: 4669SW | V52: DA | W52: 0.0723 | X52: 0 | Y52: 0
A53: 8040PM | B53: 8040 | C53: FXP | D53: BSO | E53: 108.86 | H53: 8784 | I53: 878401 | J53: 114969.7 | L53: 8784 | M53: DA | N53: 8784 | O53: 878401 | P53: 114969.7 | R53: 46CORM86RS | S53: 86RS | T53: DA | U53: 46CORM | V53: DA | W53: 0.1667 | X53: 15726.04 | Y53: 2621.530868
A54: 8040PM | B54: 8040 | C54: FXP | D54: CPT | E54: 400.04 | H54: 87AD | I54: 87AD01 | J54: 690048.7 | L54: 87AD | M54: DA | N54: 87AD | O54: 87AD01 | P54: 690048.7 | R54: 46HR0286RW | S54: 86RW | T54: DA | U54: 46HR02 | V54: DA | W54: 0.0714 | X54: 96862.49 | Y54: 6915.981786
A55: 8040PM | B55: 8040 | C55: FXP | D55: CAG | E55: 842.48 | I55: 87ADSW | J55: 354718.91 | L55: 87AD | M55: DA | N55: 87AD | O55: 87ADSW | P55: 354718.91 | R55: 46SE0186RW | S55: 86RW | T55: DA | U55: 46SE01 | V55: DA | W55: 0.0714 | X55: 96862.49 | Y55: 6915.981786
A56: 8040PM | B56: 8040 | C56: FXP | D56: LPN | E56: 1029.24 | H56: 87NA | I56: 87NA01 | J56: 1991577.55 | L56: 87NA | M56: DA | N56: 87NA | O56: 87NA01 | P56: 1991577.55 | R56: 4638SM86S2 | S56: 86S2 | T56: DA | U56: 4638SM | V56: DA | W56: 0.036 | X56: 0 | Y56: 0
A57: 8040PM | B57: 8040 | C57: FXP | D57: BBO | E57: 1383.5 | H57: 87RM | I57: 87RM01 | J57: 258862.69 | L57: 87RM | M57: DA | N57: 87RM | O57: 87RM01 | P57: 258862.69 | R57: 4638SP86S3 | S57: 86S3 | T57: DA | U57: 4638SP | V57: DA | W57: 0.0723 | X57: 0 | Y57: 0
A58: 8040PM | B58: 8040 | C58: FXP | D58: CCC | E58: 3030.58 | H58: 87RS | I58: 87RS01 | J58: 673435.06 | L58: 87RS | M58: DA | N58: 87RS | O58: 87RS01 | P58: 673435.06 | R58: 4638SP86S4 | S58: 86S4 | T58: DA | U58: 4638SP | V58: DA | W58: 0.036 | X58: 0 | Y58: 0
A59: 8040PM | B59: 8040 | C59: FXP | D59: LSN | E59: 4754.26 | H59: 87WW | I59: 87WWR2 | J59: 334424.01 | L59: 87WW | M59: DA | N59: 87WW | O59: 87WWR2 | P59: 334424.01 | R59: 46COSM86SM | S59: 86SM | T59: DA | U59: 46COSM | V59: DA | W59: 0.099 | X59: 0 | Y59: 0
A60: 8040PT | B60: 8040 | C60: FXP | D60: BPS | E60: 102.16 | H60: 88ED | I60: 88ED01 | J60: 317388.68 | L60: 88ED | M60: DA | N60: 88ED | O60: 88ED01 | P60: 317388.68 | R60: 4690AE86SQ | S60: 86SQ | T60: DA | U60: 4690AE | V60: DA | W60: 0.0059 | X60: 558240 | Y60: 3293.616
A61: 8040PT | B61: 8040 | C61: FXP | D61: LPD | E61: 134.9 | I61: 88EDBL | J61: 127879.32 | L61: 88ED | M61: DA | N61: 88ED | O61: 88EDBL | P61: 127879.32 | R61: 46COAM86SQ | S61: 86SQ | T61: DA | U61: 46COAM | V61: DA | W61: 0.0004 | X61: 558240 | Y61: 223.296
A62: 8040PT | B62: 8040 | C62: FXP | D62: BSO | E62: 152.94 | I62: 88EDMU | J62: 2796 | L62: 88ED | M62: DA | N62: 88ED | O62: 88EDMU | P62: 2796 | R62: 46COIT86SQ | S62: 86SQ | T62: DA | U62: 46COIT | V62: DA | W62: 0.0032 | X62: 558240 | Y62: 1786.368
A63: 8040PT | B63: 8040 | C63: FXP | D63: CPT | E63: 562.06 | I63: 88EDPR | J63: 142531.06 | L63: 88ED | M63: DA | N63: 88ED | O63: 88EDPR | P63: 142531.06 | R63: 46DRDC86SQ | S63: 86SQ | T63: DA | U63: 46DRDC | V63: DA | W63: 0.0059 | X63: 558240 | Y63: 3293.616
A64: 8040PT | B64: 8040 | C64: FXP | D64: CAG | E64: 1387.7 | H64: 89SW | I64: 89SW01 | J64: 39172.54 | L64: 89SW | M64: DA | N64: 89SW | O64: 89SW01 | P64: 39172.54 | R64: 4QFH0686SQ | S64: 86SQ | T64: DA | U64: 4QFH06 | V64: DA | W64: 0.0059 | X64: 558240 | Y64: 3293.616
A65: 8040PT | B65: 8040 | C65: FXP | D65: LPN | E65: 1446.24 | I65: 89SWCE | J65: 7100 | L65: 89SW | M65: DA | N65: 89SW | O65: 89SWCE | P65: 7100 | R65: 4690AE86SS | S65: 86SS | T65: DA | U65: 4690AE | V65: DA | W65: 0.0097 | X65: 169576.77 | Y65: 1644.894669
A66: 8040PT | B66: 8040 | C66: FXP | D66: KLO | E66: 1467.62 | H66: 8QOM | I66: 8QOM01 | J66: 612112.48 | L66: 8QOM | M66: DA | N66: 8QOM | O66: 8QOM01 | P66: 612112.48 | R66: 46AF0386SS | S66: 86SS | T66: DA | U66: 46AF03 | V66: DA | W66: 0.0097 | X66: 169576.77 | Y66: 1644.894669
A67: 8040PT | B67: 8040 | C67: FXP | D67: BBO | E67: 1943.88 | H67: 8QPA | I67: 8QPA01 | J67: 982564.61 | L67: 8QPA | M67: DA | N67: 8QPA | O67: 8QPA01 | P67: 982564.61 | R67: 46MK0486SS | S67: 86SS | T67: DA | U67: 46MK04 | V67: DA | W67: 0.0097 | X67: 169576.77 | Y67: 1644.894669
A68: 8040PT | B68: =LEFT(A68,4) -> 8040 | C68: =VLOOKUP(B68,ALLOCTYPE,2,0) -> FXP | D68: CCC | E68: 6489.64 | H68: 8QWA | I68: 8QWA01 | J68: 14583.76 | L68: 8QWA | M68: DA | N68: 8QWA | O68: 8QWA01 | P68: 14583.76 | R68: =U68&LEFT(S68,4) -> 4669T986T9 | S68: 86T9 | T68: =VLOOKUP(LEFT(S68,4),ALLOCTYPE,2,0) -> DA | U68: 4669T9 | V68: DA | W68: =IF(T68="FXP",VLOOKUP(LEFT(S68,4),FLFXPPCT,4,0),IF(T68="DA",VLOOKUP(U68&LEFT(S68,4),DAPCT,4,0),VLOOKUP(LEFT(U68,4)&"**"&LEFT(S68,4),DAPCT,4,0))) -> 0.0723 | X68: =SUMIF(AWOKEY,S68,PARENTAMT) -> 270550.1 | Y68: 19560.77223
A69: 8040PT | B69: 8040 | C69: FXP | D69: LSN | E69: 6680.08 | H69: 90AA | I69: 90AAFM | J69: 343762.34 | L69: =N69 -> 90AA | M69: =IF(G69="",M68,G69) -> DA | N69: =IF(H69="",N68,H69) -> 90AA | O69: =IF(I69="",O68,I69) -> 90AAFM | P69: =IF(J69="",P68,J69) -> 343762.34 | R69: 46RDTE86TE | S69: 86TE | T69: DA | U69: 46RDTE | V69: DA | W69: 0.01 | X69: 0 | Y69: 0
A70: 8040PV | B70: 8040 | C70: FXP | D70: BPS | E70: 13.62 | H70: 90FM | I70: 90FMCC | J70: 921743.88 | L70: 90FM | M70: DA | N70: 90FM | O70: 90FMCC | P70: 921743.88 | R70: 46RDTG86TG | S70: 86TG | T70: DA | U70: 46RDTG | V70: DA | W70: 0.01 | X70: 0 | Y70: =X70*W70 -> 0
A71: 8040PV | B71: 8040 | C71: FXP | D71: LPD | E71: 18.04 | H71: 9646 | I71: 964601 | J71: 5397094.12 | L71: 9646 | M71: DA | N71: 9646 | O71: 964601 | P71: 5397094.12 | R71: 4617TP86TQ | S71: 86TQ | T71: DA | U71: 4617TP | V71: DA | W71: 0.0623 | X71: 0 | Y71: 0
A72: 8040PV | B72: 8040 | C72: FXP | D72: BSO | E72: 20.42 | I72: 964603 | J72: 55143 | L72: 9646 | M72: DA | N72: 9646 | O72: 964603 | P72: 55143 | R72: 46AFTM86TR | S72: 86TR | T72: DA | U72: 46AFTM | V72: DA | W72: 0.1044352 | X72: 176177.44 | Y72: 18399.12618
A73: 8040PV | B73: 8040 | C73: FXP | D73: CPT | E73: 74.92 | I73: 964604 | J73: 72046 | L73: 9646 | M73: DA | N73: 9646 | O73: 964604 | P73: 72046 | R73: 4669TS86TS | S73: 86TS | T73: DA | U73: 4669TS | V73: DA | W73: 0.0723 | X73: 120659.04 | Y73: 8723.648592
A74: 8040PV | B74: 8040 | C74: FXP | D74: CAG | E74: 185.08 | I74: 9646C1 | J74: 524512 | L74: 9646 | M74: DA | N74: 9646 | O74: 9646C1 | P74: 524512 | R74: 46TXLM86W1 | S74: 86W1 | T74: DA | U74: 46TXLM | V74: DA | W74: 0.0052 | X74: 0 | Y74: 0
A75: 8040PV | B75: 8040 | C75: FXP | D75: LPN | E75: 192.84 | I75: 9646CA | J75: 1098893.11 | L75: 9646 | M75: DA | N75: 9646 | O75: 9646CA | P75: 1098893.11 | R75: 46TXTC86W1 | S75: 86W1 | T75: DA | U75: 46TXTC | V75: DA | W75: 0.0059 | X75: 0 | Y75: 0
A76: 8040PV | B76: 8040 | C76: FXP | D76: KLO | E76: 195.7 | I76: 9646CF | J76: 383240 | L76: 9646 | M76: DA | N76: 9646 | O76: 9646CF | P76: 383240 | R76: 46TXTC86W2 | S76: 86W2 | T76: DA | U76: 46TXTC | V76: DA | W76: 0.0102501 | X76: 311873 | Y76: 3196.729437
A77: 8040PV | B77: 8040 | C77: FXP | D77: BBO | E77: 259.16 | I77: 9646CM | J77: 2036 | L77: 9646 | M77: DA | N77: 9646 | O77: 9646CM | P77: 2036 | R77: 46TXTC86W3 | S77: 86W3 | T77: DA | U77: 46TXTC | V77: DA | W77: 0.0157032 | X77: 597197.09 | Y77: 9377.905344
A78: 8040PV | B78: 8040 | C78: FXP | D78: CCC | E78: 865.3 | I78: 9646CO | J78: 77312 | L78: 9646 | M78: DA | N78: 9646 | O78: 9646CO | P78: 77312 | R78: 46CC2086WB | S78: 86WB | T78: DA | U78: 46CC20 | V78: DA | W78: 0.1 | X78: 0 | Y78: 0
A79: 8040PV | B79: 8040 | C79: FXP | D79: LSN | E79: 890.64 | I79: 9646L2 | J79: 709470 | L79: 9646 | M79: DA | N79: 9646 | O79: 9646L2 | P79: 709470 | R79: 46TXTC86WH | S79: 86WH | T79: DA | U79: 46TXTC | V79: DA | W79: 0.0102501 | X79: 573107.92 | Y79: 5874.413491
A80: 8040RC | B80: 8040 | C80: FXP | D80: BPS | E80: 218.06 | I80: 9646L3 | J80: 1450858 | L80: 9646 | M80: DA | N80: 9646 | O80: 9646L3 | P80: 1450858 | R80: 471101871A | S80: 871A | T80: DA | U80: 471101 | V80: DA | W80: 0.0385 | X80: 636589.85 | Y80: 24508.70923
A81: 8040RC | B81: 8040 | C81: FXP | D81: LPD | E81: 287.84 | I81: 9646L4 | J81: 53843 | L81: 9646 | M81: DA | N81: 9646 | O81: 9646L4 | P81: 53843 | R81: 4711EC8777 | S81: 8777 | T81: DA | U81: 4711EC | V81: DA | W81: 0.04 | X81: 0 | Y81: 0
A82: 8040RC | B82: 8040 | C82: FXP | D82: BSO | E82: 326.32 | I82: 9646L5 | J82: 91422 | L82: 9646 | M82: DA | N82: 9646 | O82: 9646L5 | P82: 91422 | R82: 4711CP8784 | S82: 8784 | T82: DA | U82: 4711CP | V82: DA | W82: 0.1471 | X82: 114969.7 | Y82: 16912.04287
A83: 8040RC | B83: 8040 | C83: FXP | D83: CPT | E83: 1199.14 | I83: 9646LC | J83: 48852 | L83: 9646 | M83: DA | N83: 9646 | O83: 9646LC | P83: 48852 | R83: 47AD0187AD | S83: 87AD | T83: DA | U83: 47AD01 | V83: DA | W83: 0.06 | X83: 1044767.61 | Y83: 62686.0566
A84: 8040RC | B84: 8040 | C84: FXP | D84: CAG | E84: 2960.56 | I84: 9646LK | J84: 650734 | L84: 9646 | M84: DA | N84: 9646 | O84: 9646LK | P84: 650734 | R84: 47NA0187NA | S84: 87NA | T84: DA | U84: 47NA01 | V84: DA | W84: 0.0846 | X84: 1991577.55 | Y84: 168487.4607
A85: 8040RC | B85: 8040 | C85: FXP | D85: LPN | E85: 3085.3 | I85: 9646LS | J85: 57677.38 | L85: 9646 | M85: DA | N85: 9646 | O85: 9646LS | P85: 57677.38 | R85: 47SSR387NN | S85: 87NN | T85: DA | U85: 47SSR3 | V85: DA | W85: 0.2 | X85: 0 | Y85: 0
A86: 8040RC | B86: 8040 | C86: FXP | D86: KLO | E86: 3130.96 | I86: 9646MW | J86: 144094.56 | L86: 9646 | M86: DA | N86: 9646 | O86: 9646MW | P86: 144094.56 | R86: 47RM0187RM | S86: 87RM | T86: DA | U86: 47RM01 | V86: DA | W86: 0.0392 | X86: 258862.69 | Y86: 10147.41745
A87: 8040RC | B87: 8040 | C87: FXP | D87: BBO | E87: 4146.92 | I87: 9646MX | J87: 115627.19 | L87: 9646 | M87: DA | N87: 9646 | O87: 9646MX | P87: 115627.19 | R87: 47RN0187RM | S87: 87RM | T87: DA | U87: 47RN01 | V87: DA | W87: 0.0555 | X87: 258862.69 | Y87: 14366.8793
A88: 8040RC | B88: 8040 | C88: FXP | D88: CCC | E88: 13844.56 | I88: 9646NC | J88: 125211.93 | L88: 9646 | M88: DA | N88: 9646 | O88: 9646NC | P88: 125211.93 | R88: 47SSR187RS | S88: 87RS | T88: DA | U88: 47SSR1 | V88: DA | W88: 0.1 | X88: 673435.06 | Y88: 67343.506
A89: 8040RC | B89: 8040 | C89: FXP | D89: LSN | E89: 14250.72 | I89: 9646NM | J89: 389269.93 | L89: 9646 | M89: DA | N89: 9646 | O89: 9646NM | P89: 389269.93 | R89: 47GSRC87WW | S89: 87WW | T89: DA | U89: 47GSRC | V89: DA | W89: 0 | X89: 334424.01 | Y89: 0
A90: 8040RE | B90: 8040 | C90: FXP | D90: KPR | E90: 2796 | I90: 9646OB | J90: 100000 | L90: 9646 | M90: DA | N90: 9646 | O90: 9646OB | P90: 100000 | R90: 48ED0188ED | S90: 88ED | T90: DA | U90: 48ED01 | V90: DA | W90: 0.0617 | X90: 590595.06 | Y90: 36439.7152
A91: 8040RW | B91: 8040 | C91: FXP | D91: BSO | E91: 135.9 | I91: 9646OE | J91: 125451.89 | L91: 9646 | M91: DA | N91: 9646 | O91: 9646OE | P91: 125451.89 | R91: 49SW0189SW | S91: 89SW | T91: DA | U91: 49SW01 | V91: DA | W91: 0.673 | X91: 46272.54 | Y91: 31141.41942
A92: 8040RW | B92: 8040 | C92: FXP | D92: LPD | E92: 161.71 | I92: 9646PM | J92: 70969 | L92: 9646 | M92: DA | N92: 9646 | O92: 9646PM | P92: 70969 | R92: 4QFHIM8QOM | S92: 8QOM | T92: DA | U92: 4QFHIM | V92: DA | W92: 0.0663 | X92: 612112.48 | Y92: 40583.05742
A93: 8040RW | B93: 8040 | C93: FXP | D93: BPS | E93: 203.48 | I93: 9646PR | J93: 228625.58 | L93: 9646 | M93: DA | N93: 9646 | O93: 9646PR | P93: 228625.58 | R93: 4QPA018QPA | S93: 8QPA | T93: DA | U93: 4QPA01 | V93: DA | W93: 0.14 | X93: 982564.61 | Y93: 137559.0454
A94: 8040RW | B94: 8040 | C94: FXP | D94: LPM | E94: 1923.37 | I94: 9646RA | J94: 727000 | L94: 9646 | M94: DA | N94: 9646 | O94: 9646RA | P94: 727000 | R94: 4QFHTV8QTV | S94: 8QTV | T94: DA | U94: 4QFHTV | V94: DA | W94: 0.0662 | X94: 0 | Y94: 0
A95: 8040RW | B95: 8040 | C95: FXP | D95: LSN | E95: 8884 | I95: 9646RV | J95: 12487856 | L95: 9646 | M95: DA | N95: 9646 | O95: 9646RV | P95: 12487856 | R95: 4QWM018QWA | S95: 8QWA | T95: DA | U95: 4QWM01 | V95: DA | W95: 0.0759 | X95: 14583.76 | Y95: 1106.907384
A96: 8040RW | B96: 8040 | C96: FXP | D96: CAG | E96: 10022.52 | I96: 9646SM | J96: 1774442.17 | L96: 9646 | M96: DA | N96: 9646 | O96: 9646SM | P96: 1774442.17 | R96: 4CCRF790AA | S96: 90AA | T96: DA | U96: 4CCRF7 | V96: DA | W96: 0.0714 | X96: 343762.34 | Y96: 24544.63108
A97: 8040RW | B97: 8040 | C97: FXP | D97: CCC | E97: 12569.14 | I97: 9646TA | J97: 1380956.28 | L97: 9646 | M97: DA | N97: 9646 | O97: 9646TA | P97: 1380956.28 | R97: 4CCRS790AB | S97: 90AB | T97: DA | U97: 4CCRS7 | V97: DA | W97: 0.0666 | X97: 0 | Y97: 0
A98: 8040RW | B98: 8040 | C98: FXP | D98: KLO | E98: 35198 | I98: 9646TB | J98: 57940.65 | L98: 9646 | M98: DA | N98: 9646 | O98: 9646TB | P98: 57940.65 | R98: 4040CC90FM | S98: 90FM | T98: DA | U98: 4040CC | V98: DA | W98: 0.0866 | X98: 921743.88 | Y98: 79823.02001
A99: 804101 | B99: 8041 | C99: FXP | D99: ETV | E99: 600 | I99: 9646TW | J99: 415000 | L99: 9646 | M99: DA | N99: 9646 | O99: 9646TW | P99: 415000 | R99: 46TXTC9646 | S99: 9646 | T99: DA | U99: 46TXTC | V99: DA | W99: 0.04100046211 | X99: 28915577.79 | Y99: 1185552.052
A100: 804101 | B100: 8041 | C100: FXP | D100: BPS | E100: 687.86 | I100: 9646UT | J100: 100000 | L100: 9646 | M100: DA | N100: 9646 | O100: 9646UT | P100: 100000 | R100: 46TXTC968A | S100: 968A | T100: DA | U100: 46TXTC | V100: DA | W100: 0.0041 | X100: 599693.83 | Y100: 2458.744703
A101: 804101 | B101: 8041 | C101: FXP | D101: LPD | E101: 908.2 | H101: 968A | I101: 968A01 | J101: 441876.03 | L101: 968A | M101: DA | N101: 968A | O101: 968A01 | P101: 441876.03 | R101: 46TXTC968N | S101: 968N | T101: DA | U101: 46TXTC | V101: DA | W101: 0.00369 | X101: 1330951.15 | Y101: 4911.209743
A102: 804101 | B102: 8041 | C102: FXP | D102: BSO | E102: 1029.58 | I102: 968AEE | J102: 157817.8 | L102: 968A | M102: DA | N102: 968A | O102: 968AEE | P102: 157817.8 | R102: 46TXTC968T | S102: 968T | T102: DA | U102: 46TXTC | V102: DA | W102: 0.0369004 | X102: 1501694.97 | Y102: 55413.14507
A103: 804101 | B103: 8041 | C103: FXP | D103: CPT | E103: 3783.08 | H103: 968N | I103: 968N01 | J103: 1330951.15 | L103: 968N | M103: DA | N103: 968N | O103: 968N01 | P103: 1330951.15 | R103: 46TXTC969D | S103: 969D | T103: DA | U103: 46TXTC | V103: DA | W103: 0.0045955 | X103: 3060307 | Y103: 14063.64082
A104: 804101 | B104: 8041 | C104: FXP | D104: EMN | E104: 3960 | H104: 968T | I104: 968T01 | J104: 1501694.97 | L104: 968T | M104: DA | N104: 968T | O104: 968T01 | P104: 1501694.97 | R104: 46TXTC969E | S104: 969E | T104: DA | U104: 46TXTC | V104: DA | W104: 0.00246 | X104: 1052511 | Y104: 2589.17706
A105: 804101 | B105: 8041 | C105: FXP | D105: LPN | E105: 9733.74 | H105: 969D | I105: 969D01 | J105: 3060307 | L105: 969D | M105: DA | N105: 969D | O105: 969D01 | P105: 3060307 | R105: 46TXTC96CN | S105: 96CN | T105: DA | U105: 46TXTC | V105: DA | W105: 0.0177655 | X105: 1050678.39 | Y105: 18665.82694
A106: 804101 | B106: 8041 | C106: FXP | D106: EHT | E106: 10640 | H106: 969E | I106: 969E01 | J106: 208250 | L106: 969E | M106: DA | N106: 969E | O106: 969E01 | P106: 208250 | R106: 46AFAP96DE | S106: 96DE | T106: DA | U106: 46AFAP | V106: DA | W106: 0.0012 | X106: 371619.15 | Y106: 445.94298
A107: 804101 | B107: 8041 | C107: FXP | D107: BBO | E107: 13083.22 | I107: 969EBH | J107: 844261 | L107: 969E | M107: DA | N107: 969E | O107: 969EBH | P107: 844261 | R107: 46PM3596DE | S107: 96DE | T107: DA | U107: 46PM35 | V107: DA | W107: 0.0005 | X107: 371619.15 | Y107: 185.809575
A108: 804101 | B108: 8041 | C108: FXP | D108: CCC | E108: 15553.18 | H108: 96CN | I108: 96CN01 | J108: 1050678.39 | L108: 96CN | M108: DA | N108: 96CN | O108: 96CN01 | P108: 1050678.39 | R108: 46CO0196ET | S108: 96ET01 | T108: DAX | U108: 46CO01 | V108: DA | W108: 0.033 | X108: 8856 | Y108: 292.248
A109: 804101 | B109: 8041 | C109: FXP | D109: ERV | E109: 18000 | H109: 96DE | I109: 96DE01 | J109: 371619.15 | L109: 96DE | M109: DA | N109: 96DE | O109: 96DE01 | P109: 371619.15 | R109: 46COAM96ET | S109: 96ETAM | T109: DAX | U109: 46COAM | V109: DA | W109: 0.033 | X109: 582622.94 | Y109: 19226.55702
A110: 804101 | B110: 8041 | C110: FXP | D110: CAG | E110: 18015.76 | H110: 96F1 | I110: 96F1YY | J110: 204896.74 | L110: 96F1 | M110: DA | N110: 96F1 | O110: 96F1YY | P110: 204896.74 | R110: 46CODT96ET | S110: 96ETDT | T110: DAX | U110: 46CODT | V110: DA | W110: 0.033 | X110: 332389 | Y110: 10968.837
A111: 804101 | B111: 8041 | C111: FXP | D111: LSN | E111: 44959.54 | H111: 96IO | I111: 96IO01 | J111: 4614234.49 | L111: 96IO | M111: DA | N111: 96IO | O111: 96IO01 | P111: 4614234.49 | R111: 46COIT96ET | S111: 96ETIT | T111: DAX | U111: 46COIT | V111: DA | W111: 0.033 | X111: 1738969.75 | Y111: 57386.00175
A112: 804101 | B112: 8041 | C112: FXP | D112: KLO | E112: 72291.1 | H112: 96IP | I112: 96IP01 | J112: 3080900.35 | L112: 96IP | M112: DA | N112: 96IP | O112: 96IP01 | P112: 3080900.35 | R112: 46CORU96ET | S112: 96ETRU | T112: DAX | U112: 46CORU | V112: DA | W112: 0.033 | X112: 356027.18 | Y112: 11748.89694
A113: 8042OP | B113: 8042 | C113: FXP | D113: BPS | E113: 3143.29 | I113: 96IPCP | J113: 944189.02 | L113: 96IP | M113: DA | N113: 96IP | O113: 96IPCP | P113: 944189.02 | R113: 46COSD96ET | S113: 96ETSD | T113: DAX | U113: 46COSD | V113: DA | W113: 0.033 | X113: 39250 | Y113: 1295.25
A114: 8042OP | B114: 8042 | C114: FXP | D114: LPD | E114: 4149.97 | I114: 96IPFD | J114: 571723.54 | L114: 96IP | M114: DA | N114: 96IP | O114: 96IPFD | P114: 571723.54 | R114: 46COTT96ET | S114: 96ETTT | T114: DAX | U114: 46COTT | V114: DA | W114: 0.033 | X114: 199813.67 | Y114: 6593.85111
A115: 8042OP | B115: 8042 | C115: FXP | D115: BSO | E115: 4704.71 | H115: 96NC | I115: 96NC01 | J115: 102229 | L115: 96NC | M115: DA | N115: 96NC | O115: 96NC01 | P115: 102229 | R115: 46COWA96ET | S115: 96ETWA | T115: DAX | U115: 46COWA | V115: DA | W115: 0.033 | X115: 109528.78 | Y115: 3614.44974
A116: 8042OP | B116: 8042 | C116: FXP | D116: CPT | E116: 17286.84 | H116: 96PM | I116: 96PM01 | J116: 577079.92 | L116: 96PM | M116: DA | N116: 96PM | O116: 96PM01 | P116: 577079.92 | R116: 4669M596F1 | S116: 96F1 | T116: DA | U116: 4669M5 | V116: DA | W116: 0.07 | X116: 204896.74 | Y116: 14342.7718
A117: 8042OP | B117: 8042 | C117: FXP | D117: EHT | E117: 30000 | H117: 9780 | I117: 978001 | J117: 9000000 | L117: 9780 | M117: DA | N117: 9780 | O117: 978001 | P117: 9000000 | R117: 46TXTC96IO | S117: 96IO | T117: DA | U117: 46TXTC | V117: DA | W117: 0.0132377 | X117: 4614234.49 | Y117: 61081.85191
A118: 8042OP | B118: 8042 | C118: FXP | D118: CAG | E118: 36407.17 | H118: 9802 | I118: 980201 | J118: 3716912.85 | L118: 9802 | M118: DA | N118: 9802 | O118: 980201 | P118: 3716912.85 | R118: 46TXTC96IP | S118: 96IP | T118: DA | U118: 46TXTC | V118: DA | W118: 0.0105 | X118: 4596812.91 | Y118: 48266.53556
A119: 8042OP | B119: 8042 | C119: FXP | D119: LPN | E119: 44478.94 | H119: 9891 | I119: 9891MC | J119: 7797 | L119: 9891 | M119: DA | N119: 9891 | O119: 9891MC | P119: 7797 | R119: 46TXTC96NC | S119: 96NC | T119: DA | U119: 46TXTC | V119: DA | W119: 0.0266503 | X119: 102229 | Y119: 2724.433519
A120: 8042OP | B120: 8042 | C120: FXP | D120: EMN | E120: 45000 | H120: 98BS | I120: 98BS01 | J120: 2236014.13 | L120: 98BS | M120: DA | N120: 98BS | O120: 98BS01 | P120: 2236014.13 | R120: 46AFAP96PM | S120: 96PM | T120: DA | U120: 46AFAP | V120: DA | W120: 0.0013 | X120: 577079.92 | Y120: 750.203896
A121: 8042OP | B121: 8042 | C121: FXP | D121: BBO | E121: 59784.61 | H121: 98DH | I121: 98DH01 | J121: 54535.08 | L121: 98DH | M121: DA | N121: 98DH | O121: 98DH01 | P121: 54535.08 | R121: 4716DT9780 | S121: 9780 | T121: DA | U121: 4716DT | V121: DA | W121: 0.1446 | X121: 9000000 | Y121: 1301400
A122: 8042OP | B122: 8042 | C122: FXP | D122: CCC | E122: 117865.02 | H122: 98RS | I122: 98RS01 | J122: 142262.31 | L122: 98RS | M122: DA | N122: 98RS | O122: 98RS01 | P122: 142262.31 | R122: 47APLA97IS | S122: 97ISLA | T122: DAX | U122: 47APLA | V122: DA | W122: 0.08 | X122: 210797.41 | Y122: 16863.7928
A123: 8042OP | B123: 8042 | C123: FXP | D123: LSN | E123: 205445.27 | H123: 98RT | I123: 98RT01 | J123: 519077.27 | L123: 98RT | M123: DA | N123: 98RT | O123: 98RT01 | P123: 519077.27 | R123: 47APLI97IS | S123: 97ISLI | T123: DAX | U123: 47APLI | V123: DA | W123: 0.08 | X123: 242339.92 | Y123: 19387.1936
A124: 8042RM | B124: 8042 | C124: FXP | D124: BPS | E124: 2221.56 | H124: 990K | I124: 990K01 | J124: 17242.24 | L124: 990K | M124: DA | N124: 990K | O124: 990K01 | P124: 17242.24 | R124: 47AD019802 | S124: 9802 | T124: DA | U124: 47AD01 | V124: DA | W124: 0.0018 | X124: 3716912.85 | Y124: 6690.44313
A125: 8042RM | B125: 8042 | C125: FXP | D125: IIAJ | E125: 2922 | I125: 990KGP | J125: 93 | L125: 990K | M125: DA | N125: 990K | O125: 990KGP | P125: 93 | R125: 4936MC9891 | S125: 9891 | T125: DA | U125: 4936MC | V125: DA | W125: 0.07 | X125: 7797 | Y125: 545.79
A126: 8042RM | B126: 8042 | C126: FXP | D126: LPD | E126: 2933.08 | H126: 9916 | I126: 9916DB | J126: 129236.38 | L126: 9916 | M126: DA | N126: 9916 | O126: 9916DB | P126: 129236.38 | R126: 48BS0198BS | S126: 98BS | T126: DA | U126: 48BS01 | V126: DA | W126: 0.0686 | X126: 2236014.13 | Y126: 153390.5693
A127: 8042RM | B127: 8042 | C127: FXP | D127: BSO | E127: 3325.1 | I127: 9916QS | J127: 18941.36 | L127: 9916 | M127: DA | N127: 9916 | O127: 9916QS | P127: 18941.36 | R127: 48DH0198DH | S127: 98DH | T127: DA | U127: 48DH01 | V127: DA | W127: 0.1019 | X127: 54535.08 | Y127: 5557.124652
A128: 8042RM | B128: 8042 | C128: FXP | D128: CPT | E128: 12217.68 | I128: 9916VP | J128: 1296329.52 | L128: 9916 | M128: DA | N128: 9916 | O128: 9916VP | P128: 1296329.52 | R128: 48DH0198FI | S128: 98FI | T128: DA | U128: 48DH01 | V128: DA | W128: 0.004 | X128: 0 | Y128: 0
A129: 8042RM | B129: 8042 | C129: FXP | D129: EHT | E129: 12666.4 | I129: 9916VS | J129: 235322.26 | L129: 9916 | M129: DA | N129: 9916 | O129: 9916VS | P129: 235322.26 | R129: 47ERLB98HD | S129: 98HD | T129: DA | U129: 47ERLB | V129: DA | W129: 0.0723 | X129: 0 | Y129: 0
A130: 8042RM | B130: 8042 | C130: FXP | D130: EMN | E130: 18999.6 | H130: 99PP | I130: 99PPCA | J130: 154502.24 | L130: 99PP | M130: DA | N130: 99PP | O130: 99PPCA | P130: 154502.24 | R130: =U130&LEFT(S130,4) -> 4040HG98JG | S130: 98JGHG | T130: DAX | U130: 4040HG | V130: DA | W130: 0.065 | X130: 53715.46 | Y130: 3491.5049
A131: 8042RM | B131: 8042 | C131: FXP | D131: CAG | E131: 25731.16 | H131: 99SC | I131: 99SCPA | J131: 566935.33 | L131: 99SC | M131: DA | N131: 99SC | O131: 99SCPA | P131: 566935.33 | R131: =U131&LEFT(S131,4) -> 4040MP98JG | S131: 98JGMP | T131: DAX | U131: 4040MP | V131: DA | W131: 0.065 | X131: 910155.48 | Y131: 59160.1062
A132: 8042RM | B132: =LEFT(A132,4) -> 8042 | C132: =VLOOKUP(B132,ALLOCTYPE,2,0) -> FXP | D132: LPN | E132: 31435.92 | H132: 99TR | I132: 99TR01 | J132: 1205301.51 | L132: 99TR | M132: DA | N132: 99TR | O132: 99TR01 | P132: 1205301.51 | R132: 47CMPI98RS | S132: 98RS | T132: =VLOOKUP(LEFT(S132,4),ALLOCTYPE,2,0) -> DA | U132: 47CMPI | V132: DA | W132: =IF(T132="FXP",VLOOKUP(LEFT(S132,4),FLFXPPCT,4,0),IF(T132="DA",VLOOKUP(U132&LEFT(S132,4),DAPCT,4,0),VLOOKUP(LEFT(U132,4)&"**"&LEFT(S132,4),DAPCT,4,0))) -> 0.0608 | X132: =SUMIF(AWOKEY,S132,PARENTAMT) -> 142262.31 | Y132: 8649.548448
A133: 8042RM | B133: 8042 | C133: FXP | D133: BBO | E133: 42253.36 | G133: FXP | H133: 8030 | I133: 8030AS | J133: 650163.58 | L133: =O133 -> 8030AS | M133: =IF(G133="",M132,G133) -> FXP | N133: =IF(H133="",N132,H133) -> 8030 | O133: =IF(I133="",O132,I133) -> 8030AS | P133: =IF(J133="",P132,J133) -> 650163.58 | R133: 47CMPE98RT | S133: 98RT | T133: DA | U133: 47CMPE | V133: DA | W133: 0.0608 | X133: 519077.27 | Y133: 31559.89802
A134: 8042RM | B134: 8042 | C134: FXP | D134: CCC | E134: 83302.22 | H134: 803S | I134: 803S01 | J134: 2574094.88 | L134: =O134 -> 803S01 | M134: FXP | N134: 803S | O134: 803S01 | P134: 2574094.88 | R134: 490G01990K | S134: 990K | T134: DA | U134: 490G01 | V134: DA | W134: 0.1057 | X134: 17335.24 | Y134: =X134*W134 -> 1832.334868
A135: 8042RM | B135: 8042 | C135: FXP | D135: LSN | E135: 145200.4 | H135: 8040 | I135: 804003 | J135: 20000 | L135: 804003 | M135: FXP | N135: 8040 | O135: 804003 | P135: 20000 | R135: 4102PA9916 | S135: 9916 | T135: DA | U135: 4102PA | V135: DA | W135: 0.0625 | X135: 1679829.52 | Y135: 104989.345
A136: 8042TC | B136: 8042 | C136: FXP | D136: BPS | E136: 2159.09 | I136: 80401T | J136: 254773.7 | L136: 80401T | M136: FXP | N136: 8040 | O136: 80401T | P136: 254773.7 | R136: 4905MT99PC | S136: 99PCMT | T136: DAX | U136: 4905MT | V136: DA | W136: 0.0566 | X136: 1257883 | Y136: 71196.1778
A137: 8042TC | B137: 8042 | C137: FXP | D137: LPD | E137: 2850.56 | I137: 8040PH | J137: 2715.72 | L137: 8040PH | M137: FXP | N137: 8040 | O137: 8040PH | P137: 2715.72 | R137: 490CCA99PP | S137: 99PP | T137: DA | U137: 490CCA | V137: DA | W137: 0.21 | X137: 154502.24 | Y137: 32445.4704
A138: 8042TC | B138: 8042 | C138: FXP | D138: BSO | E138: 3231.58 | I138: 8040PM | J138: 11717.78 | L138: 8040PM | M138: FXP | N138: 8040 | O138: 8040PM | P138: 11717.78 | R138: 4905PA99SC | S138: 99SC | T138: DA | U138: 4905PA | V138: DA | W138: 0.0569 | X138: 566935.33 | Y138: 32258.62028
A139: 8042TC | B139: 8042 | C139: FXP | D139: EHT | E139: 7943.2 | I139: 8040PT | J139: 20367.22 | L139: 8040PT | M139: FXP | N139: 8040 | O139: 8040PT | P139: 20367.22 | R139: 47LWSM99SM | S139: 99SM | T139: DA | U139: 47LWSM | V139: DA | W139: 0.0972 | X139: 0 | Y139: 0
A140: 8042TC | B140: 8042 | C140: FXP | D140: CPT | E140: 11873.97 | I140: 8040PV | J140: 2715.72 | L140: 8040PV | M140: FXP | N140: 8040 | O140: 8040PV | P140: 2715.72 | R140: 490TVR99TR | S140: 99TR | T140: DA | U140: 490TVR | V140: DA | W140: 0.13 | X140: 1205301.51 | Y140: 156689.1963
A141: 8042TC | B141: 8042 | C141: FXP | D141: EMN | E141: 11914.8 | I141: 8040RC | J141: 43450.38 | L141: 8040RC | M141: FXP | N141: 8040 | O141: 8040RC | P141: 43450.38 | R141: 4EPACR9ICF | S141: 9ICF | T141: DA | U141: 4EPACR | V141: DA | W141: 0.3333 | X141: 0 | Y141: 0
A142: 8042TC | B142: 8042 | C142: FXP | D142: CAG | E142: 25007.34 | I142: 8040RE | J142: 2796 | L142: 8040RE | M142: FXP | N142: 8040 | O142: 8040RE | P142: 2796 | R142: 4EPASM9ICF | S142: 9ICF | T142: DA | U142: 4EPASM | V142: DA | W142: 0.3333 | X142: 0 | Y142: 0
A143: 8042TC | B143: 8042 | C143: FXP | D143: LPN | E143: 30551.59 | I143: 8040RW | J143: 69098.12 | L143: 8040RW | M143: FXP | N143: 8040 | O143: 8040RW | P143: 69098.12 | R143: 4EPASZ9ICF | S143: 9ICF | T143: DA | U143: 4EPASZ | V143: DA | W143: 0.3334 | X143: 0 | Y143: 0
A144: 8042TC | B144: 8042 | C144: FXP | D144: BBO | E144: 41064.76 | H144: 8041 | I144: 804101 | J144: 213245.26 | L144: 804101 | M144: FXP | N144: 8041 | O144: 804101 | P144: 213245.26 | R144: 4799LA9LBR | S144: 9LBR | T144: DA | U144: 4799LA | V144: DA | W144: 0.0272 | X144: 0 | Y144: 0
A145: 8042TC | B145: 8042 | C145: FXP | D145: CCC | E145: 80958.92 | H145: 8042 | I145: 8042OP | J145: 568265.82 | L145: 8042OP | M145: FXP | N145: 8042 | O145: 8042OP | P145: 568265.82 | R145: 4899LA9LBR | S145: 9LBR | T145: DA | U145: 4899LA | V145: DA | W145: 0.0424 | X145: 0 | Y145: 0
A146: 8042TC | B146: 8042 | C146: FXP | D146: LSN | E146: 141115.99 | I146: 8042RM | J146: 383208.48 | L146: 8042RM | M146: FXP | N146: 8042 | O146: 8042RM | P146: 383208.48 | R146: 4030AS8030 | S146: 8030AS | T146: FXP | U146: ="4"&RIGHT(S146,5) -> 4030AS | V146: =VLOOKUP(LEFT(S146,4),FLFXPPCT,2,0) -> HD | W146: 0.0626 | X146: 650163.58 | Y146: 40700.24011
A147: 8042TD | B147: 8042 | C147: FXP | D147: BPS | E147: 78.17 | I147: 8042TC | J147: 358671.8 | L147: 8042TC | M147: FXP | N147: 8042 | O147: 8042TC | P147: 358671.8 | R147: 403S01803S | S147: 803S01 | T147: FXP | U147: ="4"&RIGHT(S147,5) -> 403S01 | V147: HC | W147: 0.0774 | X147: 2574094.88 | Y147: 199234.9437
A148: 8042TD | B148: 8042 | C148: FXP | D148: LPD | E148: 103.16 | I148: 8042TD | J148: 14473.16 | L148: 8042TD | M148: FXP | N148: 8042 | O148: 8042TD | P148: 14473.16 | R148: 4040038040 | S148: 804003 | T148: FXP | U148: 404003 | V148: HB | W148: 0.0666 | X148: 20000 | Y148: 1332
A149: 8042TD | B149: 8042 | C149: FXP | D149: BSO | E149: 116.91 | I149: 8042TI | J149: 50536.16 | L149: 8042TI | M149: FXP | N149: 8042 | O149: 8042TI | P149: 50536.16 | R149: 40401T8040 | S149: 80401T | T149: FXP | U149: 40401T | V149: HB | W149: 0.0666 | X149: 254773.7 | Y149: 16967.92842
A150: 8042TD | B150: 8042 | C150: FXP | D150: CPT | E150: 429.59 | I150: 8042TL | J150: 63284.65 | L150: 8042TL | M150: FXP | N150: 8042 | O150: 8042TL | P150: 63284.65 | R150: 4040PH8040 | S150: 8040PH | T150: FXP | U150: 4040PH | V150: HB | W150: 0.0666 | X150: 2715.72 | Y150: 180.866952
A151: 8042TD | B151: 8042 | C151: FXP | D151: CAG | E151: 904.75 | I151: 8042TM | J151: 58018.15 | L151: 8042TM | M151: FXP | N151: 8042 | O151: 8042TM | P151: 58018.15 | R151: 4040PM8040 | S151: 8040PM | T151: FXP | U151: 4040PM | V151: HB | W151: 0.0666 | X151: 11717.78 | Y151: 780.404148
A152: 8042TD | B152: 8042 | C152: FXP | D152: LPN | E152: 1105.33 | I152: 8042TV | J152: 28197.12 | L152: 8042TV | M152: FXP | N152: 8042 | O152: 8042TV | P152: 28197.12 | R152: 4040PT8040 | S152: 8040PT | T152: FXP | U152: 4040PT | V152: HB | W152: 0.0666 | X152: 20367.22 | Y152: 1356.456852
A153: 8042TD | B153: 8042 | C153: FXP | D153: BBO | E153: 1485.68 | H153: 8043 | I153: 804301 | J153: 559685.98 | L153: 804301 | M153: FXP | N153: 8043 | O153: 804301 | P153: 559685.98 | R153: 4040PV8040 | S153: 8040PV | T153: FXP | U153: 4040PV | V153: HB | W153: 0.0666 | X153: 2715.72 | Y153: 180.866952
A154: 8042TD | B154: 8042 | C154: FXP | D154: VDE | E154: 2215 | H154: 8044 | I154: 804401 | J154: 529540.57 | L154: 804401 | M154: FXP | N154: 8044 | O154: 804401 | P154: 529540.57 | R154: 4040RC8040 | S154: 8040RC | T154: FXP | U154: 4040RC | V154: HB | W154: 0.0666 | X154: 43450.38 | Y154: 2893.795308
A155: 8042TD | B155: 8042 | C155: FXP | D155: CCC | E155: 2929.02 | I155: 8044XP | J155: 365783.22 | L155: 8044XP | M155: FXP | N155: 8044 | O155: 8044XP | P155: 365783.22 | R155: 4040RE8040 | S155: 8040RE | T155: FXP | U155: 4040RE | V155: HB | W155: 0.0666 | X155: 2796 | Y155: 186.2136
A156: 8042TD | B156: 8042 | C156: FXP | D156: LSN | E156: 5105.55 | H156: 8045 | I156: 804501 | J156: 248979.65 | L156: 804501 | M156: FXP | N156: 8045 | O156: 804501 | P156: 248979.65 | R156: 4040RW8040 | S156: 8040RW | T156: FXP | U156: 4040RW | V156: HB | W156: 0.0666 | X156: 69098.12 | Y156: 4601.934792
A157: 8042TI | B157: 8042 | C157: FXP | D157: BPS | E157: 309.34 | H157: 8251 | I157: 825122 | J157: 111567.76 | L157: 825122 | M157: FXP | N157: 8251 | O157: 825122 | P157: 111567.76 | R157: 4041018041 | S157: 804101 | T157: FXP | U157: 404101 | V157: ET | W157: 0.0755 | X157: 213245.26 | Y157: 16100.01713
A158: 8042TI | B158: 8042 | C158: FXP | D158: LPD | E158: 408.4 | H158: 8268 | I158: 826801 | J158: 1680880.65 | L158: 826801 | M158: FXP | N158: 8268 | O158: 826801 | P158: 1680880.65 | R158: 4042OP8042 | S158: 8042OP | T158: FXP | U158: 4042OP | V158: HB | W158: 0.0666 | X158: 568265.82 | Y158: 37846.50361
A159: 8042TI | B159: 8042 | C159: FXP | D159: BSO | E159: 463 | I159: 8268QD | J159: 619 | L159: 8268QD | M159: FXP | N159: 8268 | O159: 8268QD | P159: 619 | R159: 4042RM8042 | S159: 8042RM | T159: FXP | U159: 4042RM | V159: HB | W159: 0.0666 | X159: 383208.48 | Y159: 25521.68477
A160: 8042TI | B160: 8042 | C160: FXP | D160: EHT | E160: 797.6 | H160: 8269 | I160: 826901 | J160: 1243838.98 | L160: 826901 | M160: FXP | N160: 8269 | O160: 826901 | P160: 1243838.98 | R160: 4042TC8042 | S160: 8042TC | T160: FXP | U160: 4042TC | V160: HB | W160: 0.0666 | X160: 358671.8 | Y160: 23887.54188
A161: 8042TI | B161: 8042 | C161: FXP | D161: EMN | E161: 1196.4 | I161: 8269BL | J161: 816188.22 | L161: 8269BL | M161: FXP | N161: 8269 | O161: 8269BL | P161: 816188.22 | R161: 4042TD8042 | S161: 8042TD | T161: FXP | U161: 4042TD | V161: HB | W161: 0.0666 | X161: 14473.16 | Y161: 963.912456
A162: 8042TI | B162: 8042 | C162: FXP | D162: CPT | E162: 1701.2 | I162: 8269CL | J162: 3200000 | L162: 8269CL | M162: FXP | N162: 8269 | O162: 8269CL | P162: 3200000 | R162: 4042TI8042 | S162: 8042TI | T162: FXP | U162: 4042TI | V162: HB | W162: 0.0666 | X162: 50536.16 | Y162: 3365.708256
A163: 8042TI | B163: 8042 | C163: FXP | D163: CAG | E163: 3582.84 | I163: 8269CO | J163: 180937.54 | L163: 8269CO | M163: FXP | N163: 8269 | O163: 8269CO | P163: 180937.54 | R163: 4042TL8042 | S163: 8042TL | T163: FXP | U163: 4042TL | V163: HB | W163: 0.0666 | X163: 63284.65 | Y163: 4214.75769
A164: 8042TI | B164: 8042 | C164: FXP | D164: LPN | E164: 4377.16 | I164: 8269KC | J164: 41121.15 | L164: 8269KC | M164: FXP | N164: 8269 | O164: 8269KC | P164: 41121.15 | R164: 4042TM8042 | S164: 8042TM | T164: FXP | U164: 4042TM | V164: HB | W164: 0.0666 | X164: 58018.15 | Y164: 3864.00879
A165: 8042TI | B165: 8042 | C165: FXP | D165: BBO | E165: 5883.38 | I165: 8269KL | J165: 242815.85 | L165: 8269KL | M165: FXP | N165: 8269 | O165: 8269KL | P165: 242815.85 | R165: 4042TV8042 | S165: 8042TV | T165: FXP | U165: 4042TV | V165: HB | W165: 0.0666 | X165: 28197.12 | Y165: 1877.928192
A166: 8042TI | B166: 8042 | C166: FXP | D166: CCC | E166: 11599 | I166: 8269LL | J166: 4950000 | L166: 8269LL | M166: FXP | N166: 8269 | O166: 8269LL | P166: 4950000 | R166: 4043018043 | S166: 804301 | T166: FXP | U166: 404301 | V166: HD | W166: 0.0626 | X166: 559685.98 | Y166: 35036.34235
A167: 8042TI | B167: 8042 | C167: FXP | D167: LSN | E167: 20217.84 | I167: 8269ML | J167: 1000000 | L167: 8269ML | M167: FXP | N167: 8269 | O167: 8269ML | P167: 1000000 | R167: 4044018044 | S167: 804401 | T167: FXP | U167: 404401 | V167: ET | W167: 0.0755 | X167: 529540.57 | Y167: 39980.31303
A168: 8042TL | B168: 8042 | C168: FXP | D168: BPS | E168: 390.57 | I168: 8269MP | J168: 79872.33 | L168: 8269MP | M168: FXP | N168: 8269 | O168: 8269MP | P168: 79872.33 | R168: 4044XP8044 | S168: 8044XP | T168: FXP | U168: 4044XP | V168: ET | W168: 0.0755 | X168: 365783.22 | Y168: 27616.63311
A169: 8042TL | B169: 8042 | C169: FXP | D169: LPD | E169: 515.66 | I169: 8269PL | J169: 500000 | L169: 8269PL | M169: FXP | N169: 8269 | O169: 8269PL | P169: 500000 | R169: 4045018045 | S169: 804501 | T169: FXP | U169: 404501 | V169: HD | W169: 0.0626 | X169: 248979.65 | Y169: 15586.12609
A170: 8042TL | B170: 8042 | C170: FXP | D170: BSO | E170: 584.59 | I170: 8269PR | J170: 191809.4 | L170: 8269PR | M170: FXP | N170: 8269 | O170: 8269PR | P170: 191809.4 | R170: 4251228251 | S170: 825122 | T170: FXP | U170: 425122 | V170: A0 | W170: 0.0729 | X170: 111567.76 | Y170: 8133.289704
A171: 8042TL | B171: 8042 | C171: FXP | D171: EHT | E171: 797.6 | I171: 8269WL | J171: 100000 | L171: 8269WL | M171: FXP | N171: 8269 | O171: 8269WL | P171: 100000 | R171: 4268018268 | S171: 826801 | T171: FXP | U171: 426801 | V171: A0 | W171: 0.0729 | X171: 1680880.65 | Y171: 122536.1994
A172: 8042TL | B172: 8042 | C172: FXP | D172: EMN | E172: 1196.4 | H172: 8270 | I172: 827001 | J172: 781710.21 | L172: 827001 | M172: FXP | N172: 8270 | O172: 827001 | P172: 781710.21 | R172: 4268QD8268 | S172: 8268QD | T172: FXP | U172: 4268QD | V172: A0 | W172: 0.0729 | X172: 619 | Y172: 45.1251
A173: 8042TL | B173: 8042 | C173: FXP | D173: CPT | E173: 2148 | H173: 8271 | I173: 827101 | J173: 234770.07 | L173: 827101 | M173: FXP | N173: 8271 | O173: 827101 | P173: 234770.07 | R173: 4269018269 | S173: 826901 | T173: FXP | U173: 426901 | V173: CN | W173: 0.0846 | X173: 1243838.98 | Y173: 105228.7777
A174: 8042TL | B174: 8042 | C174: FXP | D174: CAG | E174: 4523.76 | H174: 8272 | I174: 827201 | J174: 721675.39 | L174: 827201 | M174: FXP | N174: 8272 | O174: 827201 | P174: 721675.39 | R174: 4269BL8269 | S174: 8269BL | T174: FXP | U174: 4269BL | V174: CN | W174: 0.0846 | X174: 816188.22 | Y174: 69049.52341
A175: 8042TL | B175: 8042 | C175: FXP | D175: LPN | E175: 5526.73 | H175: 8273 | I175: 827301 | J175: 982311.48 | L175: 827301 | M175: FXP | N175: 8273 | O175: 827301 | P175: 982311.48 | R175: 4269CL8269 | S175: 8269CL | T175: FXP | U175: 4269CL | V175: CN | W175: 0.0846 | X175: 3200000 | Y175: 270720
A176: 8042TL | B176: 8042 | C176: FXP | D176: BBO | E176: 7428.54 | H176: 8299 | I176: 8299LD | J176: 50000 | L176: 8299LD | M176: FXP | N176: 8299 | O176: 8299LD | P176: 50000 | R176: 4269CO8269 | S176: 8269CO | T176: FXP | U176: 4269CO | V176: CN | W176: 0.0846 | X176: 180937.54 | Y176: 15307.31588
A177: 8042TL | B177: 8042 | C177: FXP | D177: CCC | E177: 14645.26 | H177: 8323 | I177: 8323CP | J177: 1396842.8 | L177: 8323CP | M177: FXP | N177: 8323 | O177: 8323CP | P177: 1396842.8 | R177: 4269KC8269 | S177: 8269KC | T177: FXP | U177: 4269KC | V177: CN | W177: 0.0846 | X177: 41121.15 | Y177: 3478.84929
A178: 8042TL | B178: 8042 | C178: FXP | D178: LSN | E178: 25527.54 | H178: 8351 | I178: 835101 | J178: 2157210.34 | L178: 835101 | M178: FXP | N178: 8351 | O178: 835101 | P178: 2157210.34 | R178: 4269KL8269 | S178: 8269KL | T178: FXP | U178: 4269KL | V178: CN | W178: 0.0846 | X178: 242815.85 | Y178: 20542.22091
A179: 8042TM | B179: 8042 | C179: FXP | D179: BSO | E179: 412.1 | I179: 835105 | J179: 515110.72 | L179: 835105 | M179: FXP | N179: 8351 | O179: 835105 | P179: 515110.72 | R179: 4269LL8269 | S179: 8269LL | T179: FXP | U179: 4269LL | V179: CN | W179: 0.0846 | X179: 4950000 | Y179: 418770
A180: 8042TM | B180: 8042 | C180: FXP | D180: LPD | E180: 418.37 | I180: 835106 | J180: 684969.51 | L180: 835106 | M180: FXP | N180: 8351 | O180: 835106 | P180: 684969.51 | R180: 4269ML8269 | S180: 8269ML | T180: FXP | U180: 4269ML | V180: CN | W180: 0.0846 | X180: 1000000 | Y180: 84600
A181: 8042TM | B181: 8042 | C181: FXP | D181: BPS | E181: 423.09 | I181: 835111 | J181: 274707.79 | L181: 835111 | M181: FXP | N181: 8351 | O181: 835111 | P181: 274707.79 | R181: 4269MP8269 | S181: 8269MP | T181: FXP | U181: 4269MP | V181: CN | W181: 0.0846 | X181: 79872.33 | Y181: 6757.199118
A182: 8042TM | B182: 8042 | C182: FXP | D182: CPT | E182: 859.17 | I182: 835112 | J182: 474000.93 | L182: 835112 | M182: FXP | N182: 8351 | O182: 835112 | P182: 474000.93 | R182: 4269PL8269 | S182: 8269PL | T182: FXP | U182: 4269PL | V182: CN | W182: 0.0846 | X182: 500000 | Y182: 42300
A183: 8042TM | B183: 8042 | C183: FXP | D183: LPN | E183: 2210.71 | I183: 835114 | J183: 317111.2 | L183: 835114 | M183: FXP | N183: 8351 | O183: 835114 | P183: 317111.2 | R183: 4269PR8269 | S183: 8269PR | T183: FXP | U183: 4269PR | V183: CN | W183: 0.0846 | X183: 191809.4 | Y183: 16227.07524
A184: 8042TM | B184: 8042 | C184: FXP | D184: LPM | E184: 2522.88 | I184: 835115 | J184: 51880.49 | L184: 835115 | M184: FXP | N184: 8351 | O184: 835115 | P184: 51880.49 | R184: 4269WL8269 | S184: 8269WL | T184: FXP | U184: 4269WL | V184: CN | W184: 0.0846 | X184: 100000 | Y184: 8460
A185: 8042TM | B185: 8042 | C185: FXP | D185: BBO | E185: 2971.42 | I185: 835116 | J185: 349523.4 | L185: 835116 | M185: FXP | N185: 8351 | O185: 835116 | P185: 349523.4 | R185: 4270018270 | S185: 827001 | T185: FXP | U185: 427001 | V185: A0 | W185: 0.0729 | X185: 781710.21 | Y185: 56986.67431
A186: 8042TM | B186: 8042 | C186: FXP | D186: EHT | E186: 3554.4 | I186: 835117 | J186: 347219.48 | L186: 835117 | M186: FXP | N186: 8351 | O186: 835117 | P186: 347219.48 | R186: 4271018271 | S186: 827101 | T186: FXP | U186: 427101 | V186: A0 | W186: 0.0729 | X186: 234770.07 | Y186: 17114.7381
A187: 8042TM | B187: 8042 | C187: FXP | D187: EMN | E187: 5331.6 | I187: 835118 | J187: 180065.81 | L187: 835118 | M187: FXP | N187: 8351 | O187: 835118 | P187: 180065.81 | R187: 4272018272 | S187: 827201 | T187: FXP | U187: 427201 | V187: A0 | W187: 0.0729 | X187: 721675.39 | Y187: 52610.13593
A188: 8042TM | B188: 8042 | C188: FXP | D188: CAG | E188: 8446.08 | I188: 835120 | J188: 204536 | L188: 835120 | M188: FXP | N188: 8351 | O188: 835120 | P188: 204536 | R188: 4273018273 | S188: 827301 | T188: FXP | U188: 427301 | V188: A0 | W188: 0.0729 | X188: 982311.48 | Y188: 71610.50689
A189: 8042TM | B189: 8042 | C189: FXP | D189: CCC | E189: 9004.38 | I189: 8351AM | J189: 273724.69 | L189: 8351AM | M189: FXP | N189: 8351 | O189: 8351AM | P189: 273724.69 | R189: 4299LD8299 | S189: 8299LD | T189: FXP | U189: 4299LD | V189: HC | W189: 0.0774 | X189: 50000 | Y189: 3870
A190: 8042TM | B190: 8042 | C190: FXP | D190: LSN | E190: 21863.95 | I190: 8351B1 | J190: 209246.86 | L190: 8351B1 | M190: FXP | N190: 8351 | O190: 8351B1 | P190: 209246.86 | R190: 4323CP8323 | S190: 8323CP | T190: FXP | U190: 4323CP | V190: HD | W190: 0.0626 | X190: 1396842.8 | Y190: 87442.35928
A191: 8042TV | B191: 8042 | C191: FXP | D191: BPS | E191: 156.25 | I191: 8351GN | J191: 1578825.03 | L191: 8351GN | M191: FXP | N191: 8351 | O191: 8351GN | P191: 1578825.03 | R191: 4351018351 | S191: 835101 | T191: FXP | U191: 435101 | V191: CP | W191: 0.0693 | X191: 2157210.34 | Y191: 149494.6766
A192: 8042TV | B192: 8042 | C192: FXP | D192: LPD | E192: 206.29 | I192: 8351RM | J192: 96048.82 | L192: 8351RM | M192: FXP | N192: 8351 | O192: 8351RM | P192: 96048.82 | R192: 4351058351 | S192: 835105 | T192: FXP | U192: 435105 | V192: CP | W192: 0.0693 | X192: 515110.72 | Y192: 35697.1729
A193: 8042TV | B193: 8042 | C193: FXP | D193: BSO | E193: 233.8 | I193: 8351T2 | J193: 6499.81 | L193: 8351T2 | M193: FXP | N193: 8351 | O193: 8351T2 | P193: 6499.81 | R193: 4351068351 | S193: 835106 | T193: FXP | U193: 435106 | V193: CP | W193: 0.0693 | X193: 684969.51 | Y193: 47468.38704
A194: 8042TV | B194: 8042 | C194: FXP | D194: CPT | E194: 859.17 | H194: 8352 | I194: 835201 | J194: 2281667.66 | L194: 835201 | M194: FXP | N194: 8352 | O194: 835201 | P194: 2281667.66 | R194: 4351118351 | S194: 835111 | T194: FXP | U194: 435111 | V194: CP | W194: 0.0693 | X194: 274707.79 | Y194: 19037.24985
A195: 8042TV | B195: 8042 | C195: FXP | D195: EHT | E195: 1472.4 | I195: 8352GH | J195: 702853.56 | L195: 8352GH | M195: FXP | N195: 8352 | O195: 8352GH | P195: 702853.56 | R195: =U195&LEFT(S195,4) -> 4351128351 | S195: 835112 | T195: FXP | U195: 435112 | V195: CP | W195: 0.0693 | X195: 474000.93 | Y195: 32848.26445
A196: 8042TV | B196: =LEFT(A196,4) -> 8042 | C196: =VLOOKUP(B196,ALLOCTYPE,2,0) -> FXP | D196: CAG | E196: 1809.46 | I196: 8352GN | J196: 526275.26 | L196: 8352GN | M196: FXP | N196: 8352 | O196: 8352GN | P196: 526275.26 | R196: 4351148351 | S196: 835114 | T196: =VLOOKUP(LEFT(S196,4),ALLOCTYPE,2,0) -> FXP | U196: 435114 | V196: CP | W196: =IF(T196="FXP",VLOOKUP(LEFT(S196,4),FLFXPPCT,4,0),IF(T196="DA",VLOOKUP(U196&LEFT(S196,4),DAPCT,4,0),VLOOKUP(LEFT(U196,4)&"**"&LEFT(S196,4),DAPCT,4,0))) -> 0.0693 | X196: =SUMIF(AWOKEY,S196,PARENTAMT) -> 317111.2 | Y196: 21975.80616
A197: 8042TV | B197: 8042 | C197: FXP | D197: EMN | E197: 2208.6 | H197: 8356 | I197: 835601 | J197: 313536.55 | L197: 835601 | M197: =IF(G197="",M196,G197) -> FXP | N197: =IF(H197="",N196,H197) -> 8356 | O197: =IF(I197="",O196,I197) -> 835601 | P197: =IF(J197="",P196,J197) -> 313536.55 | R197: 4351158351 | S197: 835115 | T197: FXP | U197: 435115 | V197: CP | W197: 0.0693 | X197: 51880.49 | Y197: 3595.317957
A198: 8042TV | B198: 8042 | C198: FXP | D198: LPN | E198: 2210.71 | H198: 8358 | I198: 835801 | J198: 1083458.99 | L198: =O198 -> 835801 | M198: FXP | N198: 8358 | O198: 835801 | P198: 1083458.99 | R198: 4351168351 | S198: 835116 | T198: FXP | U198: 435116 | V198: CP | W198: 0.0693 | X198: 349523.4 | Y198: =X198*W198 -> 24221.97162
A199: 8042TV | B199: 8042 | C199: FXP | D199: BBO | E199: 2971.42 | H199: 8362 | I199: 836201 | J199: 869645.23 | L199: 836201 | M199: FXP | N199: 8362 | O199: 836201 | P199: 869645.23 | R199: 4351178351 | S199: 835117 | T199: FXP | U199: 435117 | V199: CP | W199: 0.0693 | X199: 347219.48 | Y199: 24062.30996
A200: 8042TV | B200: 8042 | C200: FXP | D200: CCC | E200: 5858.07 | I200: 83622A | J200: 7345.03 | L200: 83622A | M200: FXP | N200: 8362 | O200: 83622A | P200: 7345.03 | R200: 4351188351 | S200: 835118 | T200: FXP | U200: 435118 | V200: CP | W200: 0.0693 | X200: 180065.81 | Y200: 12478.56063
A201: 8042TV | B201: 8042 | C201: FXP | D201: LSN | E201: 10210.95 | I201: 8362LM | J201: 53500 | L201: 8362LM | M201: FXP | N201: 8362 | O201: 8362LM | P201: 53500 | R201: 4351208351 | S201: 835120 | T201: FXP | U201: 435120 | V201: CP | W201: 0.0693 | X201: 204536 | Y201: 14174.3448
... 8401 more rows

Sheet AWO Type
A1: ALLOCTYPE
A2: 98JG | B2: DAX
A3: 98JK | B3: DAX
A4: 90FM | B4: DA
A5: 86PL | B5: DA
A6: 9916 | B6: DA
A7: 8464 | B7: DA
A8: 8467 | B8: DA
A9: 8583 | B9: DA
A10: 86TQ | B10: DA
A11: 86S2 | B11: DA
A12: 86S3 | B12: DA
A13: 86S4 | B13: DA
A14: 86B1 | B14: DA
A15: 86B9 | B15: DA
A16: 86GW | B16: DA
A17: 86J1 | B17: DA
A18: 86J9 | B18: DA
A19: 86MB | B19: DA
A20: 86MV | B20: DA
A21: 86CO | B21: DA
A22: 96F1 | B22: DA
A23: 86RN | B23: DA
A24: 86T9 | B24: DA
A25: 86TS | B25: DA
A26: 86DT | B26: DA
A27: 86SQ | B27: DA
A28: 86SS | B28: DA
A29: 86HA | B29: DA
A30: 96DE | B30: DA
A31: 96PM | B31: DA
A32: 86TR | B32: DA
A33: 86NI | B33: DA
A34: 86WB | B34: DA
A35: 86CU | B35: DA
A36: 96ET | B36: DAX
A37: 86AC | B37: DA
A38: 86CI | B38: DA
A39: 86RA | B39: DA
A40: 86RS | B40: DA
A41: 86SM | B41: DA
A42: 86AE | B42: DA
A43: 86F8 | B43: DA
A44: 86EL | B44: DA
A45: 86RW | B45: DA
A46: 86CR | B46: DA
A47: 86MK | B47: DA
A48: 86MC | B48: DA
A49: 86TE | B49: DA
A50: 86TG | B50: DA
A51: 86IV | B51: DA
A52: 86OO | B52: DA
A53: 86W1 | B53: DA
A54: 86FM | B54: DA
A55: 86W2 | B55: DA
A56: 86W3 | B56: DA
A57: 86WH | B57: DA
A58: 9646 | B58: DA
A59: 968A | B59: DA
A60: 968N | B60: DA
A61: 968T | B61: DA
A62: 969D | B62: DA
A63: 969E | B63: DA
A64: 96CN | B64: DA
A65: 96IO | B65: DA
A66: 96IP | B66: DA
A67: 96NC | B67: DA
A68: 86AV | B68: DA
A69: 871A | B69: DA
A70: 86R6 | B70: DA
A71: 86R8 | B71: DA
A72: 8784 | B72: DA
A73: 8777 | B73: DA
A74: 9780 | B74: DA
A75: 9LBR | B75: DA
A76: 87AD | B76: DA
A77: 9802 | B77: DA
A78: 97IS | B78: DAX
A79: 86OA | B79: DA
A80: 8688 | B80: DA
A81: 8689 | B81: DA
A82: 86CK | B82: DA
A83: 86CM | B83: DA
A84: 86C1 | B84: DA
A85: 86C2 | B85: DA
A86: 86E1 | B86: DA
A87: 86E2 | B87: DA
A88: 98RT | B88: DA
A89: 98RS | B89: DA
A90: 98HD | B90: DA
A91: 87WW | B91: DA
A92: 99SM | B92: DA
A93: 87NA | B93: DA
A94: 87RM | B94: DA
A95: 87RS | B95: DA
A96: 87NN | B96: DA
A97: 86MG | B97: DA
A98: 98BS | B98: DA
A99: 98DH | B99: DA
A100: 98FI | B100: DA
A101: 88ED | B101: DA
A102: 98LC | B102: DAX
A103: 99PC | B103: DAX
A104: 99SC | B104: DA
A105: 99PP | B105: DA
A106: 990K | B106: DA
A107: 99TR | B107: DA
A108: 9891 | B108: DA
A109: 89SW | B109: DA
A110: 90AA | B110: DA
A111: 90AB | B111: DA
A112: 9ICF | B112: DA
A113: 8QOM | B113: DA
A114: 8QTV | B114: DA
A115: 8QPA | B115: DA
A116: 8QWA | B116: DA
A117: 8030 | B117: FXP
A118: 803S | B118: FXP
A119: 8040 | B119: FXP
A120: 8041 | B120: FXP
A121: 8042 | B121: FXP
A122: 8043 | B122: FXP
A123: 8044 | B123: FXP
A124: 8045 | B124: FXP
A125: 8050 | B125: FXP
A126: 8060 | B126: FXP
A127: 80MR | B127: FXP
A128: 8251 | B128: FXP
A129: 8268 | B129: FXP
A130: 8269 | B130: FXP
A131: 8270 | B131: FXP
A132: 8271 | B132: FXP
A133: 8272 | B133: FXP
A134: 8273 | B134: FXP
A135: 8299 | B135: FXP
A136: 8323 | B136: FXP
A137: 8351 | B137: FXP
A138: 8352 | B138: FXP
A139: 8356 | B139: FXP
A140: 8358 | B140: FXP
A141: 8362 | B141: FXP
A142: 8365 | B142: FXP
A143: 8375 | B143: FXP
A144: 8387 | B144: FXP
A145: 8389 | B145: FXP
A146: 8399 | B146: FXP
A147: 8400 | B147: FXP
A148: 8429 | B148: FXP
A149: 8452 | B149: FXP
A150: 8453 | B150: FXP
A151: 8455 | B151: FXP
A152: 8456 | B152: FXP
A153: 8457 | B153: FXP
A154: 8461 | B154: FXP
A155: 8486 | B155: FXP
A156: 8523 | B156: FXP
A157: 8568 | B157: FXP
A158: 8608 | B158: FXP
A159: 8651 | B159: FXP
A160: 8661 | B160: FXP
A161: 8669 | B161: FXP
A162: 8675 | B162: FXP
A163: 86AP | B163: FXP
A164: 86AT | B164: FXP
A165: 86CA | B165: FXP
A166: 86CC | B166: FXP
A167: 86CS | B167: FXP
A168: 86DA | B168: FXP
A169: 86DB | B169: FXP
A170: 86EP | B170: FXP
A171: 86EZ | B171: FXP
A172: 86GI | B172: FXP
A173: 86ID | B173: FXP
A174: 86IT | B174: FXP
A175: 86LR | B175: FXP
A176: 86MI | B176: FXP
A177: 86OR | B177: FXP
A178: 86PG | B178: FXP
A179: 86RD | B179: FXP
A180: 86SB | B180: FXP
A181: 86SN | B181: FXP
A182: 86TC | B182: FXP
A183: 86TP | B183: FXP
A184: 8701 | B184: FXP
A185: 8702 | B185: FXP
A186: 8703 | B186: FXP
A187: 8704 | B187: FXP
A188: 8705 | B188: FXP
A189: 8706 | B189: FXP
A190: 8707 | B190: FXP
A191: 8708 | B191: FXP
A192: 8709 | B192: FXP
A193: 870A | B193: FXP
A194: 870B | B194: FXP
A195: 870C | B195: FXP
A196: 870G | B196: FXP
A197: 870J | B197: FXP
A198: 8712 | B198: FXP
A199: 8716 | B199: FXP
A200: 8717 | B200: FXP
... 229 more rows

Sheet DA Spreads
A1: DAPCT
A2: KEY | B2: EWO | C2: DAWO | D2: PCT
A3: =B3&C3 -> 4040**98JG | B3: 4040** | C3: 98JG | D3: 0.065 | E3: <====== | F3: Update percentages in this column
A4: =B4&C4 -> 4040**98JK | B4: 4040** | C4: 98JK | D4: 0.2777
A5: 4040CC90FM | B5: 4040CC | C5: 90FM | D5: 0.0866
A6: 40440286PL | B6: 404402 | C6: 86PL | D6: 0.01
A7: 4102PA9916 | B7: 4102PA | C7: 9916 | D7: 0.0625
A8: 4464528464 | B8: 446452 | C8: 8464 | D8: 0.0953
A9: 4467018467 | B9: 446701 | C9: 8467 | D9: 0.0685
A10: 4583018583 | B10: 458301 | C10: 8583 | D10: 0.025
A11: 4617TP86TQ | B11: 4617TP | C11: 86TQ | D11: 0.0623
A12: 4638SM86S2 | B12: 4638SM | C12: 86S2 | D12: 0.036
A13: 4638SP86S3 | B13: 4638SP | C13: 86S3 | D13: 0.0723
A14: 4638SP86S4 | B14: 4638SP | C14: 86S4 | D14: 0.036
A15: 4651B186B1 | B15: 4651B1 | C15: 86B1 | D15: 0.0714
A16: 4651B986B9 | B16: 4651B9 | C16: 86B9 | D16: 0.0714
A17: 4651GW86GW | B17: 4651GW | C17: 86GW | D17: 0.0796
A18: 4651J186J1 | B18: 4651J1 | C18: 86J1 | D18: 0.0796
A19: 4651J986J9 | B19: 4651J9 | C19: 86J9 | D19: 0.0796
A20: 4661MB86MB | B20: 4661MB | C20: 86MB | D20: 0.0723
A21: 4661MT86MV | B21: 4661MT | C21: 86MV | D21: 0.0723
A22: 4669CO86CO | B22: 4669CO | C22: 86CO | D22: 0.0972
A23: 4669M596F1 | B23: 4669M5 | C23: 96F1 | D23: 0.07
A24: 4669SW86RN | B24: 4669SW | C24: 86RN | D24: 0.0723
A25: 4669T986T9 | B25: 4669T9 | C25: 86T9 | D25: 0.0723
A26: 4669TS86TS | B26: 4669TS | C26: 86TS | D26: 0.0723
A27: 4690AE86DT | B27: 4690AE | C27: 86DT | D27: 0.39
A28: 4690AE86SQ | B28: 4690AE | C28: 86SQ | D28: 0.0059
A29: 4690AE86SS | B29: 4690AE | C29: 86SS | D29: 0.0097
A30: 46AF0186HA | B30: 46AF01 | C30: 86HA | D30: 0.011614
A31: 46AF0386SS | B31: 46AF03 | C31: 86SS | D31: 0.0097
A32: 46AFAP96DE | B32: 46AFAP | C32: 96DE | D32: 0.0012
A33: 46AFAP96PM | B33: 46AFAP | C33: 96PM | D33: 0.0013
A34: 46AFTM86TR | B34: 46AFTM | C34: 86TR | D34: 0.1044352
A35: 46CC2086NI | B35: 46CC20 | C35: 86NI | D35: 0.0594001
A36: 46CC2086WB | B36: 46CC20 | C36: 86WB | D36: 0.1
A37: 46CC9086CU | B37: 46CC90 | C37: 86CU | D37: 0.05
A38: 46CO**96ET | B38: 46CO** | C38: 96ET | D38: 0.033
A39: 46COAM86SQ | B39: 46COAM | C39: 86SQ | D39: 0.0004
A40: 46COCD86AC | B40: 46COCD | C40: 86AC | D40: 0.015
A41: 46COCI86CI | B41: 46COCI | C41: 86CI | D41: 0.0728
A42: 46COIT86SQ | B42: 46COIT | C42: 86SQ | D42: 0.0032
A43: 46CORM86RA | B43: 46CORM | C43: 86RA | D43: 0.0525
A44: 46CORM86RS | B44: 46CORM | C44: 86RS | D44: 0.1667
A45: 46COSM86SM | B45: 46COSM | C45: 86SM | D45: 0.099
A46: 46COTA86AE | B46: 46COTA | C46: 86AE | D46: 0.06194
A47: 46DR2486F8 | B47: 46DR24 | C47: 86F8 | D47: 0.6
A48: 46DRDC86SQ | B48: 46DRDC | C48: 86SQ | D48: 0.0059
A49: 46EL0186EL | B49: 46EL01 | C49: 86EL | D49: 0.02
A50: 46HR0286RW | B50: 46HR02 | C50: 86RW | D50: 0.0714
A51: 46HRRK86CR | B51: 46HRRK | C51: 86CR | D51: 0.051218
A52: 46MK0486SS | B52: 46MK04 | C52: 86SS | D52: 0.0097
A53: 46MKES86MK | B53: 46MKES | C53: 86MK | D53: 0.25
A54: 46PM3596DE | B54: 46PM35 | C54: 96DE | D54: 0.0005
A55: 46RDDA86MC | B55: 46RDDA | C55: 86MC | D55: 0.0972
A56: 46RDTE86TE | B56: 46RDTE | C56: 86TE | D56: 0.01
A57: 46RDTG86TG | B57: 46RDTG | C57: 86TG | D57: 0.01
A58: 46SE0186RW | B58: 46SE01 | C58: 86RW | D58: 0.0714
A59: 46SEDM86IV | B59: 46SEDM | C59: 86IV | D59: 0.0943
A60: 46TC0286OO | B60: 46TC02 | C60: 86OO | D60: 0.014299
A61: 46TN0186F8 | B61: 46TN01 | C61: 86F8 | D61: 0.4
A62: 46TXLM86W1 | B62: 46TXLM | C62: 86W1 | D62: 0.0052
A63: 46TXTC86FM | B63: 46TXTC | C63: 86FM | D63: 0.0369004
A64: 46TXTC86NI | B64: 46TXTC | C64: 86NI | D64: 0.003765
A65: 46TXTC86W1 | B65: 46TXTC | C65: 86W1 | D65: 0.0059
A66: 46TXTC86W2 | B66: 46TXTC | C66: 86W2 | D66: 0.0102501
A67: 46TXTC86W3 | B67: 46TXTC | C67: 86W3 | D67: 0.0157032
A68: =B68&C68 -> 46TXTC86WH | B68: 46TXTC | C68: 86WH | D68: 0.0102501
A69: 46TXTC9646 | B69: 46TXTC | C69: 9646 | D69: 0.04100046211
A70: 46TXTC968A | B70: 46TXTC | C70: 968A | D70: 0.0041
A71: 46TXTC968N | B71: 46TXTC | C71: 968N | D71: 0.00369
A72: 46TXTC968T | B72: 46TXTC | C72: 968T | D72: 0.0369004
A73: 46TXTC969D | B73: 46TXTC | C73: 969D | D73: 0.0045955
A74: 46TXTC969E | B74: 46TXTC | C74: 969E | D74: 0.00246
A75: 46TXTC96CN | B75: 46TXTC | C75: 96CN | D75: 0.0177655
A76: 46TXTC96IO | B76: 46TXTC | C76: 96IO | D76: 0.0132377
A77: 46TXTC96IP | B77: 46TXTC | C77: 96IP | D77: 0.0105
A78: 46TXTC96NC | B78: 46TXTC | C78: 96NC | D78: 0.0266503
A79: 46XA0486AV | B79: 46XA04 | C79: 86AV | D79: 0.0721
A80: 471101871A | B80: 471101 | C80: 871A | D80: 0.0385
A81: 4711CP86OO | B81: 4711CP | C81: 86OO | D81: 2.511e-05
A82: 4711CP86R6 | B82: 4711CP | C82: 86R6 | D82: 0.000459
A83: 4711CP86R8 | B83: 4711CP | C83: 86R8 | D83: 0.0005559
A84: 4711CP8784 | B84: 4711CP | C84: 8784 | D84: 0.1471
A85: 4711EC8777 | B85: 4711EC | C85: 8777 | D85: 0.04
A86: 4716DT9780 | B86: 4716DT | C86: 9780 | D86: 0.1446
A87: 4799LA9LBR | B87: 4799LA | C87: 9LBR | D87: 0.0272
A88: 47AD0187AD | B88: 47AD01 | C88: 87AD | D88: 0.06
A89: 47AD019802 | B89: 47AD01 | C89: 9802 | D89: 0.0018
A90: 47AP**97IS | B90: 47AP** | C90: 97IS | D90: 0.08
A91: 47APIE86OA | B91: 47APIE | C91: 86OA | D91: 0.0017
A92: 47APLD8688 | B92: 47APLD | C92: 8688 | D92: 0.1543
A93: 47APLD8689 | B93: 47APLD | C93: 8689 | D93: 0.1543
A94: 47APLE86CK | B94: 47APLE | C94: 86CK | D94: 0.01725
A95: 47APLE86CM | B95: 47APLE | C95: 86CM | D95: 0.01725
A96: 47APLF86C1 | B96: 47APLF | C96: 86C1 | D96: 0.0773
A97: 47APLF86C2 | B97: 47APLF | C97: 86C2 | D97: 0.0773
A98: 47APLF86E1 | B98: 47APLF | C98: 86E1 | D98: 0.0745
A99: 47APLF86E2 | B99: 47APLF | C99: 86E2 | D99: 0.0745
A100: 47CMPE98RT | B100: 47CMPE | C100: 98RT | D100: 0.0608
A101: 47CMPI98RS | B101: 47CMPI | C101: 98RS | D101: 0.0608
A102: 47ERLB98HD | B102: 47ERLB | C102: 98HD | D102: 0.0723
A103: 47GSRC87WW | B103: 47GSRC | C103: 87WW | D103: 0
A104: 47LWSM99SM | B104: 47LWSM | C104: 99SM | D104: 0.0972
A105: 47NA0187NA | B105: 47NA01 | C105: 87NA | D105: 0.0846
A106: 47RM0187RM | B106: 47RM01 | C106: 87RM | D106: 0.0392
A107: 47RN0187RM | B107: 47RN01 | C107: 87RM | D107: 0.0555
A108: 47SSR187RS | B108: 47SSR1 | C108: 87RS | D108: 0.1
A109: 47SSR387NN | B109: 47SSR3 | C109: 87NN | D109: 0.2
A110: 4899LA9LBR | B110: 4899LA | C110: 9LBR | D110: 0.0424
A111: 48BS0186MG | B111: 48BS01 | C111: 86MG | D111: 0.0276
A112: 48BS0198BS | B112: 48BS01 | C112: 98BS | D112: 0.0686
A113: 48DH0186OO | B113: 48DH01 | C113: 86OO | D113: 5.746e-05
A114: 48DH0186R6 | B114: 48DH01 | C114: 86R6 | D114: 0.0010506
A115: 48DH0186R8 | B115: 48DH01 | C115: 86R8 | D115: 0.0012778
A116: 48DH0198DH | B116: 48DH01 | C116: 98DH | D116: 0.1019
A117: 48DH0198FI | B117: 48DH01 | C117: 98FI | D117: 0.004
A118: 48ED0186OO | B118: 48ED01 | C118: 86OO | D118: 0.00029614
A119: 48ED0188ED | B119: 48ED01 | C119: 88ED | D119: 0.0617
A120: 48LC**98LC | B120: 48LC** | C120: 98LC | D120: 0.05
A121: 4905**99PC | B121: 4905** | C121: 99PC | D121: 0.0566
A122: 4905PA99SC | B122: 4905PA | C122: 99SC | D122: 0.0569
A123: 490CCA99PP | B123: 490CCA | C123: 99PP | D123: 0.21
A124: 490G01990K | B124: 490G01 | C124: 990K | D124: 0.1057
A125: 490TVR99TR | B125: 490TVR | C125: 99TR | D125: 0.13
A126: 4936MC9891 | B126: 4936MC | C126: 9891 | D126: 0.07
A127: 49SW0189SW | B127: 49SW01 | C127: 89SW | D127: 0.673
A128: 4CCRF790AA | B128: 4CCRF7 | C128: 90AA | D128: 0.0714
A129: 4CCRS790AB | B129: 4CCRS7 | C129: 90AB | D129: 0.0666
A130: 4EPACR9ICF | B130: 4EPACR | C130: 9ICF | D130: 0.3333
A131: 4EPASM9ICF | B131: 4EPASM | C131: 9ICF | D131: 0.3333
A132: =B132&C132 -> 4EPASZ9ICF | B132: 4EPASZ | C132: 9ICF | D132: 0.3334
A133: 4QFH0686SQ | B133: 4QFH06 | C133: 86SQ | D133: 0.0059
A134: 4QFHIM8QOM | B134: 4QFHIM | C134: 8QOM | D134: 0.0663
A135: 4QFHTV8QTV | B135: 4QFHTV | C135: 8QTV | D135: 0.0662
A136: 4QPA018QPA | B136: 4QPA01 | C136: 8QPA | D136: 0.14
A137: 4QWM018QWA | B137: 4QWM01 | C137: 8QWA | D137: 0.0759

Sheet FP Spreads
B1: FLFXPPCT | E1: \/ | I1: AIPCT
A2: DESTWO | B2: FXP | C2: AI | D2: KEY | E2: PCT | F2: AI_DESC | I2: AI | J2: PCT
A3: ="4"&RIGHT(B3,3) -> 4030 | B3: 8030 | C3: HD | D3: =CONCATENATE(A3,C3) -> 4030HD | E3: =VLOOKUP(C3,AIPCT,2,0) -> 0.0626 | F3: FOSSIL HYDRO CAPACITY (2,3,4,5,6,P,) | I3: A0 | J3: 0.0729 | K3: <====== | L3: Update percentages in this column
A4: 403S | B4: 803S | C4: HC | D4: =CONCATENATE(A4,C4) -> 403SHC | E4: 0.0774 | F4: FOSSIL HYDRO CAPACITY (2,3,4,5,6,) | I4: A1 | J4: 0.0663 | L4: to impact all distribution work orders
A5: 4040 | B5: 8040 | C5: HB | D5: 4040HB | E5: 0.0666 | F5: FOSSIL CAPACITY (2,3,4,5,6,P,) | I5: AB | J5: 0.0938 | L5: based on this Allocation Indicator (AI).
A6: 4041 | B6: 8041 | C6: ET | D6: 4041ET | E6: 0.0755 | F6: EMPLOYEE (2,3,4,5,) | I6: C4 | J6: 0.0588
A7: 4042 | B7: 8042 | C7: HB | D7: 4042HB | E7: 0.0666 | F7: FOSSIL CAPACITY (2,3,4,5,6,P,) | I7: C6 | J7: 0.1015 | L7: Update percentages in column E
A8: 4043 | B8: 8043 | C8: HD | D8: 4043HD | E8: 0.0626 | F8: FOSSIL HYDRO CAPACITY (2,3,4,5,6,P,) | I8: CI | J8: 0.0586 | L8: to impact single distribution work orders.
A9: 4044 | B9: 8044 | C9: ET | D9: 4044ET | E9: 0.0755 | F9: EMPLOYEE (2,3,4,5,) | I9: CK | J9: 0.058
A10: 4045 | B10: 8045 | C10: HD | D10: 4045HD | E10: 0.0626 | F10: FOSSIL HYDRO CAPACITY (2,3,4,5,6,P,) | I10: CM | J10: 0.0721
A11: 4050 | B11: 8050 | C11: HD | D11: 4050HD | E11: 0.0626 | F11: FOSSIL HYDRO CAPACITY (2,3,4,5,6,P,) | I11: CN | J11: 0.0846
A12: 4060 | B12: 8060 | C12: HD | D12: 4060HD | E12: 0.0626 | F12: FOSSIL HYDRO CAPACITY (2,3,4,5,6,P,) | I12: CO | J12: 0.0709
A13: 40MR | B13: 80MR | C13: HD | D13: 40MRHD | E13: 0.0626 | F13: FOSSIL HYDRO CAPACITY (2,3,4,5,6,P,) | I13: CP | J13: 0.0693
A14: 4251 | B14: 8251 | C14: A0 | D14: 4251A0 | E14: 0.0729 | F14: LOAD (2,3,4,5,) | I14: CQ | J14: 0.0973
A15: 4268 | B15: 8268 | C15: A0 | D15: 4268A0 | E15: 0.0729 | F15: LOAD (2,3,4,5,) | I15: CS | J15: 0.2091
A16: 4269 | B16: 8269 | C16: CN | D16: 4269CN | E16: 0.0846 | F16: COAL CAPACITY (2,3,4,5,6,) | I16: CT | J16: 0.1443
A17: 4270 | B17: 8270 | C17: A0 | D17: 4270A0 | E17: 0.0729 | F17: LOAD (2,3,4,5,) | I17: CU | J17: 0.698
A18: 4271 | B18: 8271 | C18: A0 | D18: 4271A0 | E18: 0.0729 | F18: LOAD (2,3,4,5,) | I18: EM | J18: 0.0754
A19: 4272 | B19: 8272 | C19: A0 | D19: 4272A0 | E19: 0.0729 | F19: LOAD (2,3,4,5,) | I19: EN | J19: 0.0529
A20: 4273 | B20: 8273 | C20: A0 | D20: 4273A0 | E20: 0.0729 | F20: LOAD (2,3,4,5,) | I20: EO | J20: 0.0367
A21: 4299 | B21: 8299 | C21: HC | D21: 4299HC | E21: 0.0774 | F21: FOSSIL HYDRO CAPACITY (2,3,4,5,6,) | I21: ET | J21: 0.0755
A22: 4323 | B22: 8323 | C22: HD | D22: 4323HD | E22: 0.0626 | F22: FOSSIL HYDRO CAPACITY (2,3,4,5,6,P,) | I22: EY | J22: 0.0526
A23: 4351 | B23: 8351 | C23: CP | D23: 4351CP | E23: 0.0693 | F23: COAL GENERATION (2,3,4,5,6,) | I23: GH | J23: 0.0671
A24: 4352 | B24: 8352 | C24: AB | D24: 4352AB | E24: 0.0938 | F24: GAS BURNED (2,3,4,5,P) | I24: GN | J24: 0.0724
A25: 4356 | B25: 8356 | C25: HB | D25: 4356HB | E25: 0.0666 | F25: FOSSIL CAPACITY (2,3,4,5,6,P,) | I25: GO | J25: 0.0689
A26: 4358 | B26: 8358 | C26: HB | D26: 4358HB | E26: 0.0666 | F26: FOSSIL CAPACITY (2,3,4,5,6,P,) | I26: GP | J26: 0.084
A27: 4362 | B27: 8362 | C27: A1 | D27: 4362A1 | E27: 0.0663 | F27: LOAD (2,3,4,5,P,) | I27: GQ | J27: 0.0706
A28: 4365 | B28: 8365 | C28: HA | D28: 4365HA | E28: 0.0836 | F28: FOSSIL CAPACITY (2,3,4,5,6,) | I28: GS | J28: 0.0785
A29: 4375 | B29: 8375 | C29: A1 | D29: 4375A1 | E29: 0.0663 | F29: LOAD (2,3,4,5,P,) | I29: GT | J29: 0.0783
A30: 4387 | B30: 8387 | C30: A0 | D30: 4387A0 | E30: 0.0729 | F30: LOAD (2,3,4,5,) | I30: GU | J30: 0.0814
A31: 4389 | B31: 8389 | C31: HD | D31: 4389HD | E31: 0.0626 | F31: FOSSIL HYDRO CAPACITY (2,3,4,5,6,P,) | I31: GV | J31: 0.076
A32: 4399 | B32: 8399 | C32: HC | D32: 4399HC | E32: 0.0774 | F32: FOSSIL HYDRO CAPACITY (2,3,4,5,6,) | I32: GW | J32: 0.0712
A33: 4400 | B33: 8400 | C33: HC | D33: 4400HC | E33: 0.0774 | F33: FOSSIL HYDRO CAPACITY (2,3,4,5,6,) | I33: GX | J33: 0.0715
A34: 4429 | B34: 8429 | C34: HA | D34: 4429HA | E34: 0.0836 | F34: FOSSIL CAPACITY (2,3,4,5,6,) | I34: GY | J34: 0.0793
A35: 4452 | B35: 8452 | C35: HD | D35: 4452HD | E35: 0.0626 | F35: FOSSIL HYDRO CAPACITY (2,3,4,5,6,P,) | I35: H4 | J35: 0.0634
A36: 4453 | B36: 8453 | C36: HC | D36: 4453HC | E36: 0.0774 | F36: FOSSIL HYDRO CAPACITY (2,3,4,5,6,) | I36: H6 | J36: 0.0669
A37: 4455 | B37: 8455 | C37: HE | D37: 4455HE | E37: 0.0444 | F37: Carbon emissions (2,3,4,5,6,P) | I37: H7 | J37: 0.0753
A38: 4456 | B38: 8456 | C38: A1 | D38: 4456A1 | E38: 0.0663 | F38: LOAD (2,3,4,5,P,) | I38: HA | J38: 0.0836
A39: 4457 | B39: 8457 | C39: A1 | D39: 4457A1 | E39: 0.0663 | F39: LOAD (2,3,4,5,P,) | I39: HB | J39: 0.0666
A40: 4461 | B40: 8461 | C40: HC | D40: 4461HC | E40: 0.0774 | F40: FOSSIL HYDRO CAPACITY (2,3,4,5,6,) | I40: HC | J40: 0.0774
A41: 4486 | B41: 8486 | C41: A0 | D41: 4486A0 | E41: 0.0729 | F41: LOAD (2,3,4,5,) | I41: HD | J41: 0.0626
A42: 4523 | B42: 8523 | C42: CN | D42: 4523CN | E42: 0.0846 | F42: COAL CAPACITY (2,3,4,5,6,) | I42: HE | J42: 0.0444
A43: 4568 | B43: 8568 | C43: A0 | D43: 4568A0 | E43: 0.0729 | F43: LOAD (2,3,4,5,) | I43: HF | J43: 0.0444
A44: 4608 | B44: 8608 | C44: KB | D44: 4608KB | E44: 0.0458 | F44: IT DIVISIONAL SALARY (1,2,3,4,5,C,K,P,9) | I44: KA | J44: 0.0929
A45: 4651 | B45: 8651 | C45: GV | D45: 4651GV | E45: 0.076 | F45: FINANCIAL (2,3,4,5,C,9,) | I45: KB | J45: 0.0458
A46: 4661 | B46: 8661 | C46: CQ | D46: 4661CQ | E46: 0.0973 | F46: CUSTOMER (2,3,4,5,) | I46: NK | J46: 0.044
A47: 4669 | B47: 8669 | C47: A0 | D47: 4669A0 | E47: 0.0729 | F47: LOAD (2,3,4,5,) | I47: NL | J47: 0.0508
A48: 4675 | B48: 8675 | C48: A0 | D48: 4675A0 | E48: 0.0729 | F48: LOAD (2,3,4,5,) | I48: R2 | J48: 0.0475
A49: 46AP | B49: 86AP | C49: GT | D49: 46APGT | E49: 0.0783 | F49: FINANCIAL (2,3,4,5,9,) | I49: R3 | J49: 0.0732
A50: 46AT | B50: 86AT | C50: CQ | D50: 46ATCQ | E50: 0.0973 | F50: CUSTOMER (2,3,4,5,) | I50: S5 | J50: 0.0772
A51: 46CA | B51: 86CA | C51: CQ | D51: 46CACQ | E51: 0.0973 | F51: CUSTOMER (2,3,4,5,) | I51: SA | J51: 0.0877
A52: 46CC | B52: 86CC | C52: CQ | D52: 46CCCQ | E52: 0.0973 | F52: CUSTOMER (2,3,4,5,) | I52: T1 | J52: 0.0622
A53: 46CS | B53: 86CS | C53: CQ | D53: 46CSCQ | E53: 0.0973 | F53: CUSTOMER (2,3,4,5,)
A54: 46DA | B54: 86DA | C54: A0 | D54: 46DAA0 | E54: 0.0729 | F54: LOAD (2,3,4,5,)
A55: 46DB | B55: 86DB | C55: EY | D55: 46DBEY | E55: 0.0526 | F55: EMPLOYEE BASIS (2,3,4,5,C,K,9)
A56: 46EP | B56: 86EP | C56: GT | D56: 46EPGT | E56: 0.0783 | F56: FINANCIAL (2,3,4,5,9,)
A57: 46EZ | B57: 86EZ | C57: CQ | D57: 46EZCQ | E57: 0.0973 | F57: CUSTOMER (2,3,4,5,)
A58: 46GI | B58: 86GI | C58: A0 | D58: 46GIA0 | E58: 0.0729 | F58: LOAD (2,3,4,5,)
A59: 46ID | B59: 86ID | C59: A0 | D59: 46IDA0 | E59: 0.0729 | F59: LOAD (2,3,4,5,)
A60: 46IT | B60: 86IT | C60: NK | D60: 46ITNK | E60: 0.044 | F60: NETWORK PC (2,3,4,5,C,K,9)
A61: 46LR | B61: 86LR | C61: CQ | D61: 46LRCQ | E61: 0.0973 | F61: CUSTOMER (2,3,4,5,)
A62: 46MI | B62: 86MI | C62: CQ | D62: 46MICQ | E62: 0.0973 | F62: CUSTOMER (2,3,4,5,)
A63: 46OR | B63: 86OR | C63: H4 | D63: 46ORH4 | E63: 0.0634 | F63: FINANCIAL (1,2,3,4,5,6,C,K,M,P,9)
A64: 46PG | B64: 86PG | C64: C6 | D64: 46PGC6 | E64: 0.1015 | F64: CUSTOMER (2,3,4,)
A65: 46RD | B65: 86RD | C65: CQ | D65: 46RDCQ | E65: 0.0973 | F65: CUSTOMER (2,3,4,5,)
A66: 46SB | B66: 86SB | C66: A0 | D66: 46SBA0 | E66: 0.0729 | F66: LOAD (2,3,4,5,)
A67: ="4"&RIGHT(B67,3) -> 46SN | B67: 86SN | C67: GV | D67: 46SNGV | E67: =VLOOKUP(C67,AIPCT,2,0) -> 0.076 | F67: FINANCIAL (2,3,4,5,C,9,)
A68: 46TC | B68: 86TC | C68: CT | D68: =CONCATENATE(A68,C68) -> 46TCCT | E68: 0.1443 | F68: CUSTOMER (3,4,5,)
A69: 46TP | B69: 86TP | C69: A0 | D69: 46TPA0 | E69: 0.0729 | F69: LOAD (2,3,4,5,)
A70: 4701 | B70: 8701 | C70: A1 | D70: 4701A1 | E70: 0.0663 | F70: LOAD (2,3,4,5,P,)
A71: 4702 | B71: 8702 | C71: A0 | D71: 4702A0 | E71: 0.0729 | F71: LOAD (2,3,4,5,)
A72: 4703 | B72: 8703 | C72: CQ | D72: 4703CQ | E72: 0.0973 | F72: CUSTOMER (2,3,4,5,)
A73: 4704 | B73: 8704 | C73: GW | D73: 4704GW | E73: 0.0712 | F73: FINANCIAL (2,3,4,5,C,K,M,P,9,)
A74: 4705 | B74: 8705 | C74: GW | D74: 4705GW | E74: 0.0712 | F74: FINANCIAL (2,3,4,5,C,K,M,P,9,)
A75: 4706 | B75: 8706 | C75: GW | D75: 4706GW | E75: 0.0712 | F75: FINANCIAL (2,3,4,5,C,K,M,P,9,)
A76: 4707 | B76: 8707 | C76: EY | D76: 4707EY | E76: 0.0526 | F76: EMPLOYEE BASIS (2,3,4,5,C,K,9)
A77: 4708 | B77: 8708 | C77: GW | D77: 4708GW | E77: 0.0712 | F77: FINANCIAL (2,3,4,5,C,K,M,P,9,)
A78: 4709 | B78: 8709 | C78: CO | D78: 4709CO | E78: 0.0709 | F78: COAL GENERATION (2,3,4,5,)
A79: 470A | B79: 870A | C79: GW | D79: 470AGW | E79: 0.0712 | F79: FINANCIAL (2,3,4,5,C,K,M,P,9,)
A80: 470B | B80: 870B | C80: GX | D80: 470BGX | E80: 0.0715 | F80: FINANCIAL (2,3,4,5,C,K,P,9,)
A81: 470C | B81: 870C | C81: GW | D81: 470CGW | E81: 0.0712 | F81: FINANCIAL (2,3,4,5,C,K,M,P,9,)
A82: 470G | B82: 870G | C82: A0 | D82: 470GA0 | E82: 0.0729 | F82: LOAD (2,3,4,5,)
A83: 470J | B83: 870J | C83: AB | D83: 470JAB | E83: 0.0938 | F83: GAS BURNED (2,3,4,5,P)
A84: 4712 | B84: 8712 | C84: GN | D84: 4712GN | E84: 0.0724 | F84: FINANCIAL (1,2,3,4,5,6,K,M,)
A85: 4716 | B85: 8716 | C85: GY | D85: 4716GY | E85: 0.0793 | F85: FINANCIAL (2,3,4,5,P,)
A86: 4717 | B86: 8717 | C86: H6 | D86: 4717H6 | E86: 0.0669 | F86: FINANCIAL (1,2,3,4,5,6,C,M,9,)
A87: 471E | B87: 871E | C87: A1 | D87: 471EA1 | E87: 0.0663 | F87: LOAD (2,3,4,5,P,)
A88: 4721 | B88: 8721 | C88: CM | D88: 4721CM | E88: 0.0721 | F88: CAPITALIZATION (2,3,4,5,)
A89: 4722 | B89: 8722 | C89: CM | D89: 4722CM | E89: 0.0721 | F89: CAPITALIZATION (2,3,4,5,)
A90: 4726 | B90: 8726 | C90: GY | D90: 4726GY | E90: 0.0793 | F90: FINANCIAL (2,3,4,5,P,)
A91: 4727 | B91: 8727 | C91: GH | D91: 4727GH | E91: 0.0671 | F91: FINANCIAL (1,2,3,4,5,6,C,K,M,P)
A92: 4728 | B92: 8728 | C92: EY | D92: 4728EY | E92: 0.0526 | F92: EMPLOYEE BASIS (2,3,4,5,C,K,9)
A93: 472B | B93: 872B | C93: CM | D93: 472BCM | E93: 0.0721 | F93: CAPITALIZATION (2,3,4,5,)
A94: 472D | B94: 872D | C94: A1 | D94: 472DA1 | E94: 0.0663 | F94: LOAD (2,3,4,5,P,)
A95: 472E | B95: 872E | C95: HD | D95: 472EHD | E95: 0.0626 | F95: FOSSIL HYDRO CAPACITY (2,3,4,5,6,P,)
A96: 472F | B96: 872F | C96: CP | D96: 472FCP | E96: 0.0693 | F96: COAL GENERATION (2,3,4,5,6,)
A97: 472G | B97: 872G | C97: HD | D97: 472GHD | E97: 0.0626 | F97: FOSSIL HYDRO CAPACITY (2,3,4,5,6,P,)
A98: 4730 | B98: 8730 | C98: GQ | D98: 4730GQ | E98: 0.0706 | F98: FINANCIAL (2,3,4,5,6,C,K,M,P,9,)
A99: 4732 | B99: 8732 | C99: H4 | D99: 4732H4 | E99: 0.0634 | F99: FINANCIAL (1,2,3,4,5,6,C,K,M,P,9)
A100: 4734 | B100: 8734 | C100: EY | D100: 4734EY | E100: 0.0526 | F100: EMPLOYEE BASIS (2,3,4,5,C,K,9)
A101: 4737 | B101: 8737 | C101: CQ | D101: 4737CQ | E101: 0.0973 | F101: CUSTOMER (2,3,4,5,)
A102: 4738 | B102: 8738 | C102: KA | D102: 4738KA | E102: 0.0929 | F102: INSURANCE PREMIUM (2,3,4,5,6,C,K,M,P,9,)
A103: 473E | B103: 873E | C103: HD | D103: 473EHD | E103: 0.0626 | F103: FOSSIL HYDRO CAPACITY (2,3,4,5,6,P,)
A104: 473F | B104: 873F | C104: AB | D104: 473FAB | E104: 0.0938 | F104: GAS BURNED (2,3,4,5,P)
A105: 4741 | B105: 8741 | C105: EY | D105: 4741EY | E105: 0.0526 | F105: EMPLOYEE BASIS (2,3,4,5,C,K,9)
A106: 4744 | B106: 8744 | C106: EY | D106: 4744EY | E106: 0.0526 | F106: EMPLOYEE BASIS (2,3,4,5,C,K,9)
A107: 4747 | B107: 8747 | C107: EY | D107: 4747EY | E107: 0.0526 | F107: EMPLOYEE BASIS (2,3,4,5,C,K,9)
A108: 4748 | B108: 8748 | C108: CQ | D108: 4748CQ | E108: 0.0973 | F108: CUSTOMER (2,3,4,5,)
A109: 4749 | B109: 8749 | C109: CI | D109: 4749CI | E109: 0.0586 | F109: CAPITALIZATION (1,2,3,4,5,6,C,K,P)
A110: 474G | B110: 874G | C110: A1 | D110: 474GA1 | E110: 0.0663 | F110: LOAD (2,3,4,5,P,)
A111: 4750 | B111: 8750 | C111: CI | D111: 4750CI | E111: 0.0586 | F111: CAPITALIZATION (1,2,3,4,5,6,C,K,P)
A112: 475F | B112: 875F | C112: A1 | D112: 475FA1 | E112: 0.0663 | F112: LOAD (2,3,4,5,P,)
A113: 4764 | B113: 8764 | C113: CQ | D113: 4764CQ | E113: 0.0973 | F113: CUSTOMER (2,3,4,5,)
A114: 4765 | B114: 8765 | C114: CQ | D114: 4765CQ | E114: 0.0973 | F114: CUSTOMER (2,3,4,5,)
A115: 4766 | B115: 8766 | C115: A0 | D115: 4766A0 | E115: 0.0729 | F115: LOAD (2,3,4,5,)
A116: 476E | B116: 876E | C116: R2 | D116: 476ER2 | E116: 0.0475 | F116: SALES FOR RESALE (2,3,4,5,P,)
A117: 477A | B117: 877A | C117: GQ | D117: 477AGQ | E117: 0.0706 | F117: FINANCIAL (2,3,4,5,6,C,K,M,P,9,)
A118: 477F | B118: 877F | C118: HC | D118: 477FHC | E118: 0.0774 | F118: FOSSIL HYDRO CAPACITY (2,3,4,5,6,)
A119: 477T | B119: 877T | C119: GQ | D119: 477TGQ | E119: 0.0706 | F119: FINANCIAL (2,3,4,5,6,C,K,M,P,9,)
A120: 4786 | B120: 8786 | C120: A0 | D120: 4786A0 | E120: 0.0729 | F120: LOAD (2,3,4,5,)
A121: 478E | B121: 878E | C121: A1 | D121: 478EA1 | E121: 0.0663 | F121: LOAD (2,3,4,5,P,)
A122: 478F | B122: 878F | C122: R3 | D122: 478FR3 | E122: 0.0732 | F122: SALES FOR RESALE(2,3,4,5)
A123: 478H | B123: 878H | C123: GQ | D123: 478HGQ | E123: 0.0706 | F123: FINANCIAL (2,3,4,5,6,C,K,M,P,9,)
A124: 478L | B124: 878L | C124: H4 | D124: 478LH4 | E124: 0.0634 | F124: FINANCIAL (1,2,3,4,5,6,C,K,M,P,9)
A125: 4798 | B125: 8798 | C125: CQ | D125: 4798CQ | E125: 0.0973 | F125: CUSTOMER (2,3,4,5,)
A126: 479E | B126: 879E | C126: A0 | D126: 479EA0 | E126: 0.0729 | F126: LOAD (2,3,4,5,)
A127: 47AJ | B127: 87AJ | C127: CQ | D127: 47AJCQ | E127: 0.0973 | F127: CUSTOMER (2,3,4,5,)
A128: 47AP | B128: 87AP | C128: GV | D128: 47APGV | E128: 0.076 | F128: FINANCIAL (2,3,4,5,C,9,)
A129: 47CD | B129: 87CD | C129: EY | D129: 47CDEY | E129: 0.0526 | F129: EMPLOYEE BASIS (2,3,4,5,C,K,9)
A130: 47CE | B130: 87CE | C130: EY | D130: 47CEEY | E130: 0.0526 | F130: EMPLOYEE BASIS (2,3,4,5,C,K,9)
A131: ="4"&RIGHT(B131,3) -> 47CM | B131: 87CM | C131: EY | D131: 47CMEY | E131: =VLOOKUP(C131,AIPCT,2,0) -> 0.0526 | F131: EMPLOYEE BASIS (2,3,4,5,C,K,9)
A132: 47CN | B132: 87CN | C132: EY | D132: =CONCATENATE(A132,C132) -> 47CNEY | E132: 0.0526 | F132: EMPLOYEE BASIS (2,3,4,5,C,K,9)
A133: 47CO | B133: 87CO | C133: HD | D133: 47COHD | E133: 0.0626 | F133: FOSSIL HYDRO CAPACITY (2,3,4,5,6,P,)
A134: 47CT | B134: 87CT | C134: EY | D134: 47CTEY | E134: 0.0526 | F134: EMPLOYEE BASIS (2,3,4,5,C,K,9)
A135: 47E4 | B135: 87E4 | C135: GV | D135: 47E4GV | E135: 0.076 | F135: FINANCIAL (2,3,4,5,C,9,)
A136: 47EN | B136: 87EN | C136: GH | D136: 47ENGH | E136: 0.0671 | F136: FINANCIAL (1,2,3,4,5,6,C,K,M,P)
A137: 47EO | B137: 87EO | C137: GV | D137: 47EOGV | E137: 0.076 | F137: FINANCIAL (2,3,4,5,C,9,)
A138: 47ER | B138: 87ER | C138: EY | D138: 47EREY | E138: 0.0526 | F138: EMPLOYEE BASIS (2,3,4,5,C,K,9)
A139: 47ES | B139: 87ES | C139: EY | D139: 47ESEY | E139: 0.0526 | F139: EMPLOYEE BASIS (2,3,4,5,C,K,9)
A140: 47FC | B140: 87FC | C140: CP | D140: 47FCCP | E140: 0.0693 | F140: COAL GENERATION (2,3,4,5,6,)
A141: 47FG | B141: 87FG | C141: AB | D141: 47FGAB | E141: 0.0938 | F141: GAS BURNED (2,3,4,5,P)
A142: 47GC | B142: 87GC | C142: EN | D142: 47GCEN | E142: 0.0529 | F142: EMPLOYEE (GENERATION) (2,3,4,5,9,)
A143: 47GL | B143: 87GL | C143: EN | D143: 47GLEN | E143: 0.0529 | F143: EMPLOYEE (GENERATION) (2,3,4,5,9,)
A144: 47GN | B144: 87GN | C144: EM | D144: 47GNEM | E144: 0.0754 | F144: EMPLOYEE (GENERATION) (2,3,4,5,)
A145: 47GS | B145: 87GS | C145: EN | D145: 47GSEN | E145: 0.0529 | F145: EMPLOYEE (GENERATION) (2,3,4,5,9,)
A146: 47GX | B146: 87GX | C146: EM | D146: 47GXEM | E146: 0.0754 | F146: EMPLOYEE (GENERATION) (2,3,4,5,)
A147: 47HC | B147: 87HC | C147: EY | D147: 47HCEY | E147: 0.0526 | F147: EMPLOYEE BASIS (2,3,4,5,C,K,9)
A148: 47HR | B148: 87HR | C148: EY | D148: 47HREY | E148: 0.0526 | F148: EMPLOYEE BASIS (2,3,4,5,C,K,9)
A149: 47IM | B149: 87IM | C149: GY | D149: 47IMGY | E149: 0.0793 | F149: FINANCIAL (2,3,4,5,P,)
A150: 47IN | B150: 87IN | C150: A0 | D150: 47INA0 | E150: 0.0729 | F150: LOAD (2,3,4,5,)
A151: 47LD | B151: 87LD | C151: EY | D151: 47LDEY | E151: 0.0526 | F151: EMPLOYEE BASIS (2,3,4,5,C,K,9)
A152: 47MI | B152: 87MI | C152: CQ | D152: 47MICQ | E152: 0.0973 | F152: CUSTOMER (2,3,4,5,)
A153: 47MN | B153: 87MN | C153: CQ | D153: 47MNCQ | E153: 0.0973 | F153: CUSTOMER (2,3,4,5,)
A154: 47PK | B154: 87PK | C154: EY | D154: 47PKEY | E154: 0.0526 | F154: EMPLOYEE BASIS (2,3,4,5,C,K,9)
A155: 47PN | B155: 87PN | C155: EY | D155: 47PNEY | E155: 0.0526 | F155: EMPLOYEE BASIS (2,3,4,5,C,K,9)
A156: 47PP | B156: 87PP | C156: GS | D156: 47PPGS | E156: 0.0785 | F156: FINANCIAL (2,3,4,5,6,P,)
A157: 47PY | B157: 87PY | C157: EY | D157: 47PYEY | E157: 0.0526 | F157: EMPLOYEE BASIS (2,3,4,5,C,K,9)
A158: 47Q4 | B158: 87Q4 | C158: CI | D158: 47Q4CI | E158: 0.0586 | F158: CAPITALIZATION (1,2,3,4,5,6,C,K,P)
A159: 47RK | B159: 87RK | C159: EY | D159: 47RKEY | E159: 0.0526 | F159: EMPLOYEE BASIS (2,3,4,5,C,K,9)
A160: 47SC | B160: 87SC | C160: EY | D160: 47SCEY | E160: 0.0526 | F160: EMPLOYEE BASIS (2,3,4,5,C,K,9)
A161: 47SS | B161: 87SS | C161: EY | D161: 47SSEY | E161: 0.0526 | F161: EMPLOYEE BASIS (2,3,4,5,C,K,9)
A162: 47SV | B162: 87SV | C162: EY | D162: 47SVEY | E162: 0.0526 | F162: EMPLOYEE BASIS (2,3,4,5,C,K,9)
A163: 47VS | B163: 87VS | C163: H6 | D163: 47VSH6 | E163: 0.0669 | F163: FINANCIAL (1,2,3,4,5,6,C,M,9,)
A164: 47WP | B164: 87WP | C164: EY | D164: 47WPEY | E164: 0.0526 | F164: EMPLOYEE BASIS (2,3,4,5,C,K,9)
A165: 480G | B165: 880G | C165: R3 | D165: 480GR3 | E165: 0.0732 | F165: SALES FOR RESALE(2,3,4,5)
A166: 480R | B166: 880R | C166: A0 | D166: 480RA0 | E166: 0.0729 | F166: LOAD (2,3,4,5,)
A167: 481B | B167: 881B | C167: S5 | D167: 481BS5 | E167: 0.0772 | F167: SALARY (1,2,3,4,5,6,C,K,M,P)
A168: 4820 | B168: 8820 | C168: A0 | D168: 4820A0 | E168: 0.0729 | F168: LOAD (2,3,4,5,)
A169: 482B | B169: 882B | C169: S5 | D169: 482BS5 | E169: 0.0772 | F169: SALARY (1,2,3,4,5,6,C,K,M,P)
A170: 4831 | B170: 8831 | C170: GQ | D170: 4831GQ | E170: 0.0706 | F170: FINANCIAL (2,3,4,5,6,C,K,M,P,9,)
A171: 483B | B171: 883B | C171: S5 | D171: 483BS5 | E171: 0.0772 | F171: SALARY (1,2,3,4,5,6,C,K,M,P)
A172: 484B | B172: 884B | C172: S5 | D172: 484BS5 | E172: 0.0772 | F172: SALARY (1,2,3,4,5,6,C,K,M,P)
A173: 4857 | B173: 8857 | C173: EY | D173: 4857EY | E173: 0.0526 | F173: EMPLOYEE BASIS (2,3,4,5,C,K,9)
A174: 485B | B174: 885B | C174: S5 | D174: 485BS5 | E174: 0.0772 | F174: SALARY (1,2,3,4,5,6,C,K,M,P)
A175: 4883 | B175: 8883 | C175: A0 | D175: 4883A0 | E175: 0.0729 | F175: LOAD (2,3,4,5,)
A176: 4884 | B176: 8884 | C176: A0 | D176: 4884A0 | E176: 0.0729 | F176: LOAD (2,3,4,5,)
A177: 4888 | B177: 8888 | C177: A0 | D177: 4888A0 | E177: 0.0729 | F177: LOAD (2,3,4,5,)
A178: 4890 | B178: 8890 | C178: EO | D178: 4890EO | E178: 0.0367 | F178: EMPLOYEE (TRANSMISSION) (2,3,4,5,9,)
A179: 48AB | B179: 88AB | C179: S5 | D179: 48ABS5 | E179: 0.0772 | F179: SALARY (1,2,3,4,5,6,C,K,M,P)
A180: 48AP | B180: 88AP | C180: H6 | D180: 48APH6 | E180: 0.0669 | F180: FINANCIAL (1,2,3,4,5,6,C,M,9,)
A181: 48BB | B181: 88BB | C181: S5 | D181: 48BBS5 | E181: 0.0772 | F181: SALARY (1,2,3,4,5,6,C,K,M,P)
A182: 48BS | B182: 88BS | C182: EY | D182: 48BSEY | E182: 0.0526 | F182: EMPLOYEE BASIS (2,3,4,5,C,K,9)
A183: 48C2 | B183: 88C2 | C183: EY | D183: 48C2EY | E183: 0.0526 | F183: EMPLOYEE BASIS (2,3,4,5,C,K,9)
A184: 48CB | B184: 88CB | C184: S5 | D184: 48CBS5 | E184: 0.0772 | F184: SALARY (1,2,3,4,5,6,C,K,M,P)
A185: 48CS | B185: 88CS | C185: CQ | D185: 48CSCQ | E185: 0.0973 | F185: CUSTOMER (2,3,4,5,)
A186: 48DB | B186: 88DB | C186: S5 | D186: 48DBS5 | E186: 0.0772 | F186: SALARY (1,2,3,4,5,6,C,K,M,P)
A187: 48DV | B187: 88DV | C187: EY | D187: 48DVEY | E187: 0.0526 | F187: EMPLOYEE BASIS (2,3,4,5,C,K,9)
A188: 48DW | B188: 88DW | C188: CQ | D188: 48DWCQ | E188: 0.0973 | F188: CUSTOMER (2,3,4,5,)
A189: 48EA | B189: 88EA | C189: R3 | D189: 48EAR3 | E189: 0.0732 | F189: SALES FOR RESALE(2,3,4,5)
A190: 48EB | B190: 88EB | C190: S5 | D190: 48EBS5 | E190: 0.0772 | F190: SALARY (1,2,3,4,5,6,C,K,M,P)
A191: 48EE | B191: 88EE | C191: HE | D191: 48EEHE | E191: 0.0444 | F191: Carbon emissions (2,3,4,5,6,P)
A192: 48GB | B192: 88GB | C192: S5 | D192: 48GBS5 | E192: 0.0772 | F192: SALARY (1,2,3,4,5,6,C,K,M,P)
A193: 48GL | B193: 88GL | C193: H6 | D193: 48GLH6 | E193: 0.0669 | F193: FINANCIAL (1,2,3,4,5,6,C,M,9,)
A194: 48HB | B194: 88HB | C194: S5 | D194: 48HBS5 | E194: 0.0772 | F194: SALARY (1,2,3,4,5,6,C,K,M,P)
A195: ="4"&RIGHT(B195,3) -> 48IG | B195: 88IG | C195: CQ | D195: 48IGCQ | E195: =VLOOKUP(C195,AIPCT,2,0) -> 0.0973 | F195: CUSTOMER (2,3,4,5,)
A196: 48SC | B196: 88SC | C196: H7 | D196: =CONCATENATE(A196,C196) -> 48SCH7 | E196: 0.0753 | F196: FINANCIAL (2,3,4,5,6,C,9,)
A197: 48ST | B197: 88ST | C197: CQ | D197: 48STCQ | E197: 0.0973 | F197: CUSTOMER (2,3,4,5,)
A198: 490L | B198: 890L | C198: HB | D198: 490LHB | E198: 0.0666 | F198: FOSSIL CAPACITY (2,3,4,5,6,P,)
A199: 4931 | B199: 8931 | C199: T1 | D199: 4931T1 | E199: 0.0622 | F199: TRANSMISSION USAGE (2,3,4,5,)
A200: 4932 | B200: 8932 | C200: T1 | D200: 4932T1 | E200: 0.0622 | F200: TRANSMISSION USAGE (2,3,4,5,)
... 115 more rows

Sheet Definitions
A1: Fixed Percentage Allocations – (source: Form 60 - Annual Report of Centralized Service Companies by Southern Company Services, Inc. filed 05/02/2011)
A2: The Company uses statistics based on a single year with a one-year lag; therefore, 2010 allocations were based on 2008
A3: statistics. Each participating company receives a pro rata share based upon its statistics defined by the following
A4: methods. Multiple versions of the bases are available to reflect the exclusion of specific companies if they do not
A5: participate in or benefit from particular projects or services. In the discussion below, Client Operating Companies refer to
A6: Southern system companies that generate power, and Client Companies include all affiliates:
A7: 1. Load Basis
A8: Annual operating area territorial load (defined as kilowatt-hours of total energy generated plus energy received
A9: minus energy delivered) plus other firm wholesale commitments of each Client Operating Company other than
A10: Southern Electric Generating Company (SEGCO).
A11: 2. Sales for Resale Basis
A12: Megawatts of wholesale generation as reported in annual Form 10-K as Sales for Resale.
A13: 3. Transmission Usage Basis
A14: Total megawatt-hour deliveries to territorial customers plus deliveries to Open Access Transmission Tariff
A15: (OATT) customers (include Network Services and Point-to-Point service) plus other transmission deliveries
A16: under contracts predating OATT.
A17: 4. Customer Basis
A18: Number of year-end customers of each Client Operating Company (other than SEGCO and Southern Power).
A19: 5. Employee Basis
A20: Number of year-end employees of each Client Company. Employee groups not benefiting from certain
A21: services are not included in every allocation.
A22: 6. Financial Basis
A23: Average of the percentages of net fixed assets, operating expenses, and operating revenues of each Client
A24: Company.
A25: 7. Coal Generation Basis
A26: Generation (kilowatt-hours) from coal fuel sources of each Client Operating Company. Generation from plants
A27: operated by the Southern system but jointly owned by external parties is included. Generation jointly owned by
A28: Southern Company affiliates is assigned on an ownership basis.
A29: 8. Gas Burned Basis
A30: Volume of gas consumed (BTUs) by each Client Operating Company.
A31: 9. Fossil and Hydro Capacity Basis
A32: Fossil and hydro nameplate generating capacity (kilowatts) for each Client Operating Company. Capacity
A33: operated by the Southern system but jointly owned by external parties is included. Capacity jointly owned by
A34: Southern Company affiliates is assigned on an ownership basis.
A35: 10. Fossil Capacity Basis
A36: Fossil nameplate generating capacity (kilowatts) for each Client Operating Company. Capacity operated by
A37: the Southern system but jointly owned by external parties is included. Capacity jointly owned by Southern
A38: Company affiliates is assigned on an ownership basis.
A39: 11. Coal Capacity Basis
A40: Coal nameplate generating capacity (kilowatts) for each Client Operating Company. Capacity operated by the
A41: Southern system but jointly owned by external parties is included. Capacity jointly owned by Southern
A42: Company affiliates is assigned on an ownership basis.
A43: 12. Insurance Premium Basis
A44: Insurance premiums of each Client Company.
A45: 13. Salary Basis
A46: Service Company labor billed to each Client Company.
A47: In addition, overhead charges are allocated to the applicable companies based on standard rates applied to
A48: actual labor charges in the current period.
A49: 14. Information Technology Division Salary Basis
A50: Service Company Information Technology labor billed to each Client Company.
A51: 15. Capitalization Basis
A52: Book capitalization (defined as long-term debt, preferred stock, cumulative preferred stock, and common
A53: shareholder equity) of each Client Company.
A54: 16. Personal Computer Basis
A55: Number of personal computers of each Client Company. Organizations not benefiting from certain types of
A56: computers are not included in every allocation.
A57: 17. System Aircraft Availability Basis
A58: Number of executives authorized to call out flights at each Client Company. Utilization of system aircraft is
A59: billed based on a comparable undiscounted commercial fare for the itinerary flown. An “availability fee,” which
A60: represents the remaining costs of system aircraft operations, is allocated to the Client Companies.
A61: 18. Carbon Emissions Basis
A62: Carbon emissions from fossil burning generating plants for each Client Operating Company (measured in
A63: short tons). Emissions from generation plants operated by the Southern system but partially owned by
A64: external parties are allocated on an ownership basis. Emissions from external party ownership are excluded.
A66: Direct Accumulatives – (source: COST ACCOUNTABILITY AND CONTROL MANUAL 2010 Edition)
A67: If costs need to be charged to multiple work orders, a “direct accumulative” is requested. A direct accumulative work order can be distributed to any other type of work order except for another direct accumulative, an administrative and general (A&G) work order, and an occupancy work order. The request form must include a description of the service; a narrative of the allocation methodology; allocation of charges by work order sub and percents; and authorization by an SCS VP and the SCS Accounting Director or Manager.
